Workbook

Sheet Jan
A1: January 2014 Dixie Binary Bottoming Cycle Data
A3: Date Jan | B3: Brine Flow [gpm] | C3: Brine Return Temp [F] | D3: Brine Supply Temp [F] | E3: Gen. Output [KW] | F3: Net [KW] | G3: Parasitic KW] | H3: T Dry Bulb [F]
A4: 1 | B4: O/S | C4: 123 | D4: 232 | E4: 5089 | F4: 4420 | G4: =E4-F4 -> 669 | H4: 27
A5: 1 | B5: O/S | C5: 123 | D5: 232 | E5: 5006 | F5: 4346 | G5: 660 | H5: 25
A6: 1 | B6: O/S | C6: 122 | D6: 232 | E6: 4949 | F6: 4257 | G6: 692 | H6: 28
A7: 1 | B7: O/S | C7: 123 | D7: 232 | E7: 4941 | F7: 4135 | G7: 806 | H7: 28
A8: 1 | B8: O/S | C8: 121 | D8: 232 | E8: 4953 | F8: 4338 | G8: 615 | H8: 26
A9: 1 | B9: O/S | C9: 122 | D9: 232 | E9: 4936 | F9: 4371 | G9: 565 | H9: 24
A10: 1 | B10: O/S | C10: 122 | D10: 232 | E10: 4446 | F10: 4420 | G10: 26 | H10: 24
A11: 1 | B11: O/S | C11: 121 | D11: 232 | E11: 5018 | F11: 4436 | G11: 582 | H11: 25
A12: 1 | B12: O/S | C12: 122 | D12: 232 | E12: 4962 | F12: 4186 | G12: 776 | H12: 31
A13: 1 | B13: O/S | C13: 121 | D13: 232 | E13: 4430 | F13: 4135 | G13: 295 | H13: 34
A14: 1 | B14: O/S | C14: 122 | D14: 232 | E14: 4768 | F14: 3774 | G14: 994 | H14: 38
A15: 1 | B15: O/S | C15: 122 | D15: 232 | E15: 4687 | F15: 3631 | G15: 1056 | H15: 43
A16: 1 | B16: O/S | C16: 124 | D16: 232 | E16: 4309 | F16: 3217 | G16: 1092 | H16: 49
A17: 1 | B17: O/S | C17: 126 | D17: 232 | E17: 4126 | F17: 3096 | G17: 1030 | H17: 48
A18: 1 | B18: O/S | C18: 127 | D18: 232 | E18: 4063 | F18: 3014 | G18: 1049 | H18: 47
A19: 1 | B19: O/S | C19: 126 | D19: 232 | E19: 4036 | F19: 3022 | G19: 1014 | H19: 48
A20: 1 | B20: O/S | C20: 125 | D20: 232 | E20: 4212 | F20: 3160 | G20: 1052 | H20: 42
A21: 1 | B21: O/S | C21: 124 | D21: 232 | E21: 4338 | F21: 3333 | G21: 1005 | H21: 40
A22: 1 | B22: O/S | C22: 123 | D22: 232 | E22: 4890 | F22: 3786 | G22: 1104 | H22: 36
A23: 1 | B23: O/S | C23: 124 | D23: 232 | E23: 4755 | F23: 3644 | G23: 1111 | H23: 39
A24: 1 | B24: O/S | C24: 122 | D24: 232 | E24: 5000 | F24: 3924 | G24: 1076 | H24: 32
A25: 1 | B25: O/S | C25: 123 | D25: 232 | E25: 4988 | F25: 3988 | G25: 1000 | H25: 31
A26: 1 | B26: O/S | C26: 121 | D26: 232 | E26: 4900 | F26: 3826 | G26: 1074 | H26: 32
A27: 2 | B27: O/S | C27: 122 | D27: 232 | E27: 4955 | F27: 3999 | G27: 956 | H27: 30
A28: 2 | B28: O/S | C28: 122 | D28: 232 | E28: 5017 | F28: 4168 | G28: 849 | H28: 28
A29: 2 | B29: O/S | C29: 122 | D29: 232 | E29: 5025 | F29: 4387 | G29: 638 | H29: 27
A30: 2 | B30: O/S | C30: 122 | D30: 232 | E30: 4938 | F30: 3891 | G30: 1047 | H30: 31
A31: 2 | B31: O/S | C31: 123 | D31: 232 | E31: 5035 | F31: 4338 | G31: 697 | H31: 27
A32: 2 | B32: O/S | C32: 121 | D32: 232 | E32: 5025 | F32: 4371 | G32: 654 | H32: 28
A33: 2 | B33: O/S | C33: 123 | D33: 232 | E33: 5007 | F33: 4379 | G33: 628 | H33: 25
A34: 2 | B34: O/S | C34: 123 | D34: 232 | E34: 5000 | F34: 4371 | G34: 629 | H34: 28
A35: 2 | B35: O/S | C35: 123 | D35: 232 | E35: 5132 | F35: 4411 | G35: 721 | H35: 26
A36: 2 | B36: O/S | C36: 124 | D36: 232 | E36: 5181 | F36: 4184 | G36: 997 | H36: 37
A37: 2 | B37: O/S | C37: 126 | D37: 232 | E37: 4850 | F37: 3921 | G37: 929 | H37: 42
A38: 2 | B38: O/S | C38: 127 | D38: 232 | E38: 4632 | F38: 3691 | G38: 941 | H38: 47
A39: 2 | B39: O/S | C39: 127 | D39: 232 | E39: 4420 | F39: 3420 | G39: 1000 | H39: 49
A40: 2 | B40: O/S | C40: 129 | D40: 232 | E40: 4388 | F40: 3292 | G40: 1096 | H40: 48
A41: 2 | B41: O/S | C41: 128 | D41: 232 | E41: 4284 | F41: 3126 | G41: 1158 | H41: 50
A42: 2 | B42: O/S | C42: 127 | D42: 232 | E42: 4235 | F42: 3102 | G42: 1133 | H42: 51
A43: 2 | B43: O/S | C43: 128 | D43: 232 | E43: 4212 | F43: 3095 | G43: 1117 | H43: 48
A44: 2 | B44: O/S | C44: 127 | D44: 232 | E44: 4360 | F44: 3250 | G44: 1110 | H44: 45
A45: 2 | B45: O/S | C45: 128 | D45: 232 | E45: 4356 | F45: 3315 | G45: 1041 | H45: 44
A46: 2 | B46: O/S | C46: 124 | D46: 232 | E46: 4730 | F46: 3956 | G46: 774 | H46: 35
A47: 2 | B47: O/S | C47: 127 | D47: 232 | E47: 4875 | F47: 4111 | G47: 764 | H47: 35
A48: 2 | B48: O/S | C48: 128 | D48: 232 | E48: 4838 | F48: 4168 | G48: 670 | H48: 31
A49: 2 | B49: O/S | C49: 127 | D49: 232 | E49: 4885 | F49: 4192 | G49: 693 | H49: 33
A50: 2 | B50: O/S | C50: 127 | D50: 232 | E50: 4876 | F50: 4249 | G50: 627 | H50: 30
A51: 3 | B51: O/S | C51: 127 | D51: 232 | E51: 4884 | F51: 4314 | G51: 570 | H51: 29
A52: 3 | B52: O/S | C52: 128 | D52: 232 | E52: 4905 | F52: 4387 | G52: 518 | H52: 26
A53: 3 | B53: O/S | C53: 127 | D53: 232 | E53: 4887 | F53: 4338 | G53: 549 | H53: 28
A54: 3 | B54: O/S | C54: 128 | D54: 232 | E54: 4918 | F54: 4404 | G54: 514 | H54: 25
A55: 3 | B55: O/S | C55: 129 | D55: 232 | E55: 4953 | F55: 4395 | G55: 558 | H55: 27
A56: 3 | B56: O/S | C56: 128 | D56: 232 | E56: 5025 | F56: 4444 | G56: 581 | H56: 28
A57: 3 | B57: O/S | C57: 128 | D57: 232 | E57: 5080 | F57: 4541 | G57: 539 | H57: 24
A58: 3 | B58: O/S | C58: 129 | D58: 232 | E58: 4953 | F58: 4452 | G58: 501 | H58: 23
A59: 3 | B59: O/S | C59: 127 | D59: 232 | E59: 5050 | F59: 4517 | G59: 533 | H59: 30
A60: 3 | B60: O/S | C60: 129 | D60: 232 | E60: 5019 | F60: 4346 | G60: 673 | H60: 33
A61: 3 | B61: O/S | C61: 127 | D61: 232 | E61: 4988 | F61: 4273 | G61: 715 | H61: 37
A62: 3 | B62: O/S | C62: 130 | D62: 232 | E62: 4947 | F62: 3851 | G62: 1096 | H62: 38
A63: 3 | B63: O/S | C63: 132 | D63: 232 | E63: 4624 | F63: 3591 | G63: 1033 | H63: 43
A64: 3 | B64: O/S | C64: 130 | D64: 232 | E64: 4513 | F64: 3469 | G64: 1044 | H64: 48
A65: 3 | B65: O/S | C65: 132 | D65: 232 | E65: 4345 | F65: 3315 | G65: 1030 | H65: 51
A66: 3 | B66: O/S | C66: 129 | D66: 232 | E66: 4274 | F66: 3209 | G66: 1065 | H66: 51
A67: 3 | B67: O/S | C67: 130 | D67: 232 | E67: 4168 | F67: 3274 | G67: 894 | H67: 48
A68: 3 | B68: O/S | C68: 127 | D68: 232 | E68: 4584 | F68: 3510 | G68: =E68-F68 -> 1074 | H68: 43
A69: 3 | B69: O/S | C69: 127 | D69: 232 | E69: 4682 | F69: 3615 | G69: 1067 | H69: 42
A70: 3 | B70: O/S | C70: 127 | D70: 232 | E70: 4970 | F70: 4078 | G70: 892 | H70: 34
A71: 3 | B71: O/S | C71: 128 | D71: 232 | E71: 5115 | F71: 4265 | G71: 850 | H71: 33
A72: 3 | B72: O/S | C72: 127 | D72: 232 | E72: 5086 | F72: 4225 | G72: 861 | H72: 35
A73: 3 | B73: O/S | C73: 127 | D73: 232 | E73: 5084 | F73: 4428 | G73: 656 | H73: 29
A74: 3 | B74: O/S | C74: 128 | D74: 232 | E74: 5084 | F74: 4346 | G74: 738 | H74: 32
A75: 4 | B75: O/S | C75: 127 | D75: 232 | E75: 5220 | F75: 4387 | G75: 833 | H75: 32
A76: 4 | B76: O/S | C76: 128 | D76: 232 | E76: 5085 | F76: 4329 | G76: 756 | H76: 30
A77: 4 | B77: O/S | C77: 128 | D77: 232 | E77: 5029 | F77: 4298 | G77: 731 | H77: 29
A78: 4 | B78: O/S | C78: 127 | D78: 232 | E78: 5090 | F78: 4145 | G78: 945 | H78: 35
A79: 4 | B79: O/S | C79: 129 | D79: 232 | E79: 5084 | F79: 4119 | G79: 965 | H79: 34
A80: 4 | B80: O/S | C80: 128 | D80: 232 | E80: 5100 | F80: 4265 | G80: 835 | H80: 33
A81: 4 | B81: O/S | C81: 128 | D81: 232 | E81: 4968 | F81: 4135 | G81: 833 | H81: 34
A82: 4 | B82: O/S | C82: 128 | D82: 232 | E82: 4973 | F82: 4197 | G82: 776 | H82: 34
A83: 4 | B83: O/S | C83: 129 | D83: 232 | E83: 4983 | F83: 4241 | G83: 742 | H83: 33
A84: 4 | B84: O/S | C84: 127 | D84: 232 | E84: 5012 | F84: 4168 | G84: 844 | H84: 37
A85: 4 | B85: O/S | C85: 129 | D85: 232 | E85: 5036 | F85: 3900 | G85: 1136 | H85: 40
A86: 4 | B86: O/S | C86: 129 | D86: 232 | E86: 4919 | F86: 3884 | G86: 1035 | H86: 43
A87: 4 | B87: O/S | C87: 130 | D87: 232 | E87: 4740 | F87: 3640 | G87: 1100 | H87: 44
A88: 4 | B88: O/S | C88: 128 | D88: 232 | E88: 4761 | F88: 3607 | G88: 1154 | H88: 45
A89: 4 | B89: O/S | C89: 127 | D89: 232 | E89: 4711 | F89: 3551 | G89: 1160 | H89: 45
A90: 4 | B90: O/S | C90: 130 | D90: 232 | E90: 4657 | F90: 3501 | G90: 1156 | H90: 44
A91: 4 | B91: O/S | C91: 131 | D91: 232 | E91: 4743 | F91: 3607 | G91: 1136 | H91: 44
A92: 4 | B92: O/S | C92: 129 | D92: 232 | E92: 4795 | F92: 3745 | G92: 1050 | H92: 41
A93: 4 | B93: O/S | C93: 129 | D93: 232 | E93: 5133 | F93: 4135 | G93: 998 | H93: 34
A94: 4 | B94: O/S | C94: 128 | D94: 232 | E94: 5138 | F94: 4444 | G94: 694 | H94: 30
A95: 4 | B95: O/S | C95: 129 | D95: 232 | E95: 5060 | F95: 4371 | G95: 689 | H95: 31
A96: 4 | B96: O/S | C96: 127 | D96: 232 | E96: 5100 | F96: 4436 | G96: 664 | H96: 29
A97: 4 | B97: O/S | C97: 128 | D97: 232 | E97: 5086 | F97: 4527 | G97: 559 | H97: 28
A98: 4 | B98: O/S | C98: 127 | D98: 232 | E98: 5060 | F98: 4493 | G98: 567 | H98: 27
A99: 5 | B99: O/S | C99: 128 | D99: 232 | E99: 5118 | F99: 4559 | G99: 559 | H99: 24
A100: 5 | B100: O/S | C100: 128 | D100: 232 | E100: 5020 | F100: 4476 | G100: 544 | H100: 23
A101: 5 | B101: O/S | C101: 129 | D101: 232 | E101: 5013 | F101: 4452 | G101: 561 | H101: 26
A102: 5 | B102: O/S | C102: 128 | D102: 232 | E102: 5088 | F102: 4533 | G102: 555 | H102: 23
A103: 5 | B103: O/S | C103: 127 | D103: 232 | E103: 5052 | F103: 4606 | G103: 446 | H103: 18
A104: 5 | B104: O/S | C104: 128 | D104: 232 | E104: 5018 | F104: 4590 | G104: 428 | H104: 17
A105: 5 | B105: O/S | C105: 127 | D105: 232 | E105: 5030 | F105: 4550 | G105: 480 | H105: 18
A106: 5 | B106: O/S | C106: 127 | D106: 232 | E106: 4996 | F106: 4582 | G106: 414 | H106: 17
A107: 5 | B107: O/S | C107: 126 | D107: 232 | E107: 4607 | F107: 4257 | G107: 350 | H107: 15
A108: 5 | B108: O/S | C108: 125 | D108: 232 | E108: 4596 | F108: 4197 | G108: 399 | H108: 28
A109: 5 | B109: O/S | C109: 125 | D109: 232 | E109: 4557 | F109: 4054 | G109: 503 | H109: 33
A110: 5 | B110: O/S | C110: 124 | D110: 232 | E110: 4582 | F110: 3997 | G110: 585 | H110: 33
A111: 5 | B111: O/S | C111: 124 | D111: 232 | E111: 4595 | F111: 3916 | G111: 679 | H111: 43
A112: 5 | B112: O/S | C112: 124 | D112: 232 | E112: 4607 | F112: 3786 | G112: 821 | H112: 43
A113: 5 | B113: O/S | C113: 125 | D113: 232 | E113: 4651 | F113: 3623 | G113: 1028 | H113: 45
A114: 5 | B114: O/S | C114: 126 | D114: 232 | E114: 4595 | F114: 3501 | G114: 1094 | H114: 44
A115: 5 | B115: O/S | C115: 124 | D115: 232 | E115: 4631 | F115: 3534 | G115: 1097 | H115: 44
A116: 5 | B116: O/S | C116: 125 | D116: 232 | E116: 4683 | F116: 3900 | G116: 783 | H116: 37
A117: 5 | B117: O/S | C117: 126 | D117: 232 | E117: 4837 | F117: 4005 | G117: 832 | H117: 36
A118: 5 | B118: O/S | C118: 127 | D118: 232 | E118: 4856 | F118: 4336 | G118: 520 | H118: 27
A119: 5 | B119: O/S | C119: 127 | D119: 232 | E119: 4880 | F119: 4355 | G119: 525 | H119: 26
A120: 5 | B120: O/S | C120: 128 | D120: 232 | E120: 4882 | F120: 4346 | G120: 536 | H120: 26
A121: 5 | B121: O/S | C121: 129 | D121: 232 | E121: 5008 | F121: 4387 | G121: 621 | H121: 30
A122: 5 | B122: O/S | C122: 128 | D122: 232 | E122: 4952 | F122: 4379 | G122: 573 | H122: 27
A123: 6 | B123: O/S | C123: 128 | D123: 232 | E123: 5020 | F123: 4493 | G123: 527 | H123: 24
A124: 6 | B124: O/S | C124: 127 | D124: 232 | E124: 5050 | F124: 4558 | G124: 492 | H124: 22
A125: 6 | B125: O/S | C125: 127 | D125: 232 | E125: 5020 | F125: 4574 | G125: 446 | H125: 18
A126: 6 | B126: O/S | C126: 128 | D126: 232 | E126: 5025 | F126: 4566 | G126: 459 | H126: 21
A127: 6 | B127: O/S | C127: 128 | D127: 232 | E127: 5015 | F127: 4550 | G127: 465 | H127: 20
A128: 6 | B128: O/S | C128: 128 | D128: 232 | E128: 5030 | F128: 4598 | G128: 432 | H128: 19
A129: 6 | B129: O/S | C129: 128 | D129: 232 | E129: 4970 | F129: 4541 | G129: 429 | H129: 22
A130: 6 | B130: O/S | C130: 128 | D130: 232 | E130: 5001 | F130: 4517 | G130: 484 | H130: 19
A131: 6 | B131: O/S | C131: 128 | D131: 232 | E131: 4904 | F131: 4476 | G131: 428 | H131: 22
A132: 6 | B132: O/S | C132: 127 | D132: 232 | E132: 5030 | F132: 4583 | G132: =E132-F132 -> 447 | H132: 28
A133: 6 | B133: O/S | C133: 127 | D133: 232 | E133: 4978 | F133: 4452 | G133: 526 | H133: 27
A134: 6 | B134: O/S | C134: 128 | D134: 232 | E134: 4988 | F134: 4355 | G134: 633 | H134: 36
A135: 6 | B135: O/S | C135: 127 | D135: 232 | E135: 4984 | F135: 4282 | G135: 702 | H135: 37
A136: 6 | B136: O/S | C136: 129 | D136: 232 | E136: 5043 | F136: 4030 | G136: 1013 | H136: 41
A137: 6 | B137: O/S | C137: 128 | D137: 232 | E137: 5070 | F137: 3948 | G137: 1122 | H137: 40
A138: 6 | B138: O/S | C138: 127 | D138: 232 | E138: 4945 | F138: 3851 | G138: 1094 | H138: 40
A139: 6 | B139: O/S | C139: 127 | D139: 232 | E139: 5059 | F139: 3973 | G139: 1086 | H139: 38
A140: 6 | B140: O/S | C140: 128 | D140: 232 | E140: 5038 | F140: 4144 | G140: 894 | H140: 36
A141: 6 | B141: O/S | C141: 128 | D141: 232 | E141: 5064 | F141: 4160 | G141: 904 | H141: 37
A142: 6 | B142: O/S | C142: 129 | D142: 232 | E142: 5034 | F142: 4176 | G142: 858 | H142: 37
A143: 6 | B143: O/S | C143: 128 | D143: 232 | E143: 5080 | F143: 4411 | G143: 669 | H143: 29
A144: 6 | B144: O/S | C144: 128 | D144: 232 | E144: 5072 | F144: 4420 | G144: 652 | H144: 31
A145: 6 | B145: O/S | C145: 129 | D145: 232 | E145: 5084 | F145: 4395 | G145: 689 | H145: 30
A146: 6 | B146: O/S | C146: 128 | D146: 232 | E146: 5098 | F146: 4509 | G146: 589 | H146: 28
A147: 7 | B147: O/S | C147: 128 | D147: 232 | E147: 5084 | F147: 4485 | G147: 599 | H147: 29
A148: 7 | B148: O/S | C148: 128 | D148: 232 | E148: 5093 | F148: 4525 | G148: 568 | H148: 28
A149: 7 | B149: O/S | C149: 129 | D149: 232 | E149: 5072 | F149: 4444 | G149: 628 | H149: 30
A150: 7 | B150: O/S | C150: 127 | D150: 232 | E150: 5125 | F150: 4509 | G150: 616 | H150: 27
A151: 7 | B151: O/S | C151: 129 | D151: 232 | E151: 5096 | F151: 4460 | G151: 636 | H151: 29
A152: 7 | B152: O/S | C152: 128 | D152: 232 | E152: 5084 | F152: 4517 | G152: 567 | H152: 29
A153: 7 | B153: O/S | C153: 128 | D153: 232 | E153: 5080 | F153: 4509 | G153: 571 | H153: 26
A154: 7 | B154: O/S | C154: 128 | D154: 232 | E154: 5041 | F154: 4444 | G154: 597 | H154: 29
A155: 7 | B155: O/S | C155: 127 | D155: 232 | E155: 5084 | F155: 4533 | G155: 551 | H155: 24
A156: 7 | B156: O/S | C156: 128 | D156: 232 | E156: 5085 | F156: 4493 | G156: 592 | H156: 32
A157: 7 | B157: O/S | C157: 127 | D157: 232 | E157: 5078 | F157: 4346 | G157: 732 | H157: 37
A158: 7 | B158: O/S | C158: 127 | D158: 232 | E158: 5035 | F158: 4192 | G158: 843 | H158: 37
A159: 7 | B159: O/S | C159: 127 | D159: 232 | E159: 4964 | F159: 3908 | G159: 1056 | H159: 44
A160: 7 | B160: O/S | C160: 129 | D160: 232 | E160: 4667 | F160: 3688 | G160: 979 | H160: 49
A161: 7 | B161: O/S | C161: 134 | D161: 232 | E161: 4517 | F161: 3428 | G161: 1089 | H161: 48
A162: 7 | B162: O/S | C162: 130 | D162: 232 | E162: 4419 | F162: 3404 | G162: 1015 | H162: 49
A163: 7 | B163: O/S | C163: 131 | D163: 232 | E163: 4518 | F163: 3461 | G163: 1057 | H163: 48
A164: 7 | B164: O/S | C164: 129 | D164: 232 | E164: 4682 | F164: 3672 | G164: 1010 | H164: 41
A165: 7 | B165: O/S | C165: 131 | D165: 232 | E165: 4712 | F165: 3624 | G165: 1088 | H165: 42
A166: 7 | B166: O/S | C166: 129 | D166: 232 | E166: 4750 | F166: 3640 | G166: 1110 | H166: 36
A167: 7 | B167: O/S | C167: 128 | D167: 232 | E167: 5068 | F167: 4070 | G167: 998 | H167: 36
A168: 7 | B168: O/S | C168: 129 | D168: 232 | E168: 5088 | F168: 3997 | G168: 1091 | H168: 37
A169: 7 | B169: O/S | C169: 128 | D169: 232 | E169: 5073 | F169: 3973 | G169: 1100 | H169: 33
A170: 7 | B170: O/S | C170: 129 | D170: 232 | E170: 5059 | F170: 4200 | G170: 859 | H170: 34
A171: 8 | B171: O/S | C171: 128 | D171: 232 | E171: 5084 | F171: 4249 | G171: 835 | H171: 34
A172: 8 | B172: O/S | C172: 129 | D172: 232 | E172: 5035 | F172: 3965 | G172: 1070 | H172: 37
A173: 8 | B173: O/S | C173: 128 | D173: 232 | E173: 5136 | F173: 4078 | G173: 1058 | H173: 34
A174: 8 | B174: O/S | C174: 129 | D174: 232 | E174: 5076 | F174: 4358 | G174: 718 | H174: 33
A175: 8 | B175: O/S | C175: 128 | D175: 232 | E175: 5100 | F175: 4379 | G175: 721 | H175: 32
A176: 8 | B176: O/S | D176: 232 | G176: 0
A177: 8 | B177: O/S | D177: 232 | G177: 0
A178: 8 | B178: O/S | D178: 232 | G178: 0
A179: 8 | B179: O/S | D179: 232 | G179: 0
A180: 8 | B180: O/S | D180: 232 | G180: 0
A181: 8 | B181: O/S | D181: 232 | G181: 0
A182: 8 | B182: O/S | D182: 232 | G182: 0
A183: 8 | B183: O/S | C183: 127 | D183: 232 | E183: 4105 | F183: 2998 | G183: 1107 | H183: 48
A184: 8 | B184: O/S | C184: 129 | D184: 232 | E184: 4026 | F184: 3121 | G184: 905 | H184: 49
A185: 8 | B185: O/S | C185: 129 | D185: 232 | E185: 4024 | F185: 2908 | G185: 1116 | H185: 51
A186: 8 | B186: O/S | C186: 126 | D186: 232 | E186: 3948 | F186: 2892 | G186: 1056 | H186: 51
A187: 8 | B187: O/S | C187: 126 | D187: 232 | E187: 4106 | F187: 3103 | G187: 1003 | H187: 46
A188: 8 | B188: O/S | C188: 129 | D188: 232 | E188: 4223 | F188: 3169 | G188: 1054 | H188: 44
A189: 8 | B189: O/S | C189: 129 | D189: 232 | E189: 4720 | F189: 3591 | G189: 1129 | H189: 44
A190: 8 | B190: O/S | C190: 133 | D190: 232 | E190: 4640 | F190: 3591 | G190: 1049 | H190: 42
A191: 8 | B191: O/S | C191: 129 | D191: 232 | E191: 4953 | F191: 3802 | G191: 1151 | H191: 38
A192: 8 | B192: O/S | C192: 130 | D192: 232 | E192: 4888 | F192: 3835 | G192: 1053 | H192: 39
A193: 8 | B193: O/S | C193: 129 | D193: 232 | E193: 5020 | F193: 3924 | G193: 1096 | H193: 37
A194: 8 | B194: O/S | C194: 128 | D194: 232 | E194: 5136 | F194: 4070 | G194: 1066 | H194: 35
A195: 9 | B195: O/S | C195: 129 | D195: 232 | E195: 5138 | F195: 4216 | G195: 922 | H195: 34
A196: 9 | B196: O/S | C196: 128 | D196: 232 | E196: 5318 | F196: 4233 | G196: =E196-F196 -> 1085 | H196: 35
A197: 9 | B197: O/S | C197: 128 | D197: 232 | E197: 5240 | F197: 4346 | G197: 894 | H197: 34
A198: 9 | B198: O/S | C198: 128 | D198: 232 | E198: 5198 | F198: 4338 | G198: 860 | H198: 33
A199: 9 | B199: O/S | C199: 129 | D199: 232 | E199: 5245 | F199: 4249 | G199: 996 | H199: 34
A200: 9 | B200: O/S | C200: 127 | D200: 232 | E200: 5018 | F200: 4002 | G200: 1016 | H200: 37
A201: 9 | B201: O/S | C201: 129 | D201: 232 | E201: 5064 | F201: 3989 | G201: 1075 | H201: 37
... 545 more rows

Sheet Feb
A1: February 2014 Dixie Binary Bottoming Cycle Data
A3: Date Feb | B3: Time | C3: Brine Flow [gpm] | D3: Brine Return Temp [F] | E3: Brine Supply Temp [F] | F3: Gen. Output [kW] | G3: Net [KW] | H3: Parasitic KW] | I3: T Dry Bulb [F]
A4: 1 | B4: 101 | C4: 4642 | D4: 149 | E4: 232 | F4: 5814 | G4: 4956 | H4: =F4-G4 -> 858 | I4: 30
A5: 1 | B5: 101.0416667 | C5: 4382 | D5: 147 | E5: 232 | F5: 5800 | G5: 4915 | H5: =Feb!F5-Feb!G5 -> 885 | I5: 26
A6: 1 | B6: 101.0833333 | C6: 4640 | D6: 149 | E6: 232 | F6: 6206 | G6: 5385 | H6: =Feb!F6-Feb!G6 -> 821 | I6: 26
A7: 1 | B7: 101.125 | C7: 4642 | D7: 148 | E7: 232 | F7: 6197 | G7: 5216 | H7: =Feb!F7-Feb!G7 -> 981 | I7: 24
A8: 1 | B8: 101.1666667 | C8: 4664 | D8: 145 | E8: 232 | F8: 6153 | G8: 5354 | H8: =Feb!F8-Feb!G8 -> 799 | I8: 24
A9: 1 | B9: 101.2083333 | C9: 4640 | D9: 146 | E9: 232 | F9: 6156 | G9: 5354 | H9: =Feb!F9-Feb!G9 -> 802 | I9: 23
A10: 1 | B10: 101.25 | C10: 4604 | D10: 148 | E10: 232 | F10: 6083 | G10: 5102 | H10: =Feb!F10-Feb!G10 -> 981 | I10: 23
A11: 1 | B11: 101.2916667 | C11: 4605 | D11: 146 | E11: 232 | F11: 6150 | G11: 5224 | H11: =Feb!F11-Feb!G11 -> 926 | I11: 22
A12: 1 | B12: 101.3333333 | C12: 4534 | D12: 144 | E12: 232 | F12: 5896 | G12: 5240 | H12: =Feb!F12-Feb!G12 -> 656 | I12: 22
A13: 1 | B13: 101.375 | C13: 4401 | D13: 143 | E13: 232 | F13: 5935 | G13: 5053 | H13: =Feb!F13-Feb!G13 -> 882 | I13: 29
A14: 1 | B14: 101.4166667 | C14: 4415 | D14: 146 | E14: 232 | F14: 5915 | G14: 5096 | H14: =Feb!F14-Feb!G14 -> 819 | I14: 34
A15: 1 | B15: 101.4583333 | C15: 4622 | D15: 148 | E15: 232 | F15: 6129 | G15: 5135 | H15: =Feb!F15-Feb!G15 -> 994 | I15: 34
A16: 1 | B16: 101.5 | C16: 4357 | D16: 142 | E16: 232 | F16: 5793 | G16: 4899 | H16: =Feb!F16-Feb!G16 -> 894 | I16: 42
A17: 1 | B17: 101.5416667 | C17: 4370 | D17: 146 | E17: 232 | F17: 5855 | G17: 4866 | H17: =Feb!F17-Feb!G17 -> 989 | I17: 44
A18: 1 | B18: 101.5833333 | C18: 4290 | D18: 143 | E18: 232 | F18: 5710 | G18: 4764 | H18: =Feb!F18-Feb!G18 -> 946 | I18: 45
A19: 1 | B19: 101.625 | C19: 4530 | D19: 145 | E19: 232 | F19: 6008 | G19: 4834 | H19: =Feb!F19-Feb!G19 -> 1174 | I19: 42
A20: 1 | B20: 101.6666667 | C20: 4365 | D20: 146 | E20: 232 | F20: 5909 | G20: 4704 | H20: =Feb!F20-Feb!G20 -> 1205 | I20: 41
A21: 1 | B21: 101.7083333 | C21: 4490 | D21: 144 | E21: 232 | F21: 6000 | G21: 4875 | H21: =Feb!F21-Feb!G21 -> 1125 | I21: 37
A22: 1 | B22: 101.75 | C22: 4530 | D22: 143 | E22: 232 | F22: 6080 | G22: 5053 | H22: =Feb!F22-Feb!G22 -> 1027 | I22: 34
A23: 1 | B23: 101.7916667 | C23: 4580 | D23: 149 | E23: 232 | F23: 5935 | G23: 4964 | H23: =Feb!F23-Feb!G23 -> 971 | I23: 34
A24: 1 | B24: 101.8333333 | C24: 4602 | D24: 146 | E24: 232 | F24: 5885 | G24: 4988 | H24: =Feb!F24-Feb!G24 -> 897 | I24: 32
A25: 1 | B25: 101.875 | C25: 4605 | D25: 150 | E25: 232 | F25: 5947 | G25: 5005 | H25: =Feb!F25-Feb!G25 -> 942 | I25: 30
A26: 1 | B26: 101.9166667 | C26: 4618 | D26: 148 | E26: 232 | F26: 5900 | G26: 5029 | H26: =Feb!F26-Feb!G26 -> 871 | I26: 32
A27: 1 | B27: 101.9583333 | C27: 4626 | D27: 148 | E27: 232 | F27: 5952 | G27: 4976 | H27: =Feb!F27-Feb!G27 -> 976 | I27: 28
A28: 2 | B28: 102 | C28: 4642 | D28: 147 | E28: 232 | F28: 5935 | G28: 4988 | H28: =F28-G28 -> 947 | I28: 27
A29: 2 | B29: 102.0416667 | C29: 4630 | D29: 149 | E29: 232 | F29: 5952 | G29: 5029 | H29: 923 | I29: 29
A30: 2 | B30: 102.0833333 | C30: 4639 | D30: 147 | E30: 232 | F30: 5988 | G30: 5021 | H30: 967 | I30: 25
A31: 2 | B31: 102.125 | C31: 4627 | D31: 148 | E31: 232 | F31: 6130 | G31: 5216 | H31: 914 | I31: 28
A32: 2 | B32: 102.1666667 | C32: 4655 | D32: 149 | E32: 232 | F32: 6140 | G32: 5273 | H32: 867 | I32: 22
A33: 2 | B33: 102.2083333 | C33: 4613 | D33: 145 | E33: 232 | F33: 6050 | G33: 5232 | H33: 818 | I33: 22
A34: 2 | B34: 102.25 | C34: 4603 | D34: 145 | E34: 232 | F34: 5896 | G34: 5000 | H34: 896 | I34: 24
A35: 2 | B35: 102.2916667 | C35: 4610 | D35: 145 | E35: 232 | F35: 5923 | G35: 5159 | H35: 764 | I35: 24
A36: 2 | B36: 102.3333333 | C36: 4563 | D36: 145 | E36: 232 | F36: 5710 | G36: 4988 | H36: 722 | I36: 24
A37: 2 | B37: 102.375 | C37: 4517 | D37: 144 | E37: 232 | F37: 5763 | G37: 4982 | H37: 781 | I37: 27
A38: 2 | B38: 102.4166667 | C38: 4702 | D38: 146 | E38: 232 | F38: 5832 | G38: 5102 | H38: 730 | I38: 28
A39: 2 | B39: 102.4583333 | C39: 4432 | D39: 148 | E39: 232 | F39: 5636 | G39: 4818 | H39: 818 | I39: 34
A40: 2 | B40: 102.5 | C40: 4472 | D40: 143 | E40: 232 | F40: 5706 | G40: 4769 | H40: 937 | I40: 36
A41: 2 | B41: 102.5416667 | C41: 4801 | D41: 150 | E41: 232 | F41: 5912 | G41: 5021 | H41: 891 | I41: 38
A42: 2 | B42: 102.5833333 | C42: 4781 | D42: 151 | E42: 232 | F42: 6015 | G42: 5070 | H42: 945 | I42: 41
A43: 2 | B43: 102.625 | C43: 4692 | D43: 147 | E43: 232 | F43: 5943 | G43: 4940 | H43: 1003 | I43: 39
A44: 2 | B44: 102.6666667 | C44: 4665 | D44: 145 | E44: 232 | F44: 5835 | G44: 4923 | H44: 912 | I44: 40
A45: 2 | B45: 102.7083333 | C45: 4857 | D45: 147 | E45: 232 | F45: 6117 | G45: 5013 | H45: 1104 | I45: 37
A46: 2 | B46: 102.75 | C46: 4599 | D46: 145 | E46: 232 | F46: 5840 | G46: 4907 | H46: 933 | I46: 37
A47: 2 | B47: 102.7916667 | C47: 4602 | D47: 147 | E47: 232 | F47: 5950 | G47: 4972 | H47: 978 | I47: 37
A48: 2 | B48: 102.8333333 | C48: 4600 | D48: 148 | E48: 232 | F48: 5560 | G48: 4801 | H48: 759 | I48: 34
A49: 2 | B49: 102.875 | C49: 4650 | D49: 148 | E49: 232 | F49: 5947 | G49: 4964 | H49: 983 | I49: 31
A50: 2 | B50: 102.9166667 | C50: 4704 | D50: 147 | E50: 232 | F50: 5975 | G50: 5053 | H50: 922 | I50: 32
A51: 2 | B51: 102.9583333 | C51: 4615 | D51: 151 | E51: 232 | F51: 5630 | G51: 4681 | H51: 949 | I51: 34
A52: 3 | B52: 103 | C52: 4600 | D52: 148 | E52: 232 | F52: 5528 | G52: 4568 | H52: 960 | I52: 34
A53: 3 | B53: 103.0416667 | C53: 4644 | D53: 147 | E53: 232 | F53: 5630 | G53: 4712 | H53: 918 | I53: 29
A54: 3 | B54: 103.0833333 | C54: 4618 | D54: 147 | E54: 232 | F54: 5526 | G54: 4722 | H54: 804 | I54: 30
A55: 3 | B55: 103.125 | C55: 4625 | D55: 150 | E55: 232 | F55: 5630 | G55: 4828 | H55: 802 | I55: 29
A56: 3 | B56: 103.1666667 | C56: 4650 | D56: 146 | E56: 232 | F56: 5750 | G56: 4940 | H56: 810 | I56: 27
A57: 3 | B57: 103.2083333 | C57: 4652 | D57: 146 | E57: 232 | F57: 5974 | G57: 5061 | H57: 913 | I57: 28
A58: 3 | B58: 103.25 | C58: 4282 | D58: 145 | E58: 232 | F58: 5930 | G58: 5183 | H58: 747 | I58: 26
A59: 3 | B59: 103.2916667 | C59: 4532 | D59: 144 | E59: 232 | F59: 6160 | G59: 5338 | H59: 822 | I59: 29
A60: 3 | B60: 103.3333333 | C60: 4532 | D60: 146 | E60: 232 | F60: 6292 | G60: 5419 | H60: =F60-G60 -> 873 | I60: 30
A61: 3 | B61: 103.375 | C61: 4462 | D61: 142 | E61: 232 | F61: 6188 | G61: 5289 | H61: 899 | I61: 30
A62: 3 | B62: 103.4166667 | C62: 4273 | D62: 145 | E62: 232 | F62: 6007 | G62: 5061 | H62: 946 | I62: 34
A63: 3 | B63: 103.4583333 | C63: 4552 | D63: 147 | E63: 232 | F63: 6351 | G63: 5332 | H63: 1019 | I63: 35
A64: 3 | B64: 103.5 | C64: 4702 | D64: 145 | E64: 232 | F64: 6369 | G64: 5150 | H64: 1219 | I64: 36
A65: 3 | B65: 103.5416667 | C65: 4439 | D65: 145 | E65: 232 | F65: 6112 | G65: 4964 | H65: 1148 | I65: 38
A66: 3 | B66: 103.5833333 | C66: 4414 | D66: 142 | E66: 232 | F66: 6091 | G66: 4761 | H66: 1330 | I66: 41
A67: 3 | B67: 103.625 | C67: 4882 | D67: 143 | E67: 232 | F67: 6033 | G67: 4692 | H67: 1341 | I67: 41
A68: 3 | B68: 103.6666667 | C68: 4501 | D68: 145 | E68: 232 | F68: 3186 | G68: 4785 | H68: -1599 | I68: 39
A69: 3 | B69: 103.7083333 | C69: 4384 | D69: 145 | E69: 232 | F69: 6127 | G69: 4720 | H69: 1407 | I69: 39
A70: 3 | B70: 103.75 | C70: 4522 | D70: 143 | E70: 232 | F70: 6211 | G70: 4988 | H70: 1223 | I70: 38
A71: 3 | B71: 103.7916667 | C71: 4575 | D71: 144 | E71: 232 | F71: 6380 | G71: 5125 | H71: 1255 | I71: 36
A72: 3 | B72: 103.8333333 | C72: 4590 | D72: 144 | E72: 232 | F72: 6388 | G72: 5167 | H72: 1221 | I72: 35
A73: 3 | B73: 103.875 | C73: 4530 | D73: 146 | E73: 232 | F73: 6192 | G73: 5143 | H73: 1049 | I73: 33
A74: 3 | B74: 103.9166667 | C74: 4601 | D74: 144 | E74: 232 | F74: 6286 | G74: 5183 | H74: 1103 | I74: 31
A75: 3 | B75: 103.9583333 | C75: 4560 | D75: 147 | E75: 232 | F75: 6262 | G75: 5216 | H75: 1046 | I75: 31
A76: 4 | B76: 104 | C76: 4551 | D76: 147 | E76: 232 | F76: 6216 | G76: 5223 | H76: 993 | I76: 31
A77: 4 | B77: 100.0416667 | C77: 4587 | D77: 147 | E77: 232 | F77: 6304 | G77: 5248 | H77: 1056 | I77: 32
A78: 4 | B78: 100.0833333 | C78: 4640 | D78: 146 | E78: 232 | F78: 6336 | G78: 5258 | H78: 1078 | I78: 34
A79: 4 | B79: 100.125 | C79: 4684 | D79: 148 | E79: 232 | F79: 6389 | G79: 5262 | H79: 1127 | I79: 36
A80: 4 | B80: 100.1666667 | C80: 4615 | D80: 147 | E80: 232 | F80: 6226 | G80: 5305 | H80: 921 | I80: 29
A81: 4 | B81: 100.2083333 | C81: 4628 | D81: 146 | E81: 232 | F81: 6145 | G81: 5240 | H81: 905 | I81: 28
A82: 4 | B82: 100.25 | C82: 4652 | D82: 149 | E82: 232 | F82: 6205 | G82: 5265 | H82: 940 | I82: 30
A83: 4 | B83: 100.2916667 | C83: 4612 | D83: 145 | E83: 232 | F83: 6105 | G83: 5102 | H83: 1003 | I83: 27
A84: 4 | B84: 100.3333333 | C84: 4429 | D84: 147 | E84: 232 | F84: 5928 | G84: 5135 | H84: 793 | I84: 31
A85: 4 | B85: 100.375 | C85: 4400 | D85: 145 | E85: 232 | F85: 5900 | G85: 4972 | H85: 928 | I85: 33
A86: 4 | B86: 100.4166667 | C86: 4434 | D86: 141 | E86: 232 | F86: 6316 | G86: 5070 | H86: 1246 | I86: 36
A87: 4 | B87: 100.4583333 | C87: 4473 | D87: 145 | E87: 232 | F87: 6316 | G87: 4956 | H87: 1360 | I87: 38
A88: 4 | B88: 100.5 | C88: 4447 | D88: 143 | E88: 232 | F88: 6182 | G88: 4842 | H88: 1340 | I88: 42
A89: 4 | B89: 100.5416667 | C89: 4563 | D89: 142 | E89: 232 | F89: 6210 | G89: 4688 | H89: 1522 | I89: 43
A90: 4 | B90: 100.5833333 | C90: 4376 | D90: 147 | E90: 232 | F90: 6057 | G90: 4550 | H90: 1507 | I90: 43
A91: 4 | B91: 100.625 | C91: 4572 | D91: 148 | E91: 232 | F91: 6154 | G91: 4793 | H91: 1361 | I91: 40
A92: 4 | B92: 100.6666667 | C92: 4588 | D92: 148 | E92: 232 | F92: 6155 | G92: 4777 | H92: =F92-G92 -> 1378 | I92: 42
A93: 4 | B93: 100.7083333 | C93: 4556 | D93: 147 | E93: 232 | F93: 6202 | G93: 4883 | H93: 1319 | I93: 39
A94: 4 | B94: 100.75 | C94: 4486 | D94: 145 | E94: 232 | F94: 6335 | G94: 4907 | H94: 1428 | I94: 37 | P94: os
A95: 4 | B95: 100.7916667 | C95: 4484 | D95: 146 | E95: 232 | F95: 6250 | G95: 4923 | H95: 1327 | I95: 35
A96: 4 | B96: 100.8333333 | C96: 4455 | D96: 143 | E96: 232 | F96: 6375 | G96: 5200 | H96: 1175 | I96: 30
A97: 4 | B97: 100.875 | C97: 4438 | D97: 141 | E97: 232 | F97: 6267 | G97: 5070 | H97: 1197 | I97: 32
A98: 4 | B98: 100.9166667 | H98: 0
A99: 4 | B99: 100.9583333 | C99: 4523 | D99: 144 | E99: 232 | F99: 6406 | G99: 5362 | H99: 1044 | I99: 27
A100: 5 | B100: 100 | C100: 4269 | D100: 139 | E100: 232 | F100: 5840 | G100: 5013 | H100: 827 | I100: 28
A101: 5 | B101: 100.0416667 | C101: 4091 | D101: 142 | E101: 232 | F101: 5609 | G101: 4828 | H101: 781 | I101: 29
A102: 5 | B102: 100.0833333 | C102: 4477 | D102: 142 | E102: 232 | F102: 6133 | G102: 5191 | H102: 942 | I102: 26
A103: 5 | B103: 100.125 | C103: 4543 | D103: 143 | E103: 232 | F103: 6124 | G103: 5338 | H103: 786 | I103: 25
A104: 5 | B104: 100.1666667 | C104: 4572 | D104: 142 | E104: 232 | F104: 6130 | G104: 5380 | H104: 750 | I104: 25
A105: 5 | B105: 100.2083333 | C105: 4504 | D105: 142 | E105: 232 | F105: 6127 | G105: 5370 | H105: 757 | I105: 26
A106: 5 | B106: 100.25 | C106: 4219 | D106: 145 | E106: 232 | F106: 5944 | G106: 5037 | H106: 907 | I106: 26
A107: 5 | B107: 100.2916667 | C107: 4251 | D107: 141 | E107: 232 | F107: 5840 | G107: 5110 | H107: 730 | I107: 25
A108: 5 | B108: 100.3333333 | C108: 4295 | D108: 144 | E108: 232 | F108: 5884 | G108: 5102 | H108: 782 | I108: 28
A109: 5 | B109: 100.375 | C109: 4128 | D109: 144 | E109: 232 | F109: 5851 | G109: 4980 | H109: 871 | I109: 32
A110: 5 | B110: 100.4166667 | C110: 4250 | D110: 145 | E110: 232 | F110: 6044 | G110: 5053 | H110: 991 | I110: 36
A111: 5 | B111: 100.4583333 | C111: 4370 | D111: 146 | E111: 232 | F111: 6135 | G111: 4891 | H111: 1244 | I111: 38
A112: 5 | B112: 100.5 | C112: 4499 | D112: 147 | E112: 232 | F112: 6131 | G112: 4606 | H112: 1525 | I112: 44
A113: 5 | B113: 100.5416667 | C113: 4544 | D113: 150 | E113: 232 | F113: 5811 | G113: 4314 | H113: 1497 | I113: 47
A114: 5 | B114: 100.5833333 | C114: 4548 | D114: 148 | E114: 232 | F114: 5759 | G114: 4485 | H114: 1274 | I114: 47
A115: 5 | B115: 100.625 | C115: 3584 | D115: 130 | E115: 232 | F115: 4276 | G115: 3168 | H115: 1108 | I115: 48
A116: 5 | B116: 100.6666667 | C116: 4448 | D116: 148 | E116: 232 | F116: 5433 | G116: 4184 | H116: 1249 | I116: 48
A117: 5 | B117: 100.7083333 | C117: 4406 | D117: 148 | E117: 232 | F117: 5721 | G117: 4314 | H117: 1407 | I117: 45
A118: 5 | B118: 100.75 | C118: 4381 | D118: 147 | E118: 232 | F118: 5799 | G118: 4322 | H118: 1477 | I118: 43
A119: 5 | B119: 100.7916667 | C119: 4358 | D119: 147 | E119: 232 | F119: 5865 | G119: 4444 | H119: 1421 | I119: 38
A120: 5 | B120: 100.8333333 | C120: 4361 | D120: 143 | E120: 232 | F120: 6072 | G120: 4899 | H120: 1173 | I120: 34
A121: 5 | B121: 100.875 | C121: 4335 | D121: 142 | E121: 232 | F121: 5905 | G121: 4761 | H121: 1144 | I121: 35
A122: 5 | B122: 100.9166667 | C122: 4336 | D122: 146 | E122: 232 | F122: 6022 | G122: 4882 | H122: 1140 | I122: 33
A123: 5 | B123: 100.9583333 | C123: 4344 | D123: 140 | E123: 232 | F123: 5985 | G123: 5078 | H123: 907 | I123: 28
A124: 6 | B124: 100 | C124: 4444 | D124: 145 | E124: 232 | F124: 6133 | G124: 5110 | H124: =F124-G124 -> 1023 | I124: 28
A125: 6 | B125: 100.0416667 | C125: 4390 | D125: 143 | E125: 232 | F125: 6055 | G125: 5094 | H125: 961 | I125: 27
A126: 6 | B126: 100.0833333 | C126: 4411 | D126: 142 | E126: 232 | F126: 5960 | G126: 5224 | H126: 736 | I126: 27
A127: 6 | B127: 100.125 | C127: 4350 | D127: 140 | E127: 232 | F127: 5946 | G127: 5135 | H127: 811 | I127: 29
A128: 6 | B128: 100.1666667 | C128: 4383 | D128: 145 | E128: 232 | F128: 6125 | G128: 5070 | H128: 1055 | I128: 28
A129: 6 | B129: 100.2083333 | C129: 4407 | D129: 147 | E129: 232 | F129: 6148 | G129: 5135 | H129: 1013 | I129: 31
A130: 6 | B130: 100.25 | C130: 4376 | D130: 141 | E130: 232 | F130: 6012 | G130: 4907 | H130: 1105 | I130: 34
A131: 6 | B131: 100.2916667 | C131: 4386 | D131: 141 | E131: 232 | F131: 6073 | G131: 5029 | H131: 1044 | I131: 33
A132: 6 | B132: 100.3333333 | C132: 4391 | D132: 144 | E132: 232 | F132: 6066 | G132: 4996 | H132: 1070 | I132: 31
A133: 6 | B133: 100.375 | C133: 4370 | D133: 140 | E133: 232 | F133: 5950 | G133: 5070 | H133: 880 | I133: 31
A134: 6 | B134: 100.4166667 | C134: 4378 | D134: 140 | E134: 232 | F134: 5965 | G134: 5086 | H134: 879 | I134: 32
A135: 6 | B135: 100.4583333 | C135: 4270 | D135: 141 | E135: 232 | F135: 5894 | G135: 4834 | H135: 1060 | I135: 38
A136: 6 | B136: 100.5 | C136: 4303 | D136: 145 | E136: 232 | F136: 6039 | G136: 4704 | H136: 1335 | I136: 40
A137: 6 | B137: 100.5416667 | C137: 4213 | D137: 141 | E137: 232 | F137: 5829 | G137: 4468 | H137: 1361 | I137: 45
A138: 6 | B138: 100.5833333 | C138: 4312 | D138: 140 | E138: 232 | F138: 5613 | G138: 4363 | H138: 1250 | I138: 45
A139: 6 | B139: 100.625 | C139: 4579 | D139: 149 | E139: 232 | F139: 6078 | G139: 4582 | H139: 1496 | I139: 44
A140: 6 | B140: 100.6666667 | C140: 4601 | D140: 147 | E140: 232 | F140: 5964 | G140: 4533 | H140: 1431 | I140: 43
A141: 6 | B141: 100.7083333 | C141: 4401 | D141: 148 | E141: 232 | F141: 5894 | G141: 4428 | H141: 1466 | I141: 43
A142: 6 | B142: 100.75 | C142: 4616 | D142: 146 | E142: 232 | F142: 6040 | G142: 4728 | H142: 1312 | I142: 42
A143: 6 | B143: 100.7916667 | C143: 4480 | D143: 143 | E143: 232 | F143: 5888 | G143: 4600 | H143: 1288 | I143: 40
A144: 6 | B144: 100.8333333 | C144: 4390 | D144: 144 | E144: 232 | F144: 6042 | G144: 4575 | H144: 1467 | I144: 39
A145: 6 | B145: 100.875 | C145: 4406 | D145: 143 | E145: 232 | F145: 6121 | G145: 4655 | H145: 1466 | I145: 37
A146: 6 | B146: 100.9166667 | C146: 4481 | D146: 146 | E146: 232 | F146: 6100 | G146: 4801 | H146: 1299 | I146: 38
A147: 6 | B147: 100.9583333 | C147: 4426 | D147: 146 | E147: 232 | F147: 6160 | G147: 4761 | H147: 1399 | I147: 38
A148: 7 | B148: 100 | C148: 4464 | D148: 144 | E148: 232 | F148: 6136 | G148: 4769 | H148: 1367 | I148: 39
A149: 7 | B149: 100.0416667 | C149: 4400 | D149: 146 | E149: 232 | F149: 6110 | G149: 5070 | H149: =F149-G149 -> 1040 | I149: 32
A150: 7 | B150: 100.0833333 | C150: 4444 | D150: 141 | E150: 232 | F150: 6017 | G150: 5053 | H150: 964 | I150: 31
A151: 7 | B151: 100.125 | C151: 4414 | D151: 146 | E151: 232 | F151: 6153 | G151: 5118 | H151: 1035 | I151: 33
A152: 7 | B152: 100.1666667 | C152: 4404 | D152: 144 | E152: 232 | F152: 6100 | G152: 5078 | H152: 1022 | I152: 32
A153: 7 | B153: 100.2083333 | C153: 4446 | D153: 146 | E153: 232 | F153: 6063 | G153: 5118 | H153: 945 | I153: 31
A154: 7 | B154: 100.25 | C154: 4414 | D154: 147 | E154: 232 | F154: 6152 | G154: 4915 | H154: 1237 | I154: 34
A155: 7 | B155: 100.2916667 | C155: 4434 | D155: 146 | E155: 232 | F155: 6192 | G155: 4980 | H155: 1212 | I155: 32
A156: 7 | B156: 100.3333333 | C156: 4366 | D156: 145 | E156: 232 | F156: 5816 | G156: 4866 | H156: 950 | I156: 34
A157: 7 | B157: 100.375 | C157: 4421 | D157: 144 | E157: 232 | F157: 6065 | G157: 4598 | H157: 1467 | I157: 37
A158: 7 | B158: 100.4166667 | C158: 4271 | D158: 142 | E158: 232 | F158: 5950 | G158: 4468 | H158: 1482 | I158: 39
A159: 7 | B159: 100.4583333 | C159: 4249 | D159: 145 | E159: 232 | F159: 5394 | G159: 4151 | H159: 1243 | I159: 45
A160: 7 | B160: 100.5 | C160: 4208 | D160: 142 | E160: 232 | F160: 4722 | G160: 3510 | H160: 1212 | I160: 53
A161: 7 | B161: 100.5416667 | C161: 4485 | D161: 149 | E161: 232 | F161: 4812 | G161: 3615 | H161: 1197 | I161: 53
A162: 7 | B162: 100.5833333 | C162: 4178 | D162: 144 | E162: 232 | F162: 4551 | G162: 3363 | H162: 1188 | I162: 54
A163: 7 | B163: 100.625 | C163: 4133 | D163: 147 | E163: 232 | F163: 4496 | G163: 3323 | H163: 1173 | I163: 55
A164: 7 | B164: 100.6666667 | C164: 4475 | D164: 151 | E164: 232 | F164: 4875 | G164: 3420 | H164: 1455 | I164: 54
A165: 7 | B165: 100.7083333 | C165: 4495 | D165: 150 | E165: 232 | F165: 4935 | G165: 3721 | H165: 1214 | I165: 52
A166: 7 | B166: 100.75 | C166: 4527 | D166: 151 | E166: 232 | F166: 5143 | G166: 3664 | H166: 1479 | I166: 51
A167: 7 | B167: 100.7916667 | C167: 4510 | D167: 149 | E167: 232 | F167: 5359 | G167: 3835 | H167: 1524 | I167: 49
A168: 7 | B168: 100.8333333 | C168: 4456 | D168: 148 | E168: 232 | F168: 5152 | G168: 3875 | H168: 1277 | I168: 50
A169: 7 | B169: 100.875 | C169: 4468 | D169: 147 | E169: 232 | F169: 5101 | G169: 3851 | H169: 1250 | I169: 51
A170: 7 | B170: 100.9166667 | C170: 4472 | D170: 150 | E170: 232 | F170: 5222 | G170: 3843 | H170: 1379 | I170: 51
A171: 7 | B171: 100.9583333 | C171: 4263 | D171: 147 | E171: 232 | F171: 5190 | G171: 3729 | H171: 1461 | I171: 50
A172: 8 | B172: 00:00:00 | C172: 4503 | D172: 149 | E172: 232 | F172: 5467 | G172: 3948 | H172: 1519 | I172: 47
A173: 8 | B173: 01:00:00 | C173: 4157 | D173: 148 | E173: 232 | F173: 4675 | G173: 3290 | H173: 1385 | I173: 53
A174: 8 | B174: 02:00:00 | C174: 4147 | D174: 146 | E174: 232 | F174: 4579 | G174: 3209 | H174: 1370 | I174: 54
A175: 8 | B175: 03:00:00 | C175: 4433 | D175: 148 | E175: 232 | F175: 4729 | G175: 3412 | H175: 1317 | I175: 53
A176: 8 | B176: 04:00:00 | C176: 4480 | D176: 146 | E176: 232 | F176: 4844 | G176: 3623 | H176: 1221 | I176: 51
A177: 8 | B177: 05:00:00 | C177: 4495 | D177: 146 | E177: 232 | F177: 4880 | G177: 3550 | H177: 1330 | I177: 52
A178: 8 | B178: 06:00:00 | C178: 4426 | D178: 145 | E178: 232 | F178: 4927 | G178: 3705 | H178: 1222 | I178: 52
A179: 8 | B179: 07:00:00 | C179: 4449 | D179: 149 | E179: 232 | F179: 5202 | G179: 3867 | H179: 1335 | I179: 51
A180: 8 | B180: 08:00:00 | C180: 4469 | D180: 146 | E180: 232 | F180: 5061 | G180: 3761 | H180: 1300 | I180: 53
A181: 8 | B181: 09:00:00 | C181: 4111 | D181: 145 | E181: 232 | F181: 4432 | G181: 3136 | H181: 1296 | I181: 57
A182: 8 | B182: 10:00:00 | C182: 4228 | D182: 146 | E182: 232 | F182: 4398 | G182: 3144 | H182: 1254 | I182: 60
A183: 8 | B183: 11:00:00 | C183: 4447 | D183: 150 | E183: 232 | F183: 4430 | G183: 3111 | H183: 1319 | I183: 60
A184: 8 | B184: 12:00:00 | C184: 4401 | D184: 150 | E184: 232 | F184: 4414 | G184: 3030 | H184: 1384 | I184: 60
A185: 8 | B185: 13:00:00 | C185: 4310 | D185: 148 | E185: 232 | F185: 4248 | G185: 3030 | H185: 1218 | I185: 62
A186: 8 | B186: 14:00:00 | C186: 4382 | D186: 148 | E186: 232 | F186: 3897 | G186: 2770 | H186: 1127 | I186: 63
A187: 8 | B187: 15:00:00 | C187: 4400 | D187: 150 | E187: 232 | F187: 3967 | G187: 2705 | H187: 1262 | I187: 62
A188: 8 | B188: 16:00:00 | C188: 4434 | D188: 149 | E188: 232 | F188: 3906 | G188: 2689 | H188: 1217 | I188: 61
A189: 8 | B189: 17:00:00 | C189: 4268 | D189: 146 | E189: 232 | F189: 4107 | G189: 2908 | H189: 1199 | I189: 58
A190: 8 | B190: 18:00:00 | C190: 4211 | D190: 147 | E190: 232 | F190: 4186 | G190: 2811 | H190: 1375 | I190: 59
A191: 8 | B191: 19:00:00 | C191: 4199 | D191: 147 | E191: 232 | F191: 4222 | G191: 2786 | H191: 1436 | I191: 59
A192: 8 | B192: 20:00:00 | C192: 4246 | D192: 149 | E192: 232 | F192: 4455 | G192: 3006 | H192: 1449 | I192: 56
A193: 8 | B193: 21:00:00 | C193: 4333 | D193: 148 | E193: 232 | F193: 4511 | G193: 3315 | H193: 1196 | I193: 55
A194: 8 | B194: 22:00:00 | C194: 4439 | D194: 152 | E194: 232 | F194: 4590 | G194: 3063 | H194: 1527 | I194: 56
A195: 8 | B195: 23:00:00 | C195: 4286 | D195: 148 | E195: 232 | F195: 4570 | G195: 3331 | H195: 1239 | I195: 55
A196: 9 | B196: 1 | C196: 4269 | D196: 146 | E196: 232 | F196: 4395 | G196: 3006 | H196: 1389 | I196: 57
A197: 9 | B197: 1.041666667 | C197: 4515 | D197: 147 | E197: 232 | F197: 4900 | G197: 3420 | H197: 1480 | I197: 55
A198: 9 | B198: 1.083333333 | C198: 4475 | D198: 146 | E198: 232 | F198: 4840 | G198: 3530 | H198: 1310 | I198: 54
A199: 9 | B199: 1.125 | C199: 4515 | D199: 146 | E199: 232 | F199: 4895 | G199: 3566 | H199: 1329 | I199: 53
A200: 9 | B200: 1.166666667 | C200: 4507 | D200: 146 | E200: 232 | F200: 5060 | G200: 3730 | H200: 1330 | I200: 51
A201: 9 | B201: 1.208333333 | C201: 4516 | D201: 148 | E201: 232 | F201: 5387 | G201: 4135 | H201: 1252 | I201: 48
... 475 more rows

Sheet March
A1: March 2014 Dixie Binary Bottoming Cycle Data
A3: Date Mar | B3: Time | C3: Brine Flow [gpm] | D3: Brine Return Temp [F] | E3: Brine Supply Temp [F] | F3: Gen. Output [kW] | G3: Net [KW] | H3: Parasitic KW] | I3: T Dry Bulb [F]
A4: 1 | B4: 100.0416667 | C4: 4400 | D4: 148 | E4: 232 | F4: 5468 | G4: 4127 | H4: =F4-G4 -> 1341 | I4: 46
A5: 1 | B5: 100.0833333 | C5: 4340 | D5: 148 | E5: 232 | F5: 5420 | G5: 4078 | H5: =F5-G5 -> 1342 | I5: 47
A6: 1 | B6: 100.125 | C6: 4354 | D6: 147 | E6: 232 | F6: 5720 | G6: 4420 | H6: 1300 | I6: 43
A7: 1 | B7: 100.1666667 | C7: 4615 | D7: 148 | E7: 232 | F7: 5779 | G7: 4444 | H7: 1335 | I7: 45
A8: 1 | B8: 100.2083333 | C8: 4418 | D8: 147 | E8: 232 | F8: 5727 | G8: 4379 | H8: 1348 | I8: 42
A9: 1 | B9: 100.25 | C9: 4400 | D9: 147 | E9: 232 | F9: 5712 | G9: 4444 | H9: 1268 | I9: 42
A10: 1 | B10: 100.2916667 | C10: 4277 | D10: 145 | E10: 232 | F10: 5821 | G10: 4509 | H10: 1312 | I10: 42
A11: 1 | B11: 100.3333333 | C11: 4287 | D11: 144 | E11: 232 | F11: 5651 | G11: 4428 | H11: 1223 | I11: 42
A12: 1 | B12: 100.375 | C12: 4521 | D12: 148 | E12: 232 | F12: 5318 | G12: 4160 | H12: 1158 | I12: 45
A13: 1 | B13: 100.4166667 | C13: 4296 | D13: 144 | E13: 232 | F13: 5082 | G13: 3802 | H13: 1280 | I13: 55
A14: 1 | B14: 100.4583333 | C14: 4545 | D14: 152 | E14: 232 | F14: 4971 | G14: 3770 | H14: 1201 | I14: 56
A15: 1 | B15: 100.5 | C15: 4336 | D15: 146 | E15: 232 | F15: 4023 | G15: 3225 | H15: 798 | I15: 58
A16: 1 | B16: 100.5416667 | C16: 4475 | D16: 152 | E16: 232 | F16: 4618 | G16: 3461 | H16: 1157 | I16: 57
A17: 1 | B17: 100.5833333 | C17: 4402 | D17: 149 | E17: 232 | F17: 4284 | G17: 3168 | H17: 1116 | I17: 60
A18: 1 | B18: 100.625 | C18: 4550 | D18: 150 | E18: 232 | F18: 4578 | G18: 3420 | H18: 1158 | I18: 59
A19: 1 | B19: 100.6666667 | C19: 4307 | D19: 146 | E19: 232 | F19: 4325 | G19: 3217 | H19: 1108 | I19: 58
A20: 1 | B20: 100.7083333 | C20: 4616 | D20: 152 | E20: 232 | F20: 4752 | G20: 3575 | H20: 1177 | I20: 56
A21: 1 | B21: 100.75 | C21: 4655 | D21: 152 | E21: 232 | F21: 4890 | G21: 3656 | H21: 1234 | I21: 53
A22: 1 | B22: 100.7916667 | C22: 4400 | D22: 147 | E22: 232 | F22: 5110 | G22: 3883 | H22: 1227 | I22: 47
A23: 1 | B23: 100.8333333 | C23: 4584 | D23: 151 | E23: 232 | F23: 5680 | G23: 4160 | H23: 1520 | I23: 46
A24: 1 | B24: 100.875 | C24: 4380 | D24: 148 | E24: 232 | F24: 5240 | G24: 3721 | H24: 1519 | I24: 48
A25: 1 | B25: 100.9166667 | C25: 4470 | D25: 147 | E25: 232 | F25: 5575 | G25: 4220 | H25: 1355 | I25: 45
A26: 1 | B26: 100.9583333 | C26: 4615 | D26: 148 | E26: 232 | F26: 5860 | G26: 4452 | H26: 1408 | I26: 43
A27: 2 | B27: 100 | C27: 4340 | D27: 147 | E27: 232 | F27: 5680 | G27: 4411 | H27: 1269 | I27: 42
A28: 2 | B28: 100.0416667 | C28: 4600 | D28: 148 | E28: 232 | F28: 6155 | G28: 4769 | H28: 1386 | I28: 38
A29: 2 | B29: 100.0833333 | C29: 4622 | D29: 149 | E29: 232 | F29: 6180 | G29: 4834 | H29: 1346 | I29: 37
A30: 2 | B30: 100.125 | C30: 4627 | D30: 149 | E30: 232 | F30: 5960 | G30: 4680 | H30: 1280 | I30: 40
A31: 2 | B31: 100.1666667 | C31: 4601 | D31: 148 | E31: 232 | F31: 6280 | G31: 4923 | H31: 1357 | I31: 36
A32: 2 | B32: 100.2083333 | C32: 4623 | D32: 147 | E32: 232 | F32: 6180 | G32: 4837 | H32: 1343 | I32: 40
A33: 2 | B33: 100.25 | C33: 4581 | D33: 146 | E33: 232 | F33: 6266 | G33: 4915 | H33: 1351 | I33: 33
A34: 2 | B34: 100.2916667 | C34: 4328 | D34: 145 | E34: 232 | F34: 5946 | G34: 4915 | H34: 1031 | I34: 35
A35: 2 | B35: 100.3333333 | C35: 4214 | D35: 145 | E35: 232 | F35: 5802 | G35: 4363 | H35: 1439 | I35: 39
A36: 2 | B36: 100.375 | C36: 4210 | D36: 143 | E36: 232 | F36: 5510 | G36: 4249 | H36: 1261 | I36: 44
A37: 2 | B37: 100.4166667 | C37: 4198 | D37: 143 | E37: 232 | F37: 5174 | G37: 3940 | H37: 1234 | I37: 53
A38: 2 | B38: 100.4583333 | C38: 4262 | D38: 147 | E38: 232 | F38: 5134 | G38: 3713 | H38: 1421 | I38: 52
A39: 2 | B39: 100.5 | C39: 4235 | D39: 147 | E39: 232 | F39: 4877 | G39: 3477 | H39: 1400 | I39: 54
A40: 2 | B40: 100.5416667 | C40: 4232 | D40: 145 | E40: 232 | F40: 4551 | G40: 3282 | H40: 1269 | I40: 57
A41: 2 | B41: 100.5833333 | C41: 4508 | D41: 151 | E41: 232 | F41: 4677 | G41: 3420 | H41: 1257 | I41: 58
A42: 2 | B42: 100.625 | C42: 4517 | D42: 151 | E42: 232 | F42: 4577 | G42: 3396 | H42: 1181 | I42: 58
A43: 2 | B43: 100.6666667 | C43: 4245 | D43: 145 | E43: 232 | F43: 4202 | G43: 3038 | H43: 1164 | I43: 59
A44: 2 | B44: 100.7083333 | C44: 4531 | D44: 153 | E44: 232 | F44: 4532 | G44: 3315 | H44: 1217 | I44: 58
A45: 2 | B45: 100.75 | C45: 4322 | D45: 149 | E45: 232 | F45: 4620 | G45: 3326 | H45: 1294 | I45: 56
A46: 2 | B46: 100.7916667 | C46: 4458 | D46: 147 | E46: 232 | F46: 4640 | G46: 3420 | H46: 1220 | I46: 56
A47: 2 | B47: 100.8333333 | C47: 4583 | D47: 152 | E47: 232 | F47: 4925 | G47: 3599 | H47: 1326 | I47: 55
A48: 2 | B48: 100.875 | C48: 4572 | D48: 151 | E48: 232 | F48: 4950 | G48: 3603 | H48: 1347 | I48: 56
A49: 2 | B49: 100.9166667 | C49: 4360 | D49: 148 | E49: 232 | F49: 4760 | G49: 3453 | H49: 1307 | I49: 55
A50: 2 | B50: 100.9583333 | C50: 4315 | D50: 150 | E50: 232 | F50: 4850 | G50: 3550 | H50: 1300 | I50: 55
A51: 3 | B51: 100 | C51: 4344 | D51: 147 | E51: 232 | F51: 5180 | G51: 3810 | H51: 1370 | I51: 49
A52: 3 | B52: 100.0416667 | C52: 4455 | D52: 149 | E52: 232 | F52: 5527 | G52: 4095 | H52: 1432 | I52: 46
A53: 3 | B53: 100.0833333 | C53: 4553 | D53: 147 | E53: 232 | F53: 5910 | G53: 4615 | H53: 1295 | I53: 40
A54: 3 | B54: 100.125 | C54: 4574 | D54: 150 | E54: 232 | F54: 5950 | G54: 4590 | H54: 1360 | I54: 41
A55: 3 | B55: 100.1666667 | C55: 4560 | D55: 148 | E55: 232 | F55: 5975 | G55: 4712 | H55: 1263 | I55: 39
A56: 3 | B56: 100.2083333 | C56: 4320 | D56: 146 | E56: 232 | F56: 5836 | G56: 4514 | H56: 1322 | I56: 37
A57: 3 | B57: 100.25 | C57: 4561 | D57: 147 | E57: 232 | F57: 6108 | G57: 4931 | H57: 1177 | I57: 35
A58: 3 | B58: 100.2916667 | C58: 4619 | D58: 149 | E58: 232 | F58: 6155 | G58: 4623 | H58: 1532 | I58: 40
A59: 3 | B59: 100.3333333 | C59: 4185 | D59: 145 | E59: 232 | F59: 5380 | G59: 4103 | H59: 1277 | I59: 44
A60: 3 | B60: 100.375 | C60: 4124 | D60: 145 | E60: 232 | F60: 5242 | G60: 3761 | H60: 1481 | I60: 49
A61: 3 | B61: 100.4166667 | C61: 4094 | D61: 143 | E61: 232 | F61: 4755 | G61: 3583 | H61: 1172 | I61: 53
A62: 3 | B62: 100.4583333 | C62: 4124 | D62: 144 | E62: 232 | F62: 4548 | G62: 3103 | H62: 1445 | I62: 60
A63: 3 | B63: 100.5 | C63: 4180 | D63: 147 | E63: 232 | F63: 4146 | G63: 3014 | H63: 1132 | I63: 61
A64: 3 | B64: 100.5416667 | C64: 4103 | D64: 149 | E64: 232 | F64: 3754 | G64: 2648 | H64: 1106 | I64: 65
A65: 3 | B65: 100.5833333 | C65: 4360 | D65: 154 | E65: 232 | F65: 3980 | G65: 2567 | H65: 1413 | I65: 65
A66: 3 | B66: 100.625 | C66: 4362 | D66: 151 | E66: 232 | F66: 3754 | G66: 2405 | H66: 1349 | I66: 66
A67: 3 | B67: 100.6666667 | C67: 4264 | D67: 151 | E67: 232 | F67: 2189 | G67: 2372 | H67: -183 | I67: 66
A68: 3 | B68: 100.7083333 | C68: 4393 | D68: 151 | E68: 232 | F68: 3839 | G68: 2502 | H68: 1337 | I68: 63
A69: 3 | B69: 100.75 | C69: 4428 | D69: 153 | E69: 232 | F69: 3960 | G69: 2746 | H69: =F69-G69 -> 1214 | I69: 61
A70: 3 | B70: 100.7916667 | C70: 4460 | D70: 152 | E70: 232 | F70: 3785 | G70: 2518 | H70: 1267 | I70: 58
A71: 3 | B71: 100.8333333 | C71: 4478 | D71: 151 | E71: 232 | F71: 4218 | G71: 2949 | H71: 1269 | I71: 58
A72: 3 | B72: 100.875 | C72: 4486 | D72: 149 | E72: 232 | F72: 4840 | G72: 3445 | H72: 1395 | I72: 54
A73: 3 | B73: 100.9166667 | C73: 4482 | D73: 150 | E73: 232 | F73: 4830 | G73: 3566 | H73: 1264 | I73: 54
A74: 3 | B74: 100.9583333 | C74: 4542 | D74: 148 | E74: 232 | F74: 4904 | G74: 3656 | H74: 1248 | I74: 51
A75: 4 | B75: 100 | C75: 4551 | D75: 148 | E75: 232 | F75: 5190 | G75: 3940 | H75: 1250 | I75: 50
A76: 4 | B76: 100.0416667 | C76: 4248 | D76: 147 | E76: 232 | F76: 5085 | G76: 3840 | H76: 1245 | I76: 49
A77: 4 | B77: 100.0833333 | C77: 4483 | D77: 147 | E77: 232 | F77: 5389 | G77: 4111 | H77: 1278 | I77: 48
A78: 4 | B78: 100.125 | C78: 4314 | D78: 147 | E78: 232 | F78: 5134 | G78: 3904 | H78: 1230 | I78: 48
A79: 4 | B79: 100.1666667 | C79: 4484 | D79: 149 | E79: 232 | F79: 5194 | G79: 3940 | H79: 1254 | I79: 48
A80: 4 | B80: 100.2083333 | C80: 4491 | D80: 147 | E80: 232 | F80: 5458 | G80: 4095 | H80: 1363 | I80: 49
A81: 4 | B81: 100.25 | C81: 4480 | D81: 148 | E81: 232 | F81: 5393 | G81: 4030 | H81: 1363 | I81: 47
A82: 4 | B82: 100.2916667 | C82: 4172 | D82: 148 | E82: 232 | F82: 4998 | G82: 3648 | H82: 1350 | I82: 48
A83: 4 | B83: 100.3333333 | C83: 4163 | D83: 146 | E83: 232 | F83: 5025 | G83: 3778 | H83: 1247 | I83: 49
A84: 4 | B84: 100.375 | C84: 4171 | D84: 142 | E84: 232 | F84: 5022 | G84: 3786 | H84: 1236 | I84: 50
A85: 4 | B85: 100.4166667 | C85: 4118 | D85: 143 | E85: 232 | F85: 4802 | G85: 3534 | H85: 1268 | I85: 53
A86: 4 | B86: 100.4583333 | C86: 4217 | D86: 145 | E86: 232 | F86: 4792 | G86: 3456 | H86: 1336 | I86: 54
A87: 4 | B87: 100.5 | C87: 4334 | D87: 146 | E87: 232 | F87: 4733 | G87: 3412 | H87: 1321 | I87: 55
A88: 4 | B88: 100.5416667 | C88: 4376 | D88: 148 | E88: 232 | F88: 4614 | G88: 3436 | H88: 1178 | I88: 58
A89: 4 | B89: 100.5833333 | C89: 4445 | D89: 147 | E89: 232 | F89: 4372 | G89: 3071 | H89: 1301 | I89: 59
A90: 4 | B90: 100.625 | C90: 4325 | D90: 147 | E90: 232 | F90: 4291 | G90: 3128 | H90: 1163 | I90: 61
A91: 4 | B91: 100.6666667 | C91: 4330 | D91: 149 | E91: 232 | F91: 4409 | G91: 3193 | H91: 1216 | I91: 59
A92: 4 | B92: 100.7083333 | C92: 4368 | D92: 148 | E92: 232 | F92: 4388 | G92: 3193 | H92: 1195 | I92: 56
A93: 4 | B93: 100.75 | C93: 4470 | D93: 148 | E93: 232 | F93: 4635 | G93: 3250 | H93: 1385 | I93: 54
A94: 4 | B94: 100.7916667 | C94: 4468 | D94: 148 | E94: 232 | F94: 4895 | G94: 3502 | H94: 1393 | I94: 53
A95: 4 | B95: 100.8333333 | C95: 4363 | D95: 150 | E95: 232 | F95: 4850 | G95: 3510 | H95: 1340 | I95: 51
A96: 4 | B96: 100.875 | C96: 4300 | D96: 147 | E96: 232 | F96: 5150 | G96: 3702 | H96: 1448 | I96: 46
A97: 4 | B97: 100.9166667 | C97: 4542 | D97: 150 | E97: 232 | F97: 5512 | G97: 4062 | H97: 1450 | I97: 47
A98: 4 | B98: 100.9583333 | C98: 4345 | D98: 147 | E98: 232 | F98: 5584 | G98: 4290 | H98: 1294 | I98: 42
A99: 5 | B99: 100 | C99: 4450 | D99: 147 | E99: 232 | F99: 5620 | G99: 4355 | H99: 1265 | I99: 43
A100: 5 | B100: 100.0416667 | C100: 4285 | D100: 146 | E100: 232 | F100: 5697 | G100: 4444 | H100: 1253 | I100: 40
A101: 5 | B101: 100.0833333 | C101: 4322 | D101: 146 | E101: 232 | F101: 5756 | G101: 4566 | H101: 1190 | I101: 39
A102: 5 | B102: 100.125 | C102: 4431 | D102: 147 | E102: 232 | F102: 5822 | G102: 4550 | H102: 1272 | I102: 41
A103: 5 | B103: 100.1666667 | C103: 4457 | D103: 148 | E103: 232 | F103: 5706 | G103: 4525 | H103: 1181 | I103: 40
A104: 5 | B104: 100.2083333 | C104: 4462 | D104: 149 | E104: 232 | F104: 5888 | G104: 4696 | H104: 1192 | I104: 39
A105: 5 | B105: 100.25 | C105: 4505 | D105: 147 | E105: 232 | F105: 5714 | G105: 4452 | H105: 1262 | I105: 42
A106: 5 | B106: 100.2916667 | C106: 4445 | D106: 144 | E106: 232 | F106: 5825 | G106: 4712 | H106: 1113 | I106: 41
A107: 5 | B107: 100.3333333 | C107: 4451 | D107: 147 | E107: 232 | F107: 5833 | G107: 4371 | H107: 1462 | I107: 43
A108: 5 | B108: 100.375 | C108: 4065 | D108: 140 | E108: 232 | F108: 5255 | G108: 3916 | H108: 1339 | I108: 44
A109: 5 | B109: 100.4166667 | C109: 3967 | D109: 141 | E109: 232 | F109: 4963 | G109: 3705 | H109: 1258 | I109: 49
A110: 5 | B110: 100.4583333 | C110: 4008 | D110: 143 | E110: 232 | F110: 4567 | G110: 3317 | H110: 1250 | I110: 56
A111: 5 | B111: 100.5 | C111: 4025 | D111: 144 | E111: 232 | F111: 4224 | G111: 2900 | H111: 1324 | I111: 62
A112: 5 | B112: 100.5416667 | C112: 4230 | D112: 150 | E112: 232 | F112: 4267 | G112: 2868 | H112: 1399 | I112: 63
A113: 5 | B113: 100.5833333 | C113: 4148 | D113: 147 | E113: 232 | F113: 3945 | G113: 2730 | H113: 1215 | I113: 65
A114: 5 | B114: 100.625 | C114: 4067 | D114: 149 | E114: 232 | F114: 3783 | G114: 2388 | H114: 1395 | I114: 67
A115: 5 | B115: 100.6666667 | C115: 4012 | D115: 148 | E115: 232 | F115: 3679 | G115: 2307 | H115: 1372 | I115: 65
A116: 5 | B116: 100.7083333 | C116: 4289 | D116: 150 | E116: 232 | F116: 4077 | G116: 2697 | H116: 1380 | I116: 61
A117: 5 | B117: 100.75 | C117: 4332 | D117: 149 | E117: 232 | F117: 4240 | G117: 2949 | H117: 1291 | I117: 60
A118: 5 | B118: 100.7916667 | C118: 4356 | D118: 151 | E118: 232 | F118: 4436 | G118: 3128 | H118: 1308 | I118: 55
A119: 5 | B119: 100.8333333 | C119: 4386 | D119: 149 | E119: 232 | F119: 4640 | G119: 3306 | H119: 1334 | I119: 52
A120: 5 | B120: 100.875 | C120: 4406 | D120: 148 | E120: 232 | F120: 4950 | G120: 3615 | H120: 1335 | I120: 51
A121: 5 | B121: 100.9166667 | C121: 4428 | D121: 147 | E121: 232 | F121: 4864 | G121: 3518 | H121: 1346 | I121: 52
A122: 5 | B122: 100.9583333 | C122: 4420 | D122: 147 | E122: 232 | F122: 4362 | G122: 3916 | H122: 446 | I122: 46
A123: 6 | B123: 100 | C123: 4380 | D123: 147 | E123: 232 | F123: 5175 | G123: 3804 | H123: 1371 | I123: 49
A124: 6 | B124: 100.0416667 | C124: 4450 | D124: 148 | E124: 232 | F124: 5204 | G124: 3891 | H124: 1313 | I124: 48
A125: 6 | B125: 100.0833333 | C125: 4354 | D125: 147 | E125: 232 | F125: 4260 | G125: 2981 | H125: 1279 | I125: 56
A126: 6 | B126: 100.125 | C126: 4429 | D126: 150 | E126: 232 | F126: 4818 | G126: 3501 | H126: 1317 | I126: 51
A127: 6 | B127: 100.1666667 | C127: 4480 | D127: 149 | E127: 232 | F127: 5068 | G127: 3664 | H127: 1404 | I127: 53
A128: 6 | B128: 100.2083333 | C128: 4420 | D128: 147 | E128: 232 | F128: 4886 | G128: 3404 | H128: 1482 | I128: 54
A129: 6 | B129: 100.25 | C129: 4478 | D129: 149 | E129: 232 | F129: 5061 | G129: 3688 | H129: 1373 | I129: 52
A130: 6 | B130: 100.2916667 | C130: 4484 | D130: 147 | E130: 232 | F130: 5147 | G130: 3775 | H130: 1372 | I130: 49
A131: 6 | B131: 100.3333333 | C131: 4202 | D131: 149 | E131: 232 | F131: 4433 | G131: 3226 | H131: 1207 | I131: 54
A132: 6 | B132: 100.375 | C132: 4083 | D132: 145 | E132: 232 | F132: 4187 | G132: 2754 | H132: 1433 | I132: 60
A133: 6 | B133: 100.4166667 | C133: 4093 | D133: 147 | E133: 232 | F133: 3905 | G133: 2762 | H133: 1143 | I133: 67
A134: 6 | B134: 100.4583333 | C134: 4119 | D134: 149 | E134: 232 | F134: 3960 | G134: 2551 | H134: 1409 | I134: 64
A135: 6 | B135: 100.5 | C135: 4328 | D135: 150 | E135: 232 | F135: 3937 | G135: 2559 | H135: 1378 | I135: 64
A136: 6 | B136: 100.5416667 | C136: 4301 | D136: 151 | E136: 232 | F136: 3587 | G136: 2291 | H136: 1296 | I136: 67
A137: 6 | B137: 100.5833333 | C137: 4334 | D137: 151 | E137: 232 | F137: 3986 | G137: 2567 | H137: 1419 | I137: 64
A138: 6 | B138: 100.625 | C138: 4367 | D138: 152 | E138: 232 | F138: 3850 | G138: 2494 | H138: 1356 | I138: 63
A139: 6 | B139: 100.6666667 | C139: 4319 | D139: 152 | E139: 232 | F139: 3988 | G139: 2542 | H139: 1446 | I139: 64
A140: 6 | B140: 100.7083333 | C140: 4445 | D140: 151 | E140: 232 | F140: 4080 | G140: 2730 | H140: 1350 | I140: 61
A141: 6 | B141: 100.75 | C141: 4481 | D141: 152 | E141: 232 | F141: 3943 | G141: 2746 | H141: 1197 | I141: 51
A142: 6 | B142: 100.7916667 | C142: 4450 | D142: 151 | E142: 232 | F142: 4158 | G142: 2981 | H142: 1177 | I142: 46
A143: 6 | B143: 100.8333333 | C143: 4110 | D143: 146 | E143: 232 | F143: 4735 | G143: 3453 | H143: 1282 | I143: 48
A144: 6 | B144: 100.875 | C144: 4067 | D144: 145 | E144: 232 | F144: 5000 | G144: 3745 | H144: 1255 | I144: 47
A145: 6 | B145: 100.9166667 | C145: 4454 | D145: 146 | E145: 232 | F145: 5410 | G145: 3981 | H145: 1429 | I145: 46
A146: 6 | B146: 100.9583333 | C146: 4160 | D146: 142 | E146: 232 | F146: 5202 | G146: 3826 | H146: 1376 | I146: 46
A147: 7 | B147: 100 | C147: 4400 | D147: 148 | E147: 232 | F147: 5712 | G147: 4387 | H147: 1325 | I147: 41
A148: 7 | B148: 100.0416667 | C148: 4150 | D148: 144 | E148: 232 | F148: 5444 | G148: 4184 | H148: 1260 | I148: 39
A149: 7 | B149: 100.0833333 | C149: 4111 | D149: 140 | E149: 232 | F149: 5712 | G149: 4330 | H149: 1382 | I149: 38
A150: 7 | B150: 100.125 | C150: 4056 | D150: 140 | E150: 232 | F150: 5721 | G150: 4395 | H150: 1326 | I150: 38
A151: 7 | B151: 100.1666667 | C151: 4250 | D151: 142 | E151: 232 | F151: 5612 | G151: 4338 | H151: 1274 | I151: 38
A152: 7 | B152: 100.2083333 | C152: 4310 | D152: 143 | E152: 232 | F152: 5700 | G152: 4380 | H152: 1320 | I152: 37
A153: 7 | B153: 100.25 | C153: 4055 | D153: 139 | E153: 232 | F153: 5708 | G153: 4712 | H153: 996 | I153: 32
A154: 7 | B154: 100.2916667 | C154: 4033 | D154: 140 | E154: 232 | F154: 5508 | G154: 4541 | H154: 967 | I154: 37
A155: 7 | B155: 100.3333333 | C155: 3915 | D155: 142 | E155: 232 | F155: 5333 | G155: 4322 | H155: 1011 | I155: 40
A156: 7 | B156: 100.375 | C156: 4183 | D156: 147 | E156: 232 | F156: 5428 | G156: 4021 | H156: 1407 | I156: 49
A157: 7 | B157: 100.4166667 | C157: 4306 | D157: 144 | E157: 232 | F157: 5081 | G157: 3826 | H157: 1255 | I157: 54
A158: 7 | B158: 100.4583333 | C158: 4274 | D158: 148 | E158: 232 | F158: 4918 | G158: 3688 | H158: 1230 | I158: 54
A159: 7 | B159: 100.5 | C159: 4235 | D159: 146 | E159: 232 | F159: 4894 | G159: 3425 | H159: 1469 | I159: 58
A160: 7 | B160: 100.5416667 | C160: 4233 | D160: 149 | E160: 232 | F160: 4614 | G160: 3388 | H160: 1226 | I160: 58
A161: 7 | B161: 100.5833333 | C161: 3975 | D161: 142 | E161: 232 | F161: 4332 | G161: 2981 | H161: 1351 | I161: 57
A162: 7 | B162: 100.625 | C162: 3977 | D162: 146 | E162: 232 | F162: 4234 | G162: 2819 | H162: 1415 | I162: 58
A163: 7 | B163: 100.6666667 | C163: 3955 | D163: 147 | E163: 232 | F163: 4213 | G163: 2876 | H163: 1337 | I163: 57
A164: 7 | B164: 100.7083333 | C164: 3987 | D164: 147 | E164: 232 | F164: 4151 | G164: 2843 | H164: 1308 | I164: 58
A165: 7 | B165: 100.75 | C165: 4287 | D165: 149 | E165: 232 | F165: 4336 | G165: 3022 | H165: 1314 | I165: 56
A166: 7 | B166: 100.7916667 | C166: 4329 | D166: 150 | E166: 232 | F166: 4469 | G166: 3128 | H166: 1341 | I166: 53
A167: 7 | B167: 100.8333333 | C167: 4381 | D167: 149 | E167: 232 | F167: 5159 | G167: 3851 | H167: 1308 | I167: 47
A168: 7 | B168: 100.875 | C168: 4345 | D168: 144 | E168: 232 | F168: 5271 | G168: 3916 | H168: 1355 | I168: 46
A169: 7 | B169: 100.9166667 | C169: 4351 | D169: 145 | E169: 232 | F169: 5276 | G169: 4021 | H169: 1255 | I169: 46
A170: 7 | B170: 100.9583333 | C170: 4326 | D170: 146 | E170: 232 | F170: 5285 | G170: 4021 | H170: 1264 | I170: 44
A171: 8 | B171: 100 | C171: 4340 | D171: 143 | E171: 232 | F171: 5685 | G171: 4363 | H171: 1322 | I171: 40
A172: 8 | B172: 100.0416667 | C172: 4362 | D172: 148 | E172: 232 | F172: 5805 | G172: 4363 | H172: 1442 | I172: 41
A173: 8 | B173: 100.0833333 | C173: 4100 | D173: 141 | E173: 232 | F173: 5542 | G173: 4395 | H173: 1147 | I173: 37
A174: 8 | B174: 100.125 | C174: 4233 | D174: 142 | E174: 232 | F174: 5811 | G174: 4623 | H174: 1188 | I174: 36
A175: 8 | B175: 100.1666667 | C175: 4229 | D175: 145 | E175: 232 | F175: 5600 | G175: 4314 | H175: 1286 | I175: 41
A176: 8 | B176: 100.2083333 | C176: 4003 | D176: 141 | E176: 232 | F176: 5573 | G176: 4216 | H176: 1357 | I176: 37
A177: 8 | B177: 100.25 | C177: 4350 | D177: 146 | E177: 232 | F177: 5845 | G177: 4883 | H177: 962 | I177: 32
A178: 8 | B178: 100.2916667 | C178: 4024 | D178: 139 | E178: 232 | F178: 5471 | G178: 4623 | H178: 848 | I178: 33
A179: 8 | B179: 100.3333333 | C179: 3865 | D179: 138 | E179: 232 | F179: 5271 | G179: 4095 | H179: 1176 | I179: 41
A180: 8 | B180: 100.375 | C180: 3890 | D180: 138 | E180: 232 | F180: 5254 | G180: 3875 | H180: 1379 | I180: 46
A181: 8 | B181: 100.4166667 | C181: 3905 | D181: 140 | E181: 232 | F181: 4829 | G181: 3520 | H181: 1309 | I181: 53
A182: 8 | B182: 100.4583333 | C182: 3960 | D182: 144 | E182: 232 | F182: 4615 | G182: 3233 | H182: 1382 | I182: 56
A183: 8 | B183: 100.5 | C183: 4178 | D183: 148 | E183: 232 | F183: 4591 | G183: 3160 | H183: 1431 | I183: 60
A184: 8 | B184: 100.5416667 | C184: 3982 | D184: 146 | E184: 232 | F184: 4177 | G184: 2965 | H184: 1212 | I184: 62
A185: 8 | B185: 100.5833333 | C185: 4195 | D185: 147 | E185: 232 | F185: 3881 | G185: 2713 | H185: 1168 | I185: 65
A186: 8 | B186: 100.625 | C186: 4223 | D186: 149 | E186: 232 | F186: 3869 | G186: 2671 | H186: 1198 | I186: 65
A187: 8 | B187: 100.6666667 | C187: 4202 | D187: 151 | E187: 232 | F187: 3844 | G187: 2567 | H187: 1277 | I187: 67
A188: 8 | B188: 100.7083333 | C188: 4002 | D188: 145 | E188: 232 | F188: 3664 | G188: 2405 | H188: 1259 | I188: 64
A189: 8 | B189: 100.75 | C189: 4331 | D189: 151 | E189: 232 | F189: 4121 | G189: 2884 | H189: 1237 | I189: 61
A190: 8 | B190: 100.7916667 | C190: 4227 | D190: 149 | E190: 232 | F190: 3966 | G190: 2754 | H190: 1212 | I190: 58
A191: 8 | B191: 100.8333333 | C191: 4155 | D191: 146 | E191: 232 | F191: 4430 | G191: 3090 | H191: 1340 | I191: 55
A192: 8 | B192: 100.875 | C192: 4375 | D192: 146 | E192: 232 | F192: 5016 | G192: 3615 | H192: 1401 | I192: 50
A193: 8 | B193: 100.9166667 | C193: 4400 | D193: 148 | E193: 232 | F193: 5189 | G193: 3925 | H193: 1264 | I193: 46
A194: 8 | B194: 100.9583333 | C194: 4405 | D194: 144 | E194: 232 | F194: 5312 | G194: 4021 | H194: 1291 | I194: 45
A195: 9 | B195: 100 | C195: 4370 | D195: 147 | E195: 232 | F195: 5280 | G195: 4040 | H195: 1240 | I195: 45
A196: 9 | B196: 100.0416667 | C196: 4368 | D196: 144 | E196: 232 | F196: 5515 | G196: 4151 | H196: =F196-G196 -> 1364 | I196: 43
A197: 9 | B197: 100.0833333 | F197: 0 | G197: 0 | H197: 0
A198: 9 | B198: 100.125 | C198: 4063 | D198: 140 | E198: 232 | F198: 5118 | G198: 3778 | H198: 1340 | I198: 44
A199: 9 | B199: 100.1666667 | C199: 4367 | D199: 145 | E199: 232 | F199: 5521 | G199: 4233 | H199: 1288 | I199: 43
A200: 9 | B200: 100.2083333 | C200: 4067 | D200: 142 | E200: 232 | F200: 5000 | G200: 3729 | H200: 1271 | I200: 46
A201: 9 | B201: 100.25 | C201: 4421 | D201: 148 | E201: 232 | F201: 5637 | G201: 4249 | H201: 1388 | I201: 44
... 545 more rows

Sheet April
A1: April 2014 Dixie Binary Bottoming Cycle Data
A3: Date April | B3: Time | C3: Brine Flow [gpm] | D3: Brine Return Temp [F] | E3: Brine Supply Temp [F] | F3: Gen. Output [kW] | G3: Net [KW] | H3: Parasitic KW] | I3: T Dry Bulb [F]
A4: 1 | B4: 100 | C4: 4008 | D4: 142 | E4: 232 | F4: 5271 | G4: 4030 | H4: =F4-G4 -> 1241 | I4: 42
A5: 1 | B5: 100.0416667 | C5: 4139 | D5: 144 | E5: 232 | F5: 5394 | G5: 4103 | H5: 1291 | I5: 42
A6: 1 | B6: 100.0833333 | C6: 4130 | D6: 143 | E6: 232 | F6: 5559 | G6: 4233 | H6: 1326 | I6: 43
A7: 1 | B7: 100.125 | C7: 3829 | D7: 139 | E7: 232 | F7: 5067 | G7: 3788 | H7: 1279 | I7: 42
A8: 1 | B8: 100.1666667 | C8: 3920 | D8: 141 | E8: 232 | F8: 5655 | G8: 4363 | H8: 1292 | I8: 40
A9: 1 | B9: 100.2083333 | C9: 4160 | D9: 143 | E9: 232 | F9: 5673 | G9: 4371 | H9: 1302 | I9: 40
A10: 1 | B10: 100.25 | C10: 4161 | D10: 144 | E10: 232 | F10: 5755 | G10: 4501 | H10: 1254 | I10: 39
A11: 1 | B11: 100.2916667 | C11: 4173 | D11: 144 | E11: 232 | F11: 5698 | G11: 4623 | H11: 1075 | I11: 38
A12: 1 | B12: 100.3333333 | C12: 4217 | D12: 143 | E12: 232 | F12: 5709 | G12: 4468 | H12: 1241 | I12: 40
A13: 1 | B13: 100.375 | C13: 4075 | D13: 141 | E13: 232 | F13: 5442 | G13: 4088 | H13: 1354 | I13: 42
A14: 1 | B14: 100.4166667 | C14: 3720 | D14: 139 | E14: 232 | F14: 5038 | G14: 3680 | H14: 1358 | I14: 44
A15: 1 | B15: 100.4583333 | C15: 3993 | D15: 142 | E15: 232 | F15: 5123 | G15: 3826 | H15: 1297 | I15: 48
A16: 1 | B16: 100.5 | C16: 3683 | D16: 140 | E16: 232 | F16: 4720 | G16: 3501 | H16: 1219 | I16: 49
A17: 1 | B17: 100.5416667 | C17: 3816 | D17: 141 | E17: 232 | F17: 4619 | G17: 3339 | H17: 1280 | I17: 51
A18: 1 | B18: 100.5833333 | C18: 3688 | D18: 140 | E18: 232 | F18: 4449 | G18: 3274 | H18: 1175 | I18: 53
A19: 1 | B19: 100.625 | C19: 4054 | D19: 146 | E19: 232 | F19: 4604 | G19: 3404 | H19: 1200 | I19: 48
A20: 1 | B20: 100.6666667 | C20: 3710 | D20: 141 | E20: 232 | F20: 4338 | G20: 3095 | H20: 1243 | I20: 50
A21: 1 | B21: 100.7083333 | C21: 4070 | D21: 145 | E21: 232 | F21: 4584 | G21: 3396 | H21: 1188 | I21: 47
A22: 1 | B22: 100.75 | C22: 3766 | D22: 141 | E22: 232 | F22: 4774 | G22: 3542 | H22: 1232 | I22: 48
A23: 1 | B23: 100.7916667 | C23: 3939 | D23: 141 | E23: 232 | F23: 5133 | G23: 3835 | H23: 1298 | I23: 43
A24: 1 | B24: 100.8333333 | C24: 3911 | D24: 139 | E24: 232 | F24: 5284 | G24: 3965 | H24: 1319 | I24: 40
A25: 1 | B25: 100.875 | C25: 3900 | D25: 140 | E25: 232 | F25: 5252 | G25: 3997 | H25: 1255 | I25: 40
A26: 1 | B26: 100.9166667 | C26: 3929 | D26: 141 | E26: 232 | F26: 5341 | G26: 3989 | H26: 1352 | I26: 40
A27: 1 | B27: 100.9583333 | C27: 3999 | D27: 144 | E27: 232 | F27: 5054 | G27: 3745 | H27: 1309 | I27: 41
A28: 2 | B28: 100 | C28: 4138 | D28: 144 | E28: 232 | F28: 5575 | G28: 4241 | H28: 1334 | I28: 40
A29: 2 | B29: 100.0416667 | C29: 4156 | D29: 143 | E29: 232 | F29: 5702 | G29: 4541 | H29: 1161 | I29: 38
A30: 2 | B30: 100.0833333 | C30: 4144 | D30: 143 | E30: 232 | F30: 5675 | G30: 4566 | H30: 1109 | I30: 35
A31: 2 | B31: 100.125 | C31: 4159 | D31: 143 | E31: 232 | F31: 5739 | G31: 4712 | H31: 1027 | I31: 34
A32: 2 | B32: 100.1666667 | C32: 3985 | D32: 140 | E32: 232 | F32: 5399 | G32: 4411 | H32: 988 | I32: 33
A33: 2 | B33: 100.2083333 | C33: 3847 | D33: 140 | E33: 232 | F33: 5343 | G33: 4468 | H33: 875 | I33: 31
A34: 2 | B34: 100.25 | C34: 3808 | D34: 140 | E34: 232 | F34: 5287 | G34: 4476 | H34: 811 | I34: 29
A35: 2 | B35: 100.2916667 | C35: 3836 | D35: 139 | E35: 232 | F35: 5283 | G35: 4501 | H35: 782 | I35: 33
A36: 2 | B36: 100.3333333 | C36: 3766 | D36: 139 | E36: 232 | F36: 5223 | G36: 4436 | H36: 787 | I36: 33
A37: 2 | B37: 100.375 | C37: 3733 | D37: 137 | E37: 232 | F37: 5152 | G37: 4322 | H37: 830 | I37: 36
A38: 2 | B38: 100.4166667 | C38: 3663 | D38: 140 | E38: 232 | F38: 5156 | G38: 4054 | H38: 1102 | I38: 42
A39: 2 | B39: 100.4583333 | C39: 3713 | D39: 139 | E39: 232 | F39: 5033 | G39: 3822 | H39: 1211 | I39: 45
A40: 2 | B40: 100.5 | C40: 3612 | D40: 136 | E40: 232 | F40: 4840 | G40: 3607 | H40: 1233 | I40: 49
A41: 2 | B41: 100.5416667 | C41: 3574 | D41: 137 | E41: 232 | F41: 4652 | G41: 3274 | H41: 1378 | I41: 51
A42: 2 | B42: 100.5833333 | C42: 3707 | D42: 141 | E42: 232 | F42: 4548 | G42: 3371 | H42: 1177 | I42: 49
A43: 2 | B43: 100.625 | C43: 3652 | D43: 142 | E43: 232 | F43: 4435 | G43: 3152 | H43: 1283 | I43: 51
A44: 2 | B44: 100.6666667 | C44: 3978 | D44: 141 | E44: 232 | F44: 4586 | G44: 3331 | H44: 1255 | I44: 49
A45: 2 | B45: 100.7083333 | C45: 3703 | D45: 141 | E45: 232 | F45: 4463 | G45: 3168 | H45: 1295 | I45: 53
A46: 2 | B46: 100.75 | C46: 3801 | D46: 140 | E46: 232 | F46: 4834 | G46: 3534 | H46: 1300 | I46: 47
A47: 2 | B47: 100.7916667 | C47: 4001 | D47: 145 | E47: 232 | F47: 4886 | G47: 3599 | H47: 1287 | I47: 48
A48: 2 | B48: 100.8333333 | C48: 4125 | D48: 145 | E48: 232 | F48: 5130 | G48: 3786 | H48: 1344 | I48: 46
A49: 2 | B49: 100.875 | C49: 3800 | D49: 142 | E49: 232 | F49: 4800 | G49: 3583 | H49: 1217 | I49: 44
A50: 2 | B50: 100.9166667 | C50: 3700 | D50: 140 | E50: 232 | F50: 4787 | G50: 3558 | H50: 1229 | I50: 45
A51: 2 | B51: 100.9583333 | C51: 3843 | D51: 138 | E51: 232 | F51: 5305 | G51: 4086 | H51: 1219 | I51: 40
A52: 3 | B52: 100 | C52: 4002 | D52: 142 | E52: 232 | F52: 5412 | G52: 4135 | H52: 1277 | I52: 39
A53: 3 | B53: 100.0416667 | C53: 4030 | D53: 141 | E53: 232 | F53: 5641 | G53: 4493 | H53: 1148 | I53: 36
A54: 3 | B54: 100.0833333 | C54: 4050 | D54: 141 | E54: 232 | F54: 5553 | G54: 4468 | H54: 1085 | I54: 36
A55: 3 | B55: 100.125 | C55: 4051 | D55: 141 | E55: 232 | F55: 5587 | G55: 4671 | H55: 916 | I55: 32
A56: 3 | B56: 100.1666667 | C56: 4022 | D56: 142 | E56: 232 | F56: 5558 | G56: 4647 | H56: 911 | I56: 32
A57: 3 | B57: 100.2083333 | C57: 4049 | D57: 142 | E57: 232 | F57: 5625 | G57: 4623 | H57: 1002 | I57: 33
A58: 3 | B58: 100.25 | C58: 4038 | D58: 141 | E58: 232 | F58: 5548 | G58: 4671 | H58: 877 | I58: 31
A59: 3 | B59: 100.2916667 | C59: 4041 | D59: 142 | E59: 232 | F59: 5576 | G59: 4745 | H59: 831 | I59: 30
A60: 3 | B60: 100.3333333 | C60: 3700 | D60: 140 | E60: 232 | F60: 5134 | G60: 4200 | H60: 934 | I60: 38
A61: 3 | B61: 100.375 | C61: 3610 | D61: 139 | E61: 232 | F61: 5072 | G61: 4110 | H61: 962 | I61: 40
A62: 3 | B62: 100.4166667 | C62: 3588 | D62: 138 | E62: 232 | F62: 4978 | G62: 3761 | H62: 1217 | I62: 45
A63: 3 | B63: 100.4583333 | C63: 3766 | D63: 139 | E63: 232 | F63: 4831 | G63: 3615 | H63: 1216 | I63: 51
A64: 3 | B64: 100.5 | C64: 3714 | D64: 141 | E64: 232 | F64: 4669 | G64: 3436 | H64: 1233 | I64: 53
A65: 3 | B65: 100.5416667 | C65: 3829 | D65: 144 | E65: 232 | F65: 4351 | G65: 3120 | H65: 1231 | I65: 60
A66: 3 | B66: 100.5833333 | C66: 3922 | D66: 145 | E66: 232 | F66: 4407 | G66: 3136 | H66: 1271 | I66: 59
A67: 3 | B67: 100.625 | C67: 3781 | D67: 143 | E67: 232 | F67: 3952 | G67: 2786 | H67: 1166 | I67: 62
A68: 3 | B68: 100.6666667 | C68: 4033 | D68: 146 | E68: 232 | F68: 4225 | G68: 2973 | H68: =F68-G68 -> 1252 | I68: 62
A69: 3 | B69: 100.7083333 | C69: 3818 | D69: 143 | E69: 232 | F69: 4071 | G69: 2843 | H69: 1228 | I69: 59
A70: 3 | B70: 100.75 | C70: 3853 | D70: 144 | E70: 232 | F70: 4016 | G70: 2762 | H70: 1254 | I70: 57
A71: 3 | B71: 100.7916667 | C71: 4145 | D71: 147 | E71: 232 | F71: 4307 | G71: 3071 | H71: 1236 | I71: 54
A72: 3 | B72: 100.8333333 | C72: 3810 | D72: 142 | E72: 232 | F72: 4125 | G72: 2888 | H72: 1237 | I72: 55
A73: 3 | B73: 100.875 | C73: 3777 | D73: 144 | E73: 232 | F73: 4088 | G73: 2900 | H73: 1188 | I73: 52
A74: 3 | B74: 100.9166667 | C74: 3851 | D74: 142 | E74: 232 | F74: 4356 | G74: 3300 | H74: 1056 | I74: 49
A75: 3 | B75: 100.9583333 | C75: 3821 | D75: 140 | E75: 232 | F75: 4818 | G75: 3501 | H75: 1317 | I75: 46
A76: 4 | B76: 100 | C76: 3811 | D76: 141 | E76: 232 | F76: 4876 | G76: 3534 | H76: 1342 | I76: 45
A77: 4 | B77: 100.0416667 | C77: 3850 | D77: 141 | E77: 232 | F77: 4839 | G77: 3583 | H77: 1256 | I77: 44
A78: 4 | B78: 100.0833333 | C78: 3839 | D78: 141 | E78: 232 | F78: 5350 | G78: 4151 | H78: 1199 | I78: 40
A79: 4 | B79: 100.125 | C79: 3847 | D79: 141 | E79: 232 | F79: 5353 | G79: 4143 | H79: 1210 | I79: 38
A80: 4 | B80: 100.1666667 | C80: 3868 | D80: 140 | E80: 232 | F80: 5270 | G80: 4143 | H80: 1127 | I80: 39
A81: 4 | B81: 100.2083333 | C81: 3830 | D81: 140 | E81: 232 | F81: 5375 | G81: 4127 | H81: 1248 | I81: 38
A82: 4 | B82: 100.25 | C82: 3882 | D82: 140 | E82: 232 | F82: 5293 | G82: 3973 | H82: 1320 | I82: 40
A83: 4 | B83: 100.2916667 | C83: 3850 | D83: 141 | E83: 232 | F83: 5300 | G83: 3997 | H83: 1303 | I83: 41
A84: 4 | B84: 100.3333333 | C84: 3836 | D84: 140 | E84: 232 | F84: 5235 | G84: 3948 | H84: 1287 | I84: 43
A85: 4 | B85: 100.375 | C85: 3806 | D85: 140 | E85: 232 | F85: 5035 | G85: 3786 | H85: 1249 | I85: 45
A86: 4 | B86: 100.4166667 | C86: 3767 | D86: 139 | E86: 232 | F86: 4839 | G86: 3566 | H86: 1273 | I86: 49
A87: 4 | B87: 100.4583333 | C87: 3727 | D87: 141 | E87: 232 | F87: 4330 | G87: 3144 | H87: 1186 | I87: 54
A88: 4 | B88: 100.5 | C88: 3700 | D88: 140 | E88: 232 | F88: 4067 | G88: 2884 | H88: 1183 | I88: 58
A89: 4 | B89: 100.5416667 | C89: 3728 | D89: 142 | E89: 232 | F89: 3860 | G89: 2648 | H89: 1212 | I89: 60
A90: 4 | B90: 100.5833333 | C90: 3696 | D90: 141 | E90: 232 | F90: 3773 | G90: 2583 | H90: 1190 | I90: 63
A91: 4 | B91: 100.625 | C91: 3686 | D91: 143 | E91: 232 | F91: 3660 | G91: 2445 | H91: 1215 | I91: 64
A92: 4 | B92: 100.6666667 | C92: 3672 | D92: 144 | E92: 232 | F92: 3500 | G92: 2344 | H92: 1156 | I92: 64
A93: 4 | B93: 100.7083333 | C93: 3700 | D93: 142 | E93: 232 | F93: 3639 | G93: 2500 | H93: 1139 | I93: 59
A94: 4 | B94: 100.75 | C94: 3696 | D94: 142 | E94: 232 | F94: 3549 | G94: 2364 | H94: 1185 | I94: 62
A95: 4 | B95: 100.7916667 | C95: 3686 | D95: 144 | E95: 232 | F95: 3813 | G95: 2616 | H95: 1197 | I95: 56
A96: 4 | B96: 100.8333333 | C96: 3635 | D96: 143 | E96: 232 | F96: 4021 | G96: 2738 | H96: 1283 | I96: 53
A97: 4 | B97: 100.875 | C97: 3688 | D97: 142 | E97: 232 | F97: 4147 | G97: 2973 | H97: 1174 | I97: 52
A98: 4 | B98: 100.9166667 | C98: 3699 | D98: 141 | E98: 232 | F98: 4352 | G98: 3136 | H98: 1216 | I98: 49
A99: 4 | B99: 100.9583333 | C99: 3711 | D99: 140 | E99: 232 | F99: 4393 | G99: 3095 | H99: 1298 | I99: 50
A100: 5 | B100: 100 | C100: 3672 | D100: 140 | E100: 232 | F100: 4512 | G100: 3217 | H100: 1295 | I100: 47
A101: 5 | B101: 100.0416667 | C101: 3713 | D101: 138 | E101: 232 | F101: 4632 | G101: 3404 | H101: 1228 | I101: 46
A102: 5 | B102: 100.0833333 | C102: 3711 | D102: 140 | E102: 232 | F102: 4710 | G102: 3371 | H102: 1339 | I102: 46
A103: 5 | B103: 100.125 | C103: 3750 | D103: 138 | E103: 232 | F103: 4690 | G103: 3404 | H103: 1286 | I103: 47
A104: 5 | B104: 100.1666667 | C104: 3742 | D104: 138 | E104: 232 | F104: 4833 | G104: 3550 | H104: 1283 | I104: 44
A105: 5 | B105: 100.2083333 | C105: 3800 | D105: 139 | E105: 232 | F105: 5094 | G105: 3778 | H105: 1316 | I105: 42
A106: 5 | B106: 100.25 | C106: 3787 | D106: 138 | E106: 232 | F106: 5163 | G106: 3875 | H106: 1288 | I106: 41
A107: 5 | B107: 100.2916667 | C107: 3774 | D107: 139 | E107: 232 | F107: 5266 | G107: 4013 | H107: 1253 | I107: 41
A108: 5 | B108: 100.3333333 | C108: 3803 | D108: 140 | E108: 232 | F108: 5146 | G108: 3802 | H108: 1344 | I108: 45
A109: 5 | B109: 100.375 | C109: 3694 | D109: 139 | E109: 232 | F109: 4422 | G109: 3709 | H109: 713 | I109: 56
A110: 5 | B110: 100.4166667 | C110: 3649 | D110: 139 | E110: 232 | F110: 4359 | G110: 3160 | H110: 1199 | I110: 54
A111: 5 | B111: 100.4583333 | C111: 3683 | D111: 142 | E111: 232 | F111: 4148 | G111: 2876 | H111: 1272 | I111: 58
A112: 5 | B112: 100.5 | C112: 3888 | D112: 144 | E112: 232 | F112: 4365 | G112: 3128 | H112: 1237 | I112: 57
A113: 5 | B113: 100.5416667 | C113: 3649 | D113: 142 | E113: 232 | F113: 4075 | G113: 2786 | H113: 1289 | I113: 58
A114: 5 | B114: 100.5833333 | C114: 3694 | D114: 144 | E114: 232 | F114: 3862 | G114: 2689 | H114: 1173 | I114: 63
A115: 5 | B115: 100.625 | C115: 3724 | D115: 143 | E115: 232 | F115: 3492 | G115: 2380 | H115: 1112 | I115: 61
A116: 5 | B116: 100.6666667 | C116: 3669 | D116: 144 | E116: 232 | F116: 3584 | G116: 2380 | H116: 1204 | I116: 62
A117: 5 | B117: 100.7083333 | C117: 3829 | D117: 146 | E117: 232 | F117: 3716 | G117: 2557 | H117: 1159 | I117: 59
A118: 5 | B118: 100.75 | C118: 4024 | D118: 146 | E118: 232 | F118: 4070 | G118: 2754 | H118: 1316 | I118: 60
A119: 5 | B119: 100.7916667 | C119: 3810 | D119: 143 | E119: 232 | F119: 3800 | G119: 2502 | H119: 1298 | I119: 57
A120: 5 | B120: 100.8333333 | C120: 3815 | D120: 144 | E120: 232 | F120: 4134 | G120: 2843 | H120: 1291 | I120: 56
A121: 5 | B121: 100.875 | C121: 4111 | D121: 147 | E121: 232 | F121: 4270 | G121: 3006 | H121: 1264 | I121: 57
A122: 5 | B122: 100.9166667 | C122: 4030 | D122: 144 | E122: 232 | F122: 4821 | G122: 3550 | H122: 1271 | I122: 47
A123: 5 | B123: 100.9583333 | C123: 4020 | D123: 145 | E123: 232 | F123: 4990 | G123: 3696 | H123: 1294 | I123: 47
A124: 6 | B124: 100 | C124: 4027 | D124: 144 | E124: 232 | F124: 4900 | G124: 3575 | H124: 1325 | I124: 47
A125: 6 | B125: 100.0416667 | C125: 4035 | D125: 143 | E125: 232 | F125: 5412 | G125: 4062 | H125: 1350 | I125: 42
A126: 6 | B126: 100.0833333 | C126: 3745 | D126: 140 | E126: 232 | F126: 5178 | G126: 3786 | H126: 1392 | I126: 42
A127: 6 | B127: 100.125 | C127: 3717 | D127: 137 | E127: 232 | F127: 5050 | G127: 3786 | H127: 1264 | I127: 40
A128: 6 | B128: 100.1666667 | C128: 3700 | D128: 137 | E128: 232 | F128: 4957 | G128: 3936 | H128: 1021 | I128: 39
A129: 6 | B129: 100.2083333 | C129: 3702 | D129: 137 | E129: 232 | F129: 5150 | G129: 4054 | H129: 1096 | I129: 38
A130: 6 | B130: 100.25 | C130: 3675 | D130: 139 | E130: 232 | F130: 5073 | G130: 4143 | H130: 930 | I130: 36
A131: 6 | B131: 100.2916667 | C131: 3613 | D131: 138 | E131: 232 | F131: 5118 | G131: 4062 | H131: 1056 | I131: 40
A132: 6 | B132: 100.3333333 | C132: 3646 | D132: 138 | E132: 232 | F132: 4899 | G132: 3688 | H132: =F132-G132 -> 1211 | I132: 43
A133: 6 | B133: 100.375 | C133: 3521 | D133: 138 | E133: 232 | F133: 4600 | G133: 3421 | H133: 1179 | I133: 47
A134: 6 | B134: 100.4166667 | C134: 3553 | D134: 140 | E134: 232 | F134: 4086 | G134: 2916 | H134: 1170 | I134: 54
A135: 6 | B135: 100.4583333 | C135: 3532 | D135: 141 | E135: 232 | F135: 3761 | G135: 2502 | H135: 1259 | I135: 61
A136: 6 | B136: 100.5 | C136: 3950 | D136: 146 | E136: 232 | F136: 3808 | G136: 2600 | H136: 1208 | I136: 64
A137: 6 | B137: 100.5416667 | C137: 4140 | D137: 148 | E137: 232 | F137: 3817 | G137: 2575 | H137: 1242 | I137: 68
A138: 6 | B138: 100.5833333 | C138: 4096 | D138: 148 | E138: 232 | F138: 3825 | G138: 2575 | H138: 1250 | I138: 65
A139: 6 | B139: 100.625 | C139: 3696 | D139: 144 | E139: 232 | F139: 3328 | G139: 2161 | H139: 1167 | I139: 68
A140: 6 | B140: 100.6666667 | C140: 3945 | D140: 147 | E140: 232 | F140: 3360 | G140: 2169 | H140: 1191 | I140: 71
A141: 6 | B141: 100.7083333 | C141: 3667 | D141: 146 | E141: 232 | F141: 3262 | G141: 2120 | H141: 1142 | I141: 70
A142: 6 | B142: 100.75 | C142: 3612 | D142: 145 | E142: 232 | F142: 3035 | G142: 1885 | H142: 1150 | I142: 68
A143: 6 | B143: 100.7916667 | C143: 4119 | D143: 150 | E143: 232 | F143: 3408 | G143: 2218 | H143: 1190 | I143: 64
A144: 6 | B144: 100.8333333 | C144: 4000 | D144: 147 | E144: 232 | F144: 3682 | G144: 2388 | H144: 1294 | I144: 60
A145: 6 | B145: 100.875 | C145: 3844 | D145: 146 | E145: 232 | F145: 4046 | G145: 2754 | H145: 1292 | I145: 58
A146: 6 | B146: 100.9166667 | C146: 3948 | D146: 146 | E146: 232 | F146: 3978 | G146: 2721 | H146: 1257 | I146: 55
A147: 6 | B147: 100.9583333 | C147: 3886 | D147: 145 | E147: 232 | F147: 4127 | G147: 2860 | H147: 1267 | I147: 53
A148: 7 | B148: 100 | C148: 3948 | D148: 145 | E148: 232 | F148: 4260 | G148: 2998 | H148: 1262 | I148: 52
A149: 7 | B149: 100.0416667 | C149: 3923 | D149: 144 | E149: 232 | F149: 4655 | G149: 3380 | H149: 1275 | I149: 49
A150: 7 | B150: 100.0833333 | C150: 2825 | D150: 142 | E150: 232 | F150: 4923 | G150: 3656 | H150: 1267 | I150: 45
A151: 7 | B151: 100.125 | C151: 3660 | D151: 142 | E151: 232 | F151: 4714 | G151: 3420 | H151: 1294 | I151: 48
A152: 7 | B152: 100.1666667 | C152: 3613 | D152: 137 | E152: 232 | F152: 4807 | G152: 3477 | H152: 1330 | I152: 42
A153: 7 | B153: 100.2083333 | C153: 3877 | D153: 140 | E153: 232 | F153: 4954 | G153: 3623 | H153: 1331 | I153: 43
A154: 7 | B154: 100.25 | C154: 3864 | D154: 140 | E154: 232 | F154: 5388 | G154: 4103 | H154: 1285 | I154: 40
A155: 7 | B155: 100.2916667 | C155: 3894 | D155: 142 | E155: 232 | F155: 4993 | G155: 3792 | H155: 1201 | I155: 43
A156: 7 | B156: 100.3333333 | C156: 3560 | D156: 140 | E156: 232 | F156: 4457 | G156: 3250 | H156: 1207 | I156: 48
A157: 7 | B157: 100.375 | C157: 3715 | D157: 142 | E157: 232 | F157: 4349 | G157: 3087 | H157: 1262 | I157: 55
A158: 7 | B158: 100.4166667 | C158: 3672 | D158: 143 | E158: 232 | F158: 3892 | G158: 2689 | H158: 1203 | I158: 60
A159: 7 | B159: 100.4583333 | C159: 3698 | D159: 143 | E159: 232 | F159: 3567 | G159: 2356 | H159: 1211 | I159: 65
A160: 7 | B160: 100.5 | C160: 3990 | D160: 147 | E160: 232 | F160: 3374 | G160: 2161 | H160: 1213 | I160: 70
A161: 7 | B161: 100.5416667 | C161: 3640 | D161: 145 | E161: 232 | F161: 2921 | G161: 1779 | H161: 1142 | I161: 71
A162: 7 | B162: 100.5833333 | C162: 3699 | D162: 146 | E162: 232 | F162: 2651 | G162: 1527 | H162: 1124 | I162: 76
A163: 7 | B163: 100.625 | C163: 3692 | D163: 148 | E163: 232 | F163: 2685 | G163: 1535 | H163: 1150 | I163: 77
A164: 7 | B164: 100.6666667 | C164: 3667 | D164: 147 | E164: 232 | F164: 2392 | G164: 1251 | H164: 1141 | I164: 79
A165: 7 | B165: 100.7083333 | C165: 3589 | D165: 148 | E165: 232 | F165: 2354 | G165: 1291 | H165: 1063 | I165: 78
A166: 7 | B166: 100.75 | C166: 3600 | D166: 148 | E166: 232 | F166: 2552 | G166: 1316 | H166: 1236 | I166: 76
A167: 7 | B167: 100.7916667 | C167: 4030 | D167: 152 | E167: 232 | F167: 2832 | G167: 1584 | H167: 1248 | I167: 72
A168: 7 | B168: 100.8333333 | C168: 4020 | D168: 150 | E168: 232 | F168: 2929 | G168: 1776 | H168: 1153 | I168: 68
A169: 7 | B169: 100.875 | C169: 4000 | D169: 150 | E169: 232 | F169: 3020 | G169: 1800 | H169: 1220 | I169: 67
A170: 7 | B170: 100.9166667 | C170: 3808 | D170: 146 | E170: 232 | F170: 3650 | G170: 2400 | H170: 1250 | I170: 60
A171: 7 | B171: 100.9583333 | C171: 4011 | D171: 147 | E171: 232 | F171: 3872 | G171: 3632 | H171: 240 | I171: 59
A172: 8 | B172: 101 | C172: 4024 | D172: 147 | E172: 232 | F172: 3888 | G172: 2650 | H172: 1238 | I172: 58
A173: 8 | B173: 101.0416667 | C173: 4040 | D173: 146 | E173: 232 | F173: 4435 | G173: 3168 | H173: 1267 | I173: 53
A174: 8 | B174: 101.0833333 | C174: 3780 | D174: 141 | E174: 232 | F174: 4333 | G174: 3038 | H174: 1295 | I174: 52
A175: 8 | B175: 101.125 | C175: 3922 | D175: 144 | E175: 232 | F175: 4335 | G175: 3087 | H175: 1248 | I175: 52
A176: 8 | B176: 101.1666667 | C176: 3925 | D176: 144 | E176: 232 | F176: 4577 | G176: 3363 | H176: 1214 | I176: 49
A177: 8 | B177: 101.2083333 | C177: 4022 | D177: 145 | E177: 232 | F177: 5030 | G177: 3725 | H177: 1305 | I177: 46
A178: 8 | B178: 101.25 | C178: 3757 | D178: 140 | E178: 232 | F178: 4886 | G178: 3648 | H178: 1238 | I178: 44
A179: 8 | B179: 101.2916667 | C179: 3737 | D179: 140 | E179: 232 | F179: 4944 | G179: 3696 | H179: 1248 | I179: 44
A180: 8 | B180: 101.3333333 | C180: 3644 | D180: 139 | E180: 232 | F180: 4586 | G180: 3306 | H180: 1280 | I180: 49
A181: 8 | B181: 101.375 | C181: 3534 | D181: 139 | E181: 232 | F181: 4135 | G181: 2949 | H181: 1186 | I181: 55
A182: 8 | B182: 101.4166667 | C182: 3520 | D182: 139 | E182: 232 | F182: 3511 | G182: 2356 | H182: 1155 | I182: 64
A183: 8 | B183: 101.4583333 | C183: 3500 | D183: 142 | E183: 232 | F183: 3190 | G183: 1998 | H183: 1192 | I183: 70
A184: 8 | B184: 101.5 | C184: 3773 | D184: 147 | E184: 232 | F184: 3120 | G184: 1974 | H184: 1146 | I184: 74
A185: 8 | B185: 101.5416667 | C185: 3800 | D185: 149 | E185: 232 | F185: 2636 | G185: 1551 | H185: 1085 | I185: 78
A186: 8 | B186: 101.5833333 | C186: 3984 | D186: 152 | E186: 232 | F186: 2547 | G186: 1365 | H186: 1182 | I186: 81
A187: 8 | B187: 101.625 | C187: 3965 | D187: 153 | E187: 232 | F187: 2277 | G187: 1153 | H187: 1124 | I187: 81
A188: 8 | B188: 101.6666667 | C188: 3704 | D188: 154 | E188: 232 | F188: 2020 | G188: 918 | H188: 1102 | I188: 85
A189: 8 | B189: 101.7083333 | C189: 3716 | D189: 152 | E189: 232 | F189: 2015 | G189: 869 | H189: 1146 | I189: 83
A190: 8 | B190: 101.75 | C190: 3796 | D190: 152 | E190: 232 | F190: 2101 | G190: 926 | H190: 1175 | I190: 82
A191: 8 | B191: 101.7916667 | C191: 3897 | D191: 152 | E191: 232 | F191: 2404 | G191: 1170 | H191: 1234 | I191: 77
A192: 8 | B192: 101.8333333 | C192: 3947 | D192: 152 | E192: 232 | F192: 2518 | G192: 1291 | H192: 1227 | I192: 71
A193: 8 | B193: 101.875 | C193: 3972 | D193: 150 | E193: 232 | F193: 2707 | G193: 1560 | H193: 1147 | I193: 72
A194: 8 | B194: 101.9166667 | C194: 3711 | D194: 146 | E194: 232 | F194: 3225 | G194: 2055 | H194: 1170 | I194: 71
A195: 9 | B195: 101.9583333 | C195: 3674 | D195: 143 | E195: 232 | F195: 3324 | G195: 2153 | H195: 1171 | I195: 60
A196: 9 | B196: 102 | C196: 3640 | D196: 143 | E196: 232 | F196: 3348 | G196: 2185 | H196: =F196-G196 -> 1163 | I196: 60
A197: 9 | B197: 102.0416667 | C197: 3860 | D197: 144 | E197: 232 | F197: 3824 | G197: 2559 | H197: 1265 | I197: 57
A198: 9 | B198: 102.0833333 | C198: 3900 | D198: 146 | E198: 232 | F198: 4068 | G198: 2811 | H198: 1257 | I198: 55
A199: 9 | B199: 102.125 | C199: 3936 | D199: 145 | E199: 232 | F199: 4496 | G199: 3217 | H199: 1279 | I199: 50
A200: 9 | B200: 102.1666667 | C200: 3580 | D200: 145 | E200: 232 | F200: 4576 | G200: 3323 | H200: 1253 | I200: 51
A201: 9 | B201: 102.2083333 | C201: 3945 | D201: 144 | E201: 232 | F201: 4519 | G201: 3266 | H201: 1253 | I201: 51
... 523 more rows

Sheet May
A1: May 2014 Dixie Binary Bottoming Cycle Data
A3: Date May | B3: Time | C3: Brine Flow [gpm] | D3: Brine Return Temp [F] | E3: Brine Supply Temp [F] | F3: Gen. Output [kW] | G3: Net [KW] | H3: Parasitic KW] | I3: T Dry Bulb [F]
A4: 1 | B4: 100 | C4: 3741.525391 | D4: 145.2506409 | E4: 232.1831512 | F4: 3760.106445 | G4: 2551.249268 | H4: =F4-G4 -> 1208.857178 | I4: 57.92562866
A5: 1 | B5: 100.0416667 | C5: 3489.300537 | D5: 140.8537598 | E5: 232.1118774 | F5: 4027.530029 | G5: 2843.749268 | H5: =F5-G5 -> 1183.780762 | I5: 50.91013336
A6: 1 | B6: 100.0833333 | C6: 3714.825684 | D6: 142.5412598 | E6: 232.1775055 | F6: 4582.720703 | G6: 3282.499023 | H6: 1300.22168 | I6: 47.01425934
A7: 1 | B7: 100.125 | C7: 3753.075684 | D7: 142.0575104 | E7: 232.0687561 | F7: 4601.562988 | G7: 3339.374023 | H7: 1262.188965 | I7: 46.65875244
A8: 1 | B8: 100.1666667 | C8: 3720.750244 | D8: 142.4868774 | E8: 232.1587524 | F8: 4630.916016 | G8: 3363.749023 | H8: 1267.166992 | I8: 46.27625275
A9: 1 | B9: 100.2083333 | C9: 3735.825684 | D9: 143.3156281 | E9: 232.1118774 | F9: 4335.205078 | G9: 3071.249268 | H9: 1263.955811 | I9: 49.28675842
A10: 1 | B10: 100.25 | C10: 3721.425537 | D10: 142.0537567 | E10: 232.1268921 | F10: 4389.212891 | G10: 3176.874268 | H10: 1212.338623 | I10: 47.95250702
A11: 1 | B11: 100.2916667 | C11: 3431.925537 | D11: 139.1587524 | E11: 232.1418915 | F11: 4024.672119 | G11: 2811.249268 | H11: 1213.422852 | I11: 50.74250031
A12: 1 | B12: 100.3333333 | C12: 3386.625244 | D12: 138.0825195 | E12: 232.2900238 | F12: 3805.637695 | G12: 2608.124268 | H12: 1197.513428 | I12: 55.29875183
A13: 1 | B13: 100.375 | C13: Bad data.
A14: 1 | B14: 100.4166667 | C14: 3825.675537 | D14: 144.1106415 | E14: 232.2731476 | F14: 3374.253418 | G14: 2209.999512 | H14: 1164.253906 | I14: 68.09788513
A15: 1 | B15: 100.4583333 | C15: 3673.200684 | D15: 146.5762634 | E15: 232.2956238 | F15: 2824.972168 | G15: 1681.874512 | H15: 1143.097656 | I15: 73.783638
A16: 1 | B16: 100.5 | C16: 3699.900391 | D16: 148.3987732 | E16: 232.3387604 | F16: 2337.109619 | G16: 1275.624634 | H16: 1061.484985 | I16: 78.00125122
A17: 1 | B17: 100.5416667 | C17: 3830.850098 | D17: 152.1431274 | E17: 232.3668976 | F17: 2382.205078 | G17: 1210.624634 | H17: 1171.580444 | I17: 81.21875763
A18: 1 | B18: 100.5833333 | C18: 3406.125244 | D18: 147.8925171 | E18: 232.3293915 | F18: 1880.343872 | G18: 869.3747559 | H18: 1010.969116 | I18: 84.87500763
A19: 1 | B19: 100.625 | C19: 3546.225098 | D19: 152.139389 | E19: 232.3687592 | F19: 1861.453247 | G19: 779.9998169 | H19: 1081.45343 | I19: 86.31388092
A20: 1 | B20: 100.6666667 | C20: 3566.625244 | D20: 151.2093811 | E20: 232.2993927 | F20: 1651.67041 | G20: 658.1248169 | H20: 993.5455933 | I20: 87.36351013
A21: 1 | B21: 100.7083333 | C21: 3423.600098 | D21: 150.2512665 | E21: 232.3800049 | F21: 1466.833008 | G21: 463.1248779 | H21: 1003.70813 | I21: 88.13975525
A22: 1 | B22: 100.75 | C22: 3659.475098 | D22: 155.0437622 | E22: 232.2975311 | F22: 1611.176758 | G22: 471.2498779 | H22: 1139.92688 | I22: 84.46325684
A23: 1 | B23: 100.7916667 | C23: 3738.825684 | D23: 153.2306213 | E23: 232.2093811 | F23: 1683.92981 | G23: 682.4998169 | H23: 1001.429993 | I23: 81.096138
A24: 1 | B24: 100.8333333 | C24: 3708.675537 | D24: 151.6425171 | E24: 232.2168884 | F24: 1982.934692 | G24: 934.3747559 | H24: 1048.559937 | I24: 76.08875275
A25: 1 | B25: 100.875 | C25: 3717.150391 | D25: 151.839386 | E25: 232.1737671 | F25: 2259.512451 | G25: 1137.499756 | H25: 1122.012695 | I25: 73.77238464
A26: 1 | B26: 100.9166667 | C26: 3741.975098 | D26: 145.8712463 | E26: 232.3087769 | F26: 3312.253418 | G26: 2136.874512 | H26: 1175.378906 | I26: 63.01625061
A27: 1 | B27: 100.9583333 | C27: 3766.875244 | D27: 146.3362732 | E27: 232.155014 | F27: 3180.648682 | G27: 2039.374512 | H27: 1141.27417 | I27: 64.03888702
A28: 2 | B28: 100 | C28: 3692.475098 | D28: 144.7593842 | E28: 232.1512604 | F28: 3522.181641 | G28: 2364.374268 | H28: 1157.807373 | I28: 59.91125488
A29: 2 | B29: 100.0416667 | C29: 3730.200684 | D29: 144.2250061 | E29: 232.1962585 | F29: 3671.659668 | G29: 2494.374268 | H29: 1177.2854 | I29: 56.76125336
A30: 2 | B30: 100.0833333 | C30: 3503.625244 | D30: 139.2450104 | E30: 232.1643982 | F30: 3829.808105 | G30: 2681.249268 | H30: 1148.558838 | I30: 52.06325531
A31: 2 | B31: 100.125 | C31: 3785.100098 | D31: 141.7218781 | E31: 232.2468872 | F31: 4530.989258 | G31: 3314.999023 | H31: 1215.990234 | I31: 47.55875397
A32: 2 | B32: 100.1666667 | C32: 3490.650391 | D32: 140.8856354 | E32: 232.1381378 | F32: 3807.865967 | G32: 2648.749268 | H32: 1159.116699 | I32: 54.18950653
A33: 2 | B33: 100.2083333 | C33: 3759.675537 | D33: 142.2393951 | E33: 232.2018738 | F33: 4297.423828 | G33: 3111.874268 | H33: 1185.549561 | I33: 49.62875366
A34: 2 | B34: 100.25 | C34: 3791.025391 | D34: 142.4587555 | E34: 232.1268921 | F34: 4771.094238 | G34: 3493.749023 | H34: 1277.345215 | I34: 45.84087372
A35: 2 | B35: 100.2916667 | C35: 3690.300537 | D35: 143.0625 | E35: 232.2281342 | F35: 4342.131836 | G35: 3111.874268 | H35: 1230.257568 | I35: 50.65138245
A36: 2 | B36: 100.3333333 | C36: 3389.475098 | D36: 138.8118744 | E36: 232.2562561 | F36: 3445.262695 | G36: 2339.999268 | H36: 1105.263428 | I36: 59.8223877
A37: 2 | B37: 100.375 | C37: 3357.900391 | D37: 140.636261 | E37: 232.2018738 | F37: 2885.373779 | G37: 1763.124512 | H37: 1122.249268 | I37: 67.56125641
A38: 2 | B38: 100.4166667 | C38: 3340.125244 | D38: 142.3106384 | E38: 232.3575134 | F38: 2211.947266 | G38: 1218.749634 | H38: 993.1976318 | I38: 75.40363312
A39: 2 | B39: 100.4583333 | C39: 3372.525391 | D39: 145.8768921 | E39: 232.2468872 | F39: 2152.611328 | G39: 1056.249756 | H39: 1096.361572 | I39: 78.424263
A40: 2 | B40: 100.5 | C40: 3545.100098 | D40: 149.4281311 | E40: 232.3424988 | F40: 2035.731323 | G40: 926.2497559 | H40: 1109.481567 | I40: 83.85238647
A41: 2 | B41: 100.5416667 | C41: 3384.375244 | D41: 151.1475067 | E41: 232.4512634 | F41: 1536.292358 | G41: 430.6248779 | H41: 1105.66748 | I41: 88.90925598
A42: 2 | B42: 100.5833333 | C42: 3539.250244 | D42: 153.5212555 | E42: 232.4062653 | F42: 1433.02356 | G42: 333.1249084 | H42: 1099.898651 | I42: 90.03875732
A43: 2 | B43: 100.625 | C43: 3434.250244 | D43: 153.6468811 | E43: 232.2881622 | F43: 1320.939209 | G43: 251.874939 | H43: 1069.06427 | I43: 91.73526001
A44: 2 | B44: 100.6666667 | C44: 3381.750244 | D44: 151.3650055 | E44: 232.3706207 | F44: 1191.368896 | G44: 203.124939 | H44: 988.2439575 | I44: 92.24375916
A45: 2 | B45: 100.7083333 | C45: 3367.050537 | D45: 153.3056335 | E45: 232.2543945 | F45: 1050.415771 | G45: 32.49999237 | H45: 1017.915779 | I45: 92.00750732
A46: 2 | B46: 100.75 | C46: 3621.000244 | D46: 154.5431213 | E46: 232.3631592 | F46: 1330.529663 | G46: 316.8749084 | H46: 1013.654755 | I46: 88.45025635
A47: 2 | B47: 100.7916667 | C47: 3683.775391 | D47: 155.5518951 | E47: 232.3575134 | F47: 1508.537598 | G47: 389.9999084 | H47: 1118.537689 | I47: 85.24625397
A48: 2 | B48: 100.8333333 | C48: 3364.125244 | D48: 150.4968872 | E48: 232.3556519 | F48: 1455.789185 | G48: 479.3748779 | H48: 976.4143066 | I48: 80.93187714
A49: 2 | B49: 100.875 | C49: 3383.700684 | D49: 153.8399963 | E49: 232.2393799 | F49: 997.4736328 | G49: 16.24999619 | H49: 981.2236366 | I49: 79.99925995
A50: 2 | B50: 100.9166667 | C50: 3660.300537 | D50: 156.9543915 | E50: 232.2581329 | F50: 1417.087646 | G50: 341.2499084 | H50: 1075.837738 | I50: 78.17675781
A51: 2 | B51: 100.9583333 | C51: 3678.975098 | D51: 149.964386 | E51: 232.3200226 | F51: 2283.780029 | G51: 1243.124634 | H51: 1040.655396 | I51: 75.49024963
A52: 3 | B52: 100 | C52: 3678.375244 | D52: 149.561264 | E52: 232.2412872 | F52: 2442.606201 | G52: 1308.124634 | H52: 1134.481567 | I52: 73.35725403
A53: 3 | B53: 100.0416667 | C53: 3533.625244 | D53: 146.3531342 | E53: 232.2525177 | F53: 2238.490967 | G53: 1218.749634 | H53: 1019.741333 | I53: 72.99388123
A54: 3 | B54: 100.0833333 | C54: 3775.200684 | D54: 146.8274994 | E54: 232.2619019 | F54: 3050.690918 | G54: 1901.249512 | H54: 1149.441406 | I54: 62.8576355
A55: 3 | B55: 100.125 | C55: 3449.100098 | D55: 141.8456421 | E55: 232.3069 | F55: 3137.830078 | G55: 1990.624512 | H55: 1147.205566 | I55: 57.86375427
A56: 3 | B56: 100.1666667 | C56: 3763.350098 | D56: 143.4562531 | E56: 232.2150269 | F56: 3891.468994 | G56: 2697.499268 | H56: 1193.969727 | I56: 54.42800903
A57: 3 | B57: 100.2083333 | C57: 3777.975098 | D57: 143.4562531 | E57: 232.2487488 | F57: 4126.100586 | G57: 2900.624268 | H57: 1225.476318 | I57: 52.8968811
A58: 3 | B58: 100.25 | C58: 3779.625244 | D58: 143.3718872 | E58: 232.3143768 | F58: 4248.405273 | G58: 3022.499268 | H58: 1225.906006 | I58: 51.30500031
A59: 3 | B59: 100.2916667 | C59: 3782.550537 | D59: 142.8243713 | E59: 232.4081268 | F59: 4309.000488 | G59: 3087.499268 | H59: 1221.501221 | I59: 49.70301056
A60: 3 | B60: 100.3333333 | C60: 3408.375244 | D60: 138.1462555 | E60: 232.3237457 | F60: 3727.07251 | G60: 2608.124268 | H60: 1118.948242 | I60: 55.18850708
A61: 3 | B61: 100.375 | C61: 3433.725098 | D61: 141.9431305 | E61: 232.2356415 | F61: 2960.597168 | G61: 1852.499512 | H61: 1108.097656 | I61: 67.88750458
A62: 3 | B62: 100.4166667 | C62: 3627.375244 | D62: 146.7056274 | E62: 232.1831512 | F62: 2686.053467 | G62: 1592.499634 | H62: 1093.553833 | I62: 74.35400391
A63: 3 | B63: 100.4583333 | C63: 3693.225098 | D63: 146.9381409 | E63: 232.3481445 | F63: 2248.033203 | G63: 1202.499634 | H63: 1045.533569 | I63: 77.79763031
A64: 3 | B64: 100.5 | C64: 3612.300537 | D64: 149.936264 | E64: 232.3668976 | F64: 2180.074951 | G64: 1137.499756 | H64: 1042.575195 | I64: 79.34000397
A65: 3 | B65: 100.5416667 | C65: 3392.625244 | D65: 149.9137573 | E65: 232.3368988 | F65: 1677.729858 | G65: 617.4998169 | H65: 1060.230042 | I65: 81.99388123
A66: 3 | B66: 100.5833333 | C66: 3360.075684 | D66: 149.3850098 | E66: 232.2806549 | F66: 1512.364258 | G66: 519.9998779 | H66: 992.3643799 | I66: 85.0606308
A67: 3 | B67: 100.625 | C67: 3620.850098 | D67: 152.5518951 | E67: 232.2993927 | F67: 1776.203247 | G67: 690.6248169 | H67: 1085.57843 | I67: 83.89738464
A68: 3 | B68: 100.6666667 | C68: 3594.225098 | D68: 153.4312592 | E68: 232.3256531 | F68: 1702.04541 | G68: 609.3748169 | H68: 1092.670593 | I68: 86.51750183
A69: 3 | B69: 100.7083333 | C69: 3617.550537 | D69: 153.1481323 | E69: 232.2637634 | F69: 1475.212646 | G69: 446.8748779 | H69: =F69-G69 -> 1028.337769 | I69: 84.6545105
A70: 3 | B70: 100.75 | C70: 3797.775391 | D70: 155.2125092 | E70: 232.3275299 | F70: 1672.546997 | G70: 649.9998169 | H70: 1022.54718 | I70: 85.26313019
A71: 3 | B71: 100.7916667 | C71: 3681.300537 | D71: 153.1781311 | E71: 232.2450104 | F71: 1584.923584 | G71: 576.8748169 | H71: 1008.048767 | I71: 81.22212982
A72: 3 | B72: 100.8333333 | C72: 3575.625244 | D72: 153.0093842 | E72: 232.2319031 | F72: 1658.112671 | G72: 658.1248169 | H72: 999.987854 | I72: 77.78076172
A73: 3 | B73: 100.875 | C73: 3670.200684 | D73: 153.3712463 | E73: 232.2431488 | F73: 1571.893921 | G73: 536.2498779 | H73: 1035.644043 | I73: 76.07187653
A74: 3 | B74: 100.9166667 | C74: 3697.725098 | D74: 151.8206482 | E74: 232.2806549 | F74: 2140.550293 | G74: 1048.124756 | H74: 1092.425537 | I74: 74.62625122
A75: 3 | B75: 100.9583333 | C75: 3699.450684 | D75: 150.3600159 | E75: 232.2937622 | F75: 2345.19873 | G75: 1234.999634 | H75: 1110.199097 | I75: 72.86225891
A76: 4 | B76: 100 | C76: 3724.125244 | D76: 148.3143921 | E76: 232.2731476 | F76: 2532.699951 | G76: 1446.249634 | H76: 1086.450317 | I76: 68.77850342
A77: 4 | B77: 100.0416667 | C77: 3753.825684 | D77: 150.7649994 | E77: 232.155014 | F77: 2222.797119 | G77: 1153.749634 | H77: 1069.047485 | I77: 71.85875702
A78: 4 | B78: 100.0833333 | C78: 3686.025391 | D78: 146.6887665 | E78: 232.2956238 | F78: 2967.668945 | G78: 1876.874512 | H78: 1090.794434 | I78: 68.32850647
A79: 4 | B79: 100.125 | C79: 3698.100098 | D79: 146.1937561 | E79: 232.3293915 | F79: 3090.651855 | G79: 1974.374512 | H79: 1116.277344 | I79: 65.67800903
A80: 4 | B80: 100.1666667 | C80: 3734.775391 | D80: 144.8456421 | E80: 232.2731476 | F80: 3562.481445 | G80: 2372.499268 | H80: 1189.982178 | I80: 59.25763702
A81: 4 | B81: 100.2083333 | C81: 3757.500244 | D81: 144.5681305 | E81: 232.2581329 | F81: 3632.958008 | G81: 2478.124268 | H81: 1154.83374 | I81: 58.17312622
A82: 4 | B82: 100.25 | C82: 3772.125244 | D82: 144.1312561 | E82: 232.353775 | F82: 3854.269043 | G82: 2681.249268 | H82: 1173.019775 | I82: 54.94551086
A83: 4 | B83: 100.2916667 | C83: 3775.500244 | D83: 143.4618835 | E83: 232.2768707 | F83: 4079.890869 | G83: 2892.499268 | H83: 1187.391602 | I83: 53.7012558
A84: 4 | B84: 100.3333333 | C84: 3398.775391 | D84: 138.6056213 | E84: 232.3500061 | F84: 3429.181641 | G84: 2348.124268 | H84: 1081.057373 | I84: 59.39375305
A85: 4 | B85: 100.375 | C85: 3278.550537 | D85: 139.7850037 | E85: 232.3593903 | F85: 2865.611328 | G85: 1811.874512 | H85: 1053.736816 | I85: 67.73000336
A86: 4 | B86: 100.4166667 | C86: 3257.775391 | D86: 140.7037659 | E86: 232.3800049 | F86: 2458.590576 | G86: 1454.374634 | H86: 1004.215942 | I86: 74.52388763
A87: 4 | B87: 100.4583333 | C87: 3260.400391 | D87: 142.7287598 | E87: 232.3631592 | F87: 2253.16748 | G87: 1153.749634 | H87: 1099.417847 | I87: 77.5062561
A88: 4 | B88: 100.5 | C88: 3223.050537 | D88: 145.1962585 | E88: 232.4850311 | F88: 2021.587646 | G88: 942.4997559 | H88: 1079.087891 | I88: 79.62125397
A89: 4 | B89: 100.5416667 | C89: 3488.025391 | D89: 148.980011 | E89: 232.3518829 | F89: 2068.959717 | G89: 958.7497559 | H89: 1110.209961 | I89: 79.96662903
A90: 4 | B90: 100.5833333 | C90: 3294.450684 | D90: 147.0637665 | E90: 232.2412872 | F90: 1647.504883 | G90: 666.2498169 | H90: 981.2550659 | I90: 80.86437988
A91: 4 | B91: 100.625 | C91: 3336.825684 | D91: 147.3825073 | E91: 232.2975311 | F91: 1622.075195 | G91: 568.7498779 | H91: 1053.325317 | I91: 80.49875641
A92: 4 | B92: 100.6666667 | C92: 3485.475098 | D92: 150.8493805 | E92: 232.3500061 | F92: 1440.822021 | G92: 398.1249084 | H92: 1042.697113 | I92: 83.24263763
A93: 4 | B93: 100.7083333 | C93: 3580.875244 | D93: 151.3518982 | E93: 232.2319031 | F93: 1576.640747 | G93: 568.7498779 | H93: 1007.890869 | I93: 81.89150238
A94: 4 | B94: 100.75 | C94: 3624.900391 | D94: 150.4668884 | E94: 232.2768707 | F94: 2067.603516 | G94: 942.4997559 | H94: 1125.10376 | I94: 78.82587433
A95: 4 | B95: 100.7916667 | C95: 3604.725098 | D95: 150.0337524 | E95: 232.2319031 | F95: 2145.733154 | G95: 1072.499756 | H95: 1073.233398 | I95: 76.52750397
A96: 4 | B96: 100.8333333 | C96: 3646.200684 | D96: 148.6293945 | E96: 232.3162842 | F96: 2265.858154 | G96: 1194.374634 | H96: 1071.483521 | I96: 73.38763428
A97: 4 | B97: 100.875 | C97: 3634.650391 | D97: 148.2093811 | E97: 232.2431488 | F97: 2388.114014 | G97: 1316.249634 | H97: 1071.86438 | I97: 72.84650421
A98: 4 | B98: 100.9166667 | C98: 3655.050537 | D98: 149.7825165 | E98: 232.2468872 | F98: 2293.85498 | G98: 1243.124634 | H98: 1050.730347 | I98: 70.28375244
A99: 4 | B99: 100.9583333 | C99: 3682.200684 | D99: 149.3868713 | E99: 232.2018738 | F99: 2427.009766 | G99: 1332.499634 | H99: 1094.510132 | I99: 68.87187958
A100: 5 | B100: 100 | C100: 3685.650391 | D100: 147.9581451 | E100: 232.2581329 | F100: 2647.496826 | G100: 1568.124634 | H100: 1079.372192 | I100: 66.81538391
A101: 5 | B101: 100.0416667 | C101: 3709.425537 | D101: 146.8200073 | E101: 232.3050079 | F101: 2953.718994 | G101: 1844.374512 | H101: 1109.344482 | I101: 66.4553833
A102: 5 | B102: 100.0833333 | C102: 3727.575684 | D102: 145.9893951 | E102: 232.3424988 | F102: 3158.512695 | G102: 2039.374512 | H102: 1119.138184 | I102: 64.58000183
A103: 5 | B103: 100.125 | C103: 3685.725098 | D103: 145.6781311 | E103: 232.3050079 | F103: 3458.34082 | G103: 2315.624268 | H103: 1142.716553 | I103: 62.51337433
A104: 5 | B104: 100.1666667 | C104: 3670.800537 | D104: 144.5662537 | E104: 232.2525177 | F104: 3419.155029 | G104: 2266.874512 | H104: 1152.280518 | I104: 61.6876297
A105: 5 | B105: 100.2083333 | C105: 3659.925537 | D105: 144.0806274 | E105: 232.3406372 | F105: 3633.781494 | G105: 2469.999268 | H105: 1163.782227 | I105: 59.09000397
A106: 5 | B106: 100.25 | C106: 3736.425537 | D106: 143.5462494 | E106: 232.2712708 | F106: 3986.358154 | G106: 2778.749268 | H106: 1207.608887 | I106: 54.47637939
A107: 5 | B107: 100.2916667 | C107: 3715.500244 | D107: 143.1018982 | E107: 232.3237457 | F107: 4084.589355 | G107: 2868.124268 | H107: 1216.465088 | I107: 53.18375397
A108: 5 | B108: 100.3333333 | C108: 3367.425537 | D108: 138.1687622 | E108: 232.2956238 | F108: 3510.798828 | G108: 2404.999268 | H108: 1105.799561 | I108: 56.81750488
A109: 5 | B109: 100.375 | C109: 3724.800537 | D109: 144.7537537 | E109: 232.2956238 | F109: 3533.515869 | G109: 2380.624268 | H109: 1152.891602 | I109: 61.38500214
A110: 5 | B110: 100.4166667 | C110: 3520.425537 | D110: 142.9031372 | E110: 232.4512634 | F110: 3185.879883 | G110: 2047.499512 | H110: 1138.380371 | I110: 67.58150482
A111: 5 | B111: 100.4583333 | C111: 3484.725098 | D111: 143.1993713 | E111: 232.2243958 | F111: 2928.38623 | G111: 1828.124512 | H111: 1100.261719 | I111: 69.98113251
A112: 5 | B112: 100.5 | C112: 3737.175537 | D112: 147.545639 | E112: 232.4062653 | F112: 2917.584717 | G112: 1787.499512 | H112: 1130.085205 | I112: 71.67875671
A113: 5 | B113: 100.5416667 | C113: 3435.075684 | D113: 145.7756348 | E113: 232.4043884 | F113: 2604.436279 | G113: 1568.124634 | H113: 1036.311646 | I113: 74.64875793
A114: 5 | B114: 100.5833333 | C114: 3556.125244 | D114: 145.7681274 | E114: 232.3368988 | F114: 2651.275391 | G114: 1568.124634 | H114: 1083.150757 | I114: 73.82863617
A115: 5 | B115: 100.625 | C115: 3843.900391 | D115: 150.4256287 | E115: 232.3481445 | F115: 2456.023682 | G115: 1364.999634 | H115: 1091.024048 | I115: 75.15613556
A116: 5 | B116: 100.6666667 | C116: 3770.925537 | D116: 151.4212494 | E116: 232.3050079 | F116: 2355.322266 | G116: 1291.874634 | H116: 1063.447632 | I116: 76.5567627
A117: 5 | B117: 100.7083333 | C117: 3798.000244 | D117: 152.0531311 | E117: 232.2787781 | F117: 2173.972168 | G117: 1202.499634 | H117: 971.4725342 | I117: 69.35113525
A118: 5 | B118: 100.75 | C118: 3775.350098 | D118: 151.1437531 | E118: 232.3312531 | F118: 2319.187744 | G118: 1275.624634 | H118: 1043.56311 | I118: 66.09875488
A119: 5 | B119: 100.7916667 | C119: 3748.350098 | D119: 147.5812531 | E119: 232.1962585 | F119: 2872.876953 | G119: 1771.249512 | H119: 1101.627441 | I119: 65.45188141
A120: 5 | B120: 100.8333333 | C120: 3620.175537 | D120: 145.8562622 | E120: 232.2187653 | F120: 2942.96582 | G120: 1819.999512 | H120: 1122.966309 | I120: 63.79138184
A121: 5 | B121: 100.875 | C121: 3727.800537 | D121: 146.2912598 | E121: 232.2881622 | F121: 2943.740967 | G121: 1893.124512 | H121: 1050.616455 | I121: 60.18238831
A122: 5 | B122: 100.9166667 | C122: 3774.600098 | D122: 143.9456482 | E122: 232.2037811 | F122: 3301.064453 | G122: 2209.999512 | H122: 1091.064941 | I122: 56.92100525
A123: 5 | B123: 100.9583333 | C123: 3483.975098 | D123: 142.576889 | E123: 232.2562561 | F123: 2981.328369 | G123: 1917.499512 | H123: 1063.828857 | I123: 55.18738556
A124: 6 | B124: 100 | C124: 3676.800537 | D124: 141.5193787 | E124: 232.2187653 | F124: 4022.831543 | G124: 2851.874268 | H124: 1170.957275 | I124: 51.77413177
A125: 6 | B125: 100.0416667 | C125: 3417.225098 | D125: 137.7712555 | E125: 232.2393799 | F125: 3915.881592 | G125: 2803.124268 | H125: 1112.757324 | I125: 51.33200836
A126: 6 | B126: 100.0833333 | C126: 3743.550537 | D126: 140.2350159 | E126: 232.2037811 | F126: 4199.531738 | G126: 3006.249268 | H126: 1193.282471 | I126: 49.6782608
A127: 6 | B127: 100.125 | C127: 3490.200684 | D127: 139.6650085 | E127: 232.2975311 | F127: 4245.062988 | G127: 3022.499268 | H127: 1222.563721 | I127: 48.9886322
A128: 6 | B128: 100.1666667 | C128: 3557.325684 | D128: 138.8325195 | E128: 232.1962585 | F128: 4534.331543 | G128: 3339.374023 | H128: 1194.95752 | I128: 46.32012939
A129: 6 | B129: 100.2083333 | C129: 3545.625244 | D129: 138.7668915 | E129: 232.1606445 | F129: 4601.126953 | G129: 3404.374023 | H129: 1196.75293 | I129: 44.92738342
A130: 6 | B130: 100.25 | C130: 3663.900391 | D130: 138.5887604 | E130: 232.2262726 | F130: 4752.494141 | G130: 3558.749023 | H130: 1193.745117 | I130: 44.4200058
A131: 6 | B131: 100.2916667 | C131: 3777.675537 | D131: 141.6187592 | E131: 232.1962585 | F131: 5004.805176 | G131: 3737.499023 | H131: 1267.306152 | I131: 44.20625305
A132: 6 | B132: 100.3333333 | C132: 3444.375244 | D132: 138.4950104 | E132: 232.2993927 | F132: 4486.620605 | G132: 3258.124023 | H132: 1228.496582 | I132: 46.53275299
A133: 6 | B133: 100.375 | C133: 3787.650391 | D133: 140.90625 | E133: 232.2637634 | F133: 4849.999023 | G133: 3639.999023 | H133: =F133-G133 -> 1210 | I133: 44.40425873
A134: 6 | B134: 100.4166667 | C134: 3403.575684 | D134: 136.811264 | E134: 232.2862549 | F134: 4459.253418 | G134: 3290.624023 | H134: 1168.629395 | I134: 47.98625183
A135: 6 | B135: 100.4583333 | C135: 3338.775391 | D135: 137.0306244 | E135: 232.2825165 | F135: 4082.264404 | G135: 2941.249268 | H135: 1141.015137 | I135: 52.74275208
A136: 6 | B136: 100.5 | C136: 3706.575684 | D136: 140.8875122 | E136: 232.3725281 | F136: 4316.266113 | G136: 3144.374268 | H136: 1171.891846 | I136: 50.0742569
A137: 6 | B137: 100.5416667 | C137: 3351.300537 | D137: 138.7256317 | E137: 232.3125153 | F137: 3759.186279 | G137: 2559.374268 | H137: 1199.812012 | I137: 56.66788483
A138: 6 | B138: 100.5833333 | C138: 3323.100098 | D138: 139.1943817 | E138: 232.2675018 | F138: 3264.203369 | G138: 2193.749512 | H138: 1070.453857 | I138: 57.60500336
A139: 6 | B139: 100.625 | C139: 3324.825684 | D139: 138.7556305 | E139: 232.2712708 | F139: 3091.765869 | G139: 2039.374512 | H139: 1052.391357 | I139: 58.57250214
A140: 6 | B140: 100.6666667 | C140: 3402.150391 | D140: 142.8806305 | E140: 232.2993927 | F140: 3087.648682 | G140: 2014.999512 | H140: 1072.64917 | I140: 59.31500244
A141: 6 | B141: 100.7083333 | C141: 3449.175537 | D141: 142.2356415 | E141: 232.2319031 | F141: 3181.181641 | G141: 2047.499512 | H141: 1133.682129 | I141: 59.40500641
A142: 6 | B142: 100.75 | C142: 3631.725098 | D142: 144.2887573 | E142: 232.3781281 | F142: 3251.754883 | G142: 2136.874512 | H142: 1114.880371 | I142: 59.82801056
A143: 6 | B143: 100.7916667 | C143: 3649.275391 | D143: 144.0187531 | E143: 232.3218842 | F143: 3462.797119 | G143: 2339.999268 | H143: 1122.797852 | I143: 59.14850616
A144: 6 | B144: 100.8333333 | C144: 3671.775391 | D144: 145.7118835 | E144: 232.1737671 | F144: 3146.984619 | G144: 2047.499512 | H144: 1099.485107 | I144: 58.98875427
A145: 6 | B145: 100.875 | C145: 3722.550537 | D145: 145.5056305 | E145: 232.2319031 | F145: 3402.444092 | G145: 2250.624512 | H145: 1151.81958 | I145: 58.5218811
A146: 6 | B146: 100.9166667 | C146: 3414.450684 | D146: 140.5556335 | E146: 232.2900238 | F146: 3478.490967 | G146: 2315.624268 | H146: 1162.866699 | I146: 56.62625122
A147: 6 | B147: 100.9583333 | C147: 3428.400391 | D147: 142.1418915 | E147: 232.2637634 | F147: 3165.245605 | G147: 2096.249512 | H147: 1068.996094 | I147: 57.275383
A148: 7 | B148: 100 | C148: 3558.300537 | D148: 147.6131287 | E148: 232.2712708 | F148: 2608.940918 | G148: 1559.999634 | H148: 1048.941284 | I148: 55.99513245
A149: 7 | B149: 100.0416667 | C149: 3422.025391 | D149: 144.1200104 | E149: 232.1737671 | F149: 2573.920654 | G149: 1568.124634 | H149: 1005.796021 | I149: 54.30875397
A150: 7 | B150: 100.0833333 | C150: 3583.275391 | D150: 139.933136 | E150: 232.2562561 | F150: 4207.668945 | G150: 3006.249268 | H150: 1201.419678 | I150: 49.72325897
A151: 7 | B151: 100.125 | C151: 3766.050537 | D151: 141.2512665 | E151: 232.2862549 | F151: 4608.828613 | G151: 3404.374023 | H151: 1204.45459 | I151: 47.60712433
A152: 7 | B152: 100.1666667 | C152: 3736.725098 | D152: 142.5899963 | E152: 232.3106384 | F152: 3986.358154 | G152: 2843.749268 | H152: 1142.608887 | I152: 49.17087555
A153: 7 | B153: 100.2083333 | C153: 3759.825684 | D153: 143.2575073 | E153: 232.3725281 | F153: 4204.084961 | G153: 3006.249268 | H153: 1197.835693 | I153: 49.23388672
A154: 7 | B154: 100.25 | C154: 3524.550537 | D154: 138.3956451 | E154: 232.2337799 | F154: 4593.66748 | G154: 3347.499023 | H154: 1246.168457 | I154: 42.69538116
A155: 7 | B155: 100.2916667 | C155: 3872.475098 | D155: 141.9225159 | E155: 232.2525177 | F155: 4863.270508 | G155: 3631.874023 | H155: 1231.396484 | I155: 46.68238831
A156: 7 | B156: 100.3333333 | C156: 3554.625244 | D156: 140.7562561 | E156: 232.3331299 | F156: 4453.053711 | G156: 3249.999023 | H156: 1203.054688 | I156: 51.087883
A157: 7 | B157: 100.375 | C157: 3508.275391 | D157: 139.7943878 | E157: 232.3462677 | F157: 3971.536133 | G157: 2786.874268 | H157: 1184.661865 | I157: 58.541008
A158: 7 | B158: 100.4166667 | C158: 3612.300537 | D158: 141.4612732 | E158: 232.3725281 | F158: 3879.69873 | G158: 2721.874268 | H158: 1157.824463 | I158: 60.28250122
A159: 7 | B159: 100.4583333 | C159: 3685.200684 | D159: 144.0149994 | E159: 232.3800049 | F159: 3895.925293 | G159: 2729.999268 | H159: 1165.926025 | I159: 59.96638489
A160: 7 | B160: 100.5 | C160: 3538.950684 | D160: 141.0037537 | E160: 232.3950195 | F160: 3327.608154 | G160: 2234.374512 | H160: 1093.233643 | I160: 60.18125153
A161: 7 | B161: 100.5416667 | C161: 3394.500244 | D161: 142.2525024 | E161: 232.3668976 | F161: 3229.134766 | G161: 2104.374512 | H161: 1124.760254 | I161: 61.69212341
A162: 7 | B162: 100.5833333 | C162: 3785.325684 | D162: 146.3043823 | E162: 232.3350372 | F162: 3440.031494 | G162: 2274.999512 | H162: 1165.031982 | I162: 62.40538025
A163: 7 | B163: 100.625 | C163: 3453.525391 | D163: 143.5762634 | E163: 232.4400177 | F163: 2781.281494 | G163: 1689.999512 | H163: 1091.281982 | I163: 68.49163055
A164: 7 | B164: 100.6666667 | C164: 3674.400391 | D164: 145.5 | E164: 232.3162842 | F164: 3336.133057 | G164: 2185.624512 | H164: 1150.508545 | I164: 66.43738556
A165: 7 | B165: 100.7083333 | C165: 3471.000244 | D165: 143.9775085 | E165: 232.3687592 | F165: 3077.815918 | G165: 1966.249512 | H165: 1111.566406 | I165: 62.4200058
A166: 7 | B166: 100.75 | C166: 3469.800537 | D166: 141.2625122 | E166: 232.4550018 | F166: 2992.033203 | G166: 1868.749512 | H166: 1123.283691 | I166: 67.06738281
A167: 7 | B167: 100.7916667 | C167: 3764.100098 | D167: 145.9950104 | E167: 232.4250031 | F167: 3287.986328 | G167: 2153.124512 | H167: 1134.861816 | I167: 62.15000153
A168: 7 | B168: 100.8333333 | C168: 3705.975098 | D168: 144.9375 | E168: 232.3518829 | F168: 3505.906494 | G168: 2348.124268 | H168: 1157.782227 | I168: 58.88863373
A169: 7 | B169: 100.875 | C169: 3388.950684 | D169: 139.1137695 | E169: 232.3444061 | F169: 3701.593994 | G169: 2575.624268 | H169: 1125.969727 | I169: 53.9825058
A170: 7 | B170: 100.9166667 | C170: 3703.650391 | D170: 142.0875092 | E170: 232.2450104 | F170: 4357.001953 | G170: 3144.374268 | H170: 1212.627686 | I170: 50.10800934
A171: 7 | B171: 100.9583333 | C171: 3660.150391 | D171: 142.1775055 | E171: 232.2543945 | F171: 4003.504883 | G171: 2835.624268 | H171: 1167.880615 | I171: 52.81700897
A172: 8 | B172: 100 | C172: 3727.500244 | D172: 141.234375 | E172: 232.2937622 | F172: 4586.983398 | G172: 3371.874023 | H172: 1215.109375 | I172: 46.90625
A173: 8 | B173: 100.0416667 | C173: 3388.275391 | D173: 136.3725128 | E173: 232.3125153 | F173: 4136.562988 | G173: 3006.249268 | H173: 1130.313721 | I173: 47.75
A174: 8 | B174: 100.0833333 | C174: 3688.500244 | D174: 138.873764 | E174: 232.3350372 | F174: 4907.930176 | G174: 3696.874023 | H174: 1211.056152 | I174: 41.9022522
A175: 8 | B175: 100.125 | C175: 3671.925537 | D175: 140.4150085 | E175: 232.3050079 | F175: 4768.866211 | G175: 3526.249023 | H175: 1242.617188 | I175: 44.51113129
A176: 8 | B176: 100.1666667 | C176: 3671.100098 | D176: 139.0481415 | E176: 232.3162842 | F176: 4984.703613 | G176: 3745.624023 | H176: 1239.07959 | I176: 42.67513275
A177: 8 | B177: 100.2083333 | C177: 3724.575684 | D177: 138.3956451 | E177: 232.2525177 | F177: 5314.756836 | G177: 4054.374023 | H177: 1260.382812 | I177: 35.80138397
A178: 8 | B178: 100.25 | C178: 3846.225098 | D178: 140.0306244 | E178: 232.3912811 | F178: 5533.35498 | G178: 4216.874023 | H178: 1316.480957 | I178: 34.91488647
A179: 8 | B179: 100.2916667 | C179: 3474.150391 | D179: 135.7162628 | E179: 232.2299957 | F179: 4964.456543 | G179: 3769.999023 | H179: 1194.45752 | I179: 39.752388
A180: 8 | B180: 100.3333333 | C180: 3453.600098 | D180: 138.3993835 | E180: 232.3481445 | F180: 4320.47998 | G180: 3079.374268 | H180: 1241.105713 | I180: 49.4825058
A181: 8 | B181: 100.375 | C181: 3470.100098 | D181: 138.6975098 | E181: 232.4362488 | F181: 3828.984619 | G181: 2681.249268 | H181: 1147.735352 | I181: 60.84500122
A182: 8 | B182: 100.4166667 | C182: 3713.400391 | D182: 144.639389 | E182: 232.3556519 | F182: 3788.394043 | G182: 2591.874268 | H182: 1196.519775 | I182: 61.97788239
A183: 8 | B183: 100.4583333 | C183: Unit off line at 1035 to prepare for heat exchanger cleaning.
A184: 8 | B184: 100.5 | C184: Unit off line in preparation for heat exchanger cleaning.
A185: 8 | B185: 100.5416667 | C185: Unit off line in preparation for heat exchanger cleaning.
A186: 8 | B186: 100.5833333 | C186: Unit off line in preparation for heat exchanger cleaning.
A187: 8 | B187: 100.625 | C187: Unit off line in preparation for heat exchanger cleaning.
A188: 8 | B188: 100.6666667 | C188: Unit off line in preparation for heat exchanger cleaning.
A189: 8 | B189: 100.7083333 | C189: Unit off line in preparation for heat exchanger cleaning.
A190: 8 | B190: 100.75 | C190: Unit off line in preparation for heat exchanger cleaning.
A191: 8 | B191: 100.7916667 | C191: Unit off line in preparation for heat exchanger cleaning.
A192: 8 | B192: 100.8333333 | C192: Unit off line in preparation for heat exchanger cleaning.
A193: 8 | B193: 100.875 | C193: Unit off line in preparation for heat exchanger cleaning.
A194: 8 | B194: 100.9166667 | C194: Unit off line in preparation for heat exchanger cleaning.
A195: 8 | B195: 100.9583333 | C195: Unit off line in preparation for heat exchanger cleaning.
A196: 9 | B196: 100 | C196: Unit off line in preparation for heat exchanger cleaning.
A197: 9 | B197: 100.0416667 | C197: Unit off line in preparation for heat exchanger cleaning.
A198: 9 | B198: 100.0833333 | C198: Unit off line in preparation for heat exchanger cleaning.
A199: 9 | B199: 100.125 | C199: Unit off line in preparation for heat exchanger cleaning.
A200: 9 | B200: 100.1666667 | C200: Unit off line in preparation for heat exchanger cleaning.
A201: 9 | B201: 100.2083333 | C201: Unit off line in preparation for heat exchanger cleaning.
... 546 more rows

Sheet June
A1: June 2014 Dixie Binary Bottoming Cycle Data
A3: Date June | B3: Time | C3: Brine Flow [gpm] | D3: Brine Return Temp [F] | E3: Brine Supply Temp [F] | F3: Gen. Output [kW] | G3: Net [KW] | H3: Parasitic KW] | I3: T Dry Bulb [F]
A4: 1 | B4: 100 | C4: 5386.575684 | D4: 165.3937531 | E4: 232.7868958 | F4: 3349.550293 | G4: 2161.249512 | H4: 1188.300781 | I4: 68.69750214
A5: 1 | B5: 100.0416667 | C5: 5374.350098 | D5: 163.483139 | E5: 232.6725311 | F5: 3962.720947 | G5: 2770.624268 | H5: 1192.09668 | I5: 63.66875458
A6: 1 | B6: 100.0833333 | C6: 5405.925781 | D6: 163.0237732 | E6: 232.7081299 | F6: 4249.664551 | G6: 3006.249268 | H6: 1243.415283 | I6: 60.846138
A7: 1 | B7: 100.125 | C7: 5619.375488 | D7: 164.4393921 | E7: 232.7793884 | F7: 4433.436523 | G7: 3176.874268 | H7: 1256.562256 | I7: 60.76963043
A8: 1 | B8: 100.1666667 | C8: 5639.400391 | D8: 164.5050201 | E8: 232.6200104 | F8: 4486.426758 | G8: 3209.374268 | H8: 1277.05249 | I8: 60.30725861
A9: 1 | B9: 100.2083333 | C9: 5594.850098 | D9: 164.4918823 | E9: 232.7981415 | F9: 4403.163086 | G9: 3144.374268 | H9: 1258.788818 | I9: 58.50613403
A10: 1 | B10: 100.25 | C10: 5288.475098 | D10: 161.9325104 | E10: 232.7250061 | F10: 4164.656738 | G10: 2949.374268 | H10: 1215.282471 | I10: 58.89988708
A11: 1 | B11: 100.2916667 | C11: 5358.975098 | D11: 162.0337524 | E11: 232.7512665 | F11: 4350.220703 | G11: 3087.499268 | H11: 1262.721436 | I11: 61.92050934
A12: 1 | B12: 100.3333333 | C12: 5040.600098 | D12: 161.7693787 | E12: 232.8319092 | F12: 3860.76001 | G12: 2656.874268 | H12: 1203.885742 | I12: 66.63988495
A13: 1 | B13: 100.375 | C13: 5104.875488 | D13: 162.2362671 | E13: 232.8412781 | F13: 3377.88623 | G13: 2218.124512 | H13: 1159.761719 | I13: 72.27500153
A14: 1 | B14: 100.4166667 | C14: 5023.350098 | D14: 163.1268921 | E14: 232.8431549 | F14: 2915.211182 | G14: 1819.999512 | H14: 1095.21167 | I14: 73.89837646
A15: 1 | B15: 100.4583333 | C15: 5007.150391 | D15: 164.5181274 | E15: 232.8956299 | F15: 2655.489014 | G15: 1519.374634 | H15: 1136.11438 | I15: 79.28375244
A16: 1 | B16: 100.5 | C16: 5001.825684 | D16: 164.8800201 | E16: 232.8431549 | F16: 2586.756592 | G16: 1486.874634 | H16: 1099.881958 | I16: 82.52713013
A17: 1 | B17: 100.5416667 | C17: 5005.425781 | D17: 165.6750031 | E17: 232.8656311 | F17: 2565.686279 | G17: 1454.374634 | H17: 1111.311646 | I17: 84.31250763
A18: 1 | B18: 100.5833333 | C18: 5007.525391 | D18: 166.6125031 | E18: 232.8862457 | F18: 2332.992432 | G18: 1202.499634 | H18: 1130.492798 | I18: 87.57500458
A19: 1 | B19: 100.625 | C19: 5031.900391 | D19: 167.3362732 | E19: 232.9987488 | F19: 2285.330078 | G19: 1169.999634 | H19: 1115.330444 | I19: 89.22763062
A20: 1 | B20: 100.6666667 | C20: 5015.550781 | D20: 168.0637665 | E20: 232.9237518 | F20: 2068.910889 | G20: 1007.499756 | H20: 1061.411133 | I20: 89.69000244
A21: 1 | B21: 100.7083333 | C21: 5022.825684 | D21: 168.967514 | E21: 232.8375092 | F21: 1871.431396 | G21: 779.9998169 | H21: 1091.43158 | I21: 91.31900024
A22: 1 | B22: 100.75 | C22: 5013.825684 | D22: 168.6150055 | E22: 232.8319092 | F22: 1896.037598 | G22: 820.6247559 | H22: 1075.412842 | I22: 89.53250122
A23: 1 | B23: 100.7916667 | C23: 5129.550781 | D23: 169.3912659 | E23: 232.8637695 | F23: 2015.92041 | G23: 853.1247559 | H23: 1162.795654 | I23: 84.09875488
A24: 1 | B24: 100.8333333 | C24: 5092.125488 | D24: 167.9493713 | E24: 232.8637695 | F24: 2191.942139 | G24: 1088.749756 | H24: 1103.192383 | I24: 80.88687897
A25: 1 | B25: 100.875 | C25: 5127.450684 | D25: 169.1512604 | E25: 232.8093872 | F25: 2119.625244 | G25: 999.3747559 | H25: 1120.250488 | I25: 79.68875122
A26: 1 | B26: 100.9166667 | C26: 5155.800781 | D26: 163.9556274 | E26: 232.8618927 | F26: 3174.981445 | G26: 2006.874512 | H26: 1168.106934 | I26: 66.76363373
A27: 2 | B27: 100.9583333 | C27: 5131.425781 | D27: 163.839386 | E27: 232.6706238 | F27: 3013.442383 | G27: 1868.749512 | H27: 1144.692871 | I27: 69.96649933
A28: 2 | B28: 100 | C28: 5138.700684 | D28: 163.4456482 | E28: 232.8337708 | F28: 3271.226807 | G28: 2128.749512 | H28: 1142.477295 | I28: 66.75013733
A29: 2 | B29: 100.0416667 | C29: 5154.675781 | D29: 162.5250092 | E29: 232.7681427 | F29: 3540.345703 | G29: 2364.374268 | H29: 1175.971436 | I29: 67.17763519
A30: 2 | B30: 100.0833333 | C30: 5163.075684 | D30: 163.2337494 | E30: 232.822525 | F30: 3275.634766 | G30: 2120.624512 | H30: 1155.010254 | I30: 67.35875702
A31: 2 | B31: 100.125 | C31: 5165.925781 | D31: 162.5231323 | E31: 232.8206329 | F31: 3495.492432 | G31: 2356.249268 | H31: 1139.243164 | I31: 67.64000702
A32: 2 | B32: 100.1666667 | C32: 5144.550781 | D32: 160.9856415 | E32: 232.8131561 | F32: 4019.683105 | G32: 2843.749268 | H32: 1175.933838 | I32: 59.54676056
A33: 2 | B33: 100.2083333 | C33: 5167.050781 | D33: 160.3668823 | E33: 232.7775269 | F33: 4337.190918 | G33: 3119.999268 | H33: 1217.19165 | I33: 58.39250183
A34: 2 | B34: 100.25 | C34: 5220.375488 | D34: 162.5062561 | E34: 232.6143799 | F34: 4005.054932 | G34: 2770.624268 | H34: 1234.430664 | I34: 61.41875458
A35: 2 | B35: 100.2916667 | C35: 5241.975098 | D35: 162.480011 | E35: 232.7681427 | F35: 3924.551758 | G35: 2729.999268 | H35: 1194.55249 | I35: 64.37863922
A36: 2 | B36: 100.3333333 | C36: 5128.500488 | D36: 162.8925171 | E36: 232.8018799 | F36: 3304.115967 | G36: 2169.374512 | H36: 1134.741455 | I36: 69.95750427
A37: 2 | B37: 100.375 | C37: 5098.050781 | D37: 163.7156372 | E37: 232.9518738 | F37: 3025.26123 | G37: 1893.124512 | H37: 1132.136719 | I37: 75.53413391
A38: 2 | B38: 100.4166667 | C38: 5048.100098 | D38: 165.2531281 | E38: 232.8900299 | F38: 2665.903076 | G38: 1551.874634 | H38: 1114.028442 | I38: 79.04750824
A39: 2 | B39: 100.4583333 | C39: 5034.675781 | D39: 166.1906281 | E39: 232.8918915 | F39: 2403.711182 | G39: 1308.124634 | H39: 1095.586548 | I39: 85.49263763
A40: 2 | B40: 100.5 | C40: 5120.100098 | D40: 167.8518982 | E40: 232.9518738 | F40: 2143.214355 | G40: 1080.624756 | H40: 1062.5896 | I40: 89.26138306
A41: 2 | B41: 100.5416667 | C41: 5166.975098 | D41: 169.8937531 | E41: 232.9500122 | F41: 2009.962646 | G41: 885.6247559 | H41: 1124.337891 | I41: 88.44462585
A42: 2 | B42: 100.5833333 | C42: 5096.175781 | D42: 172.0181274 | E42: 232.9312592 | F42: 1634.765747 | G42: 463.1248779 | H42: 1171.640869 | I42: 92.80625916
A43: 2 | B43: 100.625 | C43: 5190.825684 | D43: 172.2393951 | E43: 232.8281403 | F43: 1656.51416 | G43: 528.1248779 | H43: 1128.389282 | I43: 90.21650696
A44: 2 | B44: 100.6666667 | C44: 4972.050781 | D44: 169.4231415 | E44: 232.8694 | F44: 1520.307983 | G44: 495.6248779 | H44: 1024.683105 | I44: 91.26499939
A45: 2 | B45: 100.7083333 | C45: 5242.875488 | D45: 171.9187622 | E45: 232.8750153 | F45: 1603.23291 | G45: 519.9998779 | H45: 1083.233032 | I45: 91.14801025
A46: 2 | B46: 100.75 | C46: 5225.025391 | D46: 172.7962494 | E46: 232.8075104 | F46: 1389.720459 | G46: 316.8749084 | H46: 1072.845551 | I46: 88.49864197
A47: 2 | B47: 100.7916667 | C47: 5269.725098 | D47: 174.592514 | E47: 232.7475281 | F47: 1292.603271 | G47: 251.874939 | H47: 1040.728333 | I47: 82.62950897
A48: 2 | B48: 100.8333333 | C48: 5284.800781 | D48: 170.9100037 | E48: 232.7887726 | F48: 1712.168945 | G48: 641.8748169 | H48: 1070.294128 | I48: 80.11625671
A49: 2 | B49: 100.875 | C49: 5179.350098 | D49: 170.1506348 | E49: 232.7681427 | F49: 1761.042358 | G49: 690.6248169 | H49: 1070.417542 | I49: 78.90125275
A50: 2 | B50: 100.9166667 | C50: 5006.925781 | D50: 167.308136 | E50: 232.7006531 | F50: 2053.60498 | G50: 999.3747559 | H50: 1054.230225 | I50: 77.42750549
A51: 3 | B51: 100.9583333 | C51: 5079.375488 | D51: 165.826889 | E51: 232.8000031 | F51: 2607.875244 | G51: 1503.124634 | H51: 1104.75061 | I51: 78.38263702
A52: 3 | B52: 100 | C52: 5068.125488 | D52: 164.71875 | E52: 232.6968842 | F52: 2756.481445 | G52: 1633.124512 | H52: 1123.356934 | I52: 72.15125275
A53: 3 | B53: 100.0416667 | C53: 5095.050781 | D53: 165.3187561 | E53: 232.8543854 | F53: 2811.022217 | G53: 1649.374512 | H53: 1161.647705 | I53: 72.79475403
A54: 3 | B54: 100.0833333 | C54: 5116.200684 | D54: 162.2850037 | E54: 232.7700195 | F54: 3398.181641 | G54: 2242.499512 | H54: 1155.682129 | I54: 66.10888672
A55: 3 | B55: 100.125 | C55: 5106.675781 | D55: 164.748764 | E55: 232.7700195 | F55: 2813.831543 | G55: 1673.749512 | H55: 1140.082031 | I55: 71.59326172
A56: 3 | B56: 100.1666667 | C56: 5070.675781 | D56: 160.1325073 | E56: 232.7924957 | F56: 4108.565918 | G56: 2900.624268 | H56: 1207.94165 | I56: 60.04738617
A57: 3 | B57: 100.2083333 | C57: 5083.050781 | D57: 159.9581451 | E57: 232.8206329 | F57: 4072.625244 | G57: 2859.999268 | H57: 1212.625977 | I57: 59.97988892
A58: 3 | B58: 100.25 | C58: 5060.175781 | D58: 159.6900024 | E58: 232.7194061 | F58: 4209.509766 | G58: 3022.499268 | H58: 1187.010498 | I58: 57.74000549
A59: 3 | B59: 100.2916667 | C59: 5045.625488 | D59: 159.8643951 | E59: 232.8412781 | F59: 4083.765869 | G59: 2892.499268 | H59: 1191.266602 | I59: 62.27825928
A60: 3 | B60: 100.3333333 | C60: 4957.200684 | D60: 160.8318787 | E60: 232.8487549 | F60: 3426.32373 | G60: 2283.124512 | H60: 1143.199219 | I60: 69.28701019
A61: 3 | B61: 100.375 | C61: 4857.600098 | D61: 161.5668945 | E61: 232.8806458 | F61: 2964.22998 | G61: 1836.249512 | H61: 1127.980469 | I61: 77.19576263
A62: 3 | B62: 100.4166667 | C62: 4864.275391 | D62: 162.3243713 | E62: 232.8525238 | F62: 2717.876953 | G62: 1608.749512 | H62: 1109.127441 | I62: 80.61125183
A63: 3 | B63: 100.4583333 | C63: 4875.225098 | D63: 163.1737671 | E63: 232.8431549 | F63: 2668.422119 | G63: 1568.124634 | H63: 1100.297485 | I63: 81.13663483
A64: 3 | B64: 100.5 | C64: 4875.225098 | D64: 163.1737671 | E64: 232.8431549 | F64: 2668.422119 | G64: 1568.124634 | H64: 1100.297485 | I64: 81.13663483
A65: 3 | B65: 100.5416667 | C65: 4875.225098 | D65: 163.1737671 | E65: 232.8431549 | F65: 2668.422119 | G65: 1568.124634 | H65: 1100.297485 | I65: 81.13663483
A66: 3 | B66: 100.5833333 | C66: 4962.150391 | D66: 167.4450073 | E66: 233.0081329 | F66: 2128.537842 | G66: 966.8747559 | H66: 1161.663086 | I66: 89.57749939
A67: 3 | B67: 100.625 | C67: 4913.100098 | D67: 167.5237732 | E67: 232.9049988 | F67: 1968.064209 | G67: 901.8747559 | H67: 1066.189453 | I67: 90.43812561
A68: 3 | B68: 100.6666667 | C68: 4930.725098 | D68: 167.8274994 | E68: 232.8975372 | F68: 1886.544067 | G68: 828.7497559 | H68: 1057.794312 | I68: 90.82063293
A69: 3 | B69: 100.7083333 | C69: 4903.050781 | D69: 168.105011 | E69: 232.8750153 | F69: 1924.712646 | G69: 844.9997559 | H69: 1079.712891 | I69: 90.70249939
A70: 3 | B70: 100.75 | C70: 4956.300781 | D70: 168.5812531 | E70: 232.8937531 | F70: 1722.873535 | G70: 633.7498169 | H70: 1089.123718 | I70: 89.84524536
A71: 3 | B71: 100.7916667 | C71: 5017.350098 | D71: 169.3931274 | E71: 232.8862457 | F71: 1802.11731 | G71: 698.7498169 | H71: 1103.367493 | I71: 86.44775391
A72: 3 | B72: 100.8333333 | C72: 4975.650391 | D72: 168.7893982 | E72: 232.8150177 | F72: 2010.156372 | G72: 877.4997559 | H72: 1132.656616 | I72: 84.3575058
A73: 3 | B73: 100.875 | C73: 4985.925781 | D73: 169.0743713 | E73: 232.7924957 | F73: 1677.487671 | G73: 625.6248169 | H73: 1051.862854 | I73: 81.24125671
A74: 3 | B74: 100.9166667 | C74: 4991.775391 | D74: 168.0168915 | E74: 232.7475281 | F74: 2009.865723 | G74: 918.1247559 | H74: 1091.740967 | I74: 81.54163361
A75: 4 | B75: 100.9583333 | C75: 5095.950684 | D75: 164.233139 | E75: 232.8506622 | F75: 2828.750244 | G75: 1689.999512 | H75: 1138.750732 | I75: 73.73750305
A76: 4 | B76: 100 | C76: 5043.900391 | D76: 163.4043884 | E76: 232.8300018 | F76: 3005.450195 | G76: 1868.749512 | H76: 1136.700684 | I76: 69.71000671
A77: 4 | B77: 100.0416667 | C77: 5116.950684 | D77: 162.9937592 | E77: 232.728775 | F77: 3168.975342 | G77: 1998.749512 | H77: 1170.22583 | I77: 68.41400146
A78: 4 | B78: 100.0833333 | C78: 5117.250488 | D78: 162.5212555 | E78: 232.7944031 | F78: 3377.692383 | G78: 2177.499512 | H78: 1200.192871 | I78: 68.76725769
A79: 4 | B79: 100.125 | C79: 5082.900391 | D79: 161.7375031 | E79: 232.7625122 | F79: 3622.97998 | G79: 2461.874268 | H79: 1161.105713 | I79: 65.00750732
A80: 4 | B80: 100.1666667 | C80: 5088.450684 | D80: 161.2706451 | E80: 232.7850342 | F80: 3799.050293 | G80: 2616.249268 | H80: 1182.801025 | I80: 63.82513428
A81: 4 | B81: 100.2083333 | C81: 5121.150391 | D81: 161.53125 | E81: 232.7456207 | F81: 3574.397217 | G81: 2421.249268 | H81: 1153.147949 | I81: 66.93913269
A82: 4 | B82: 100.25 | C82: 5076.225098 | D82: 160.9649963 | E82: 232.8600311 | F82: 3887.49707 | G82: 2713.749268 | H82: 1173.747803 | I82: 60.46363831
A83: 4 | B83: 100.2916667 | C83: 5082.825684 | D83: 161.2781372 | E83: 232.7118988 | F83: 3803.409668 | G83: 2616.249268 | H83: 1187.1604 | I83: 66.12462616
A84: 4 | B84: 100.3333333 | C84: 4988.325684 | D84: 161.3587494 | E84: 232.8262634 | F84: 3366.648682 | G84: 2218.124512 | H84: 1148.52417 | I84: 70.78325653
A85: 4 | B85: 100.375 | C85: 4977.675781 | D85: 162.8250122 | E85: 232.8319092 | F85: 2912.644043 | G85: 1763.124512 | H85: 1149.519531 | I85: 75.59712982
A86: 4 | B86: 100.4166667 | C86: 5166.675781 | D86: 166.3612671 | E86: 232.9406281 | F86: 2773.192383 | G86: 1624.999512 | H86: 1148.192871 | I86: 80.3187561
A87: 4 | B87: 100.4583333 | C87: 3679.575684 | D87: 151.1456451 | E87: 232.8768768 | F87: 2092.160889 | G87: 1031.874756 | H87: 1060.286133 | I87: 82.97375488
A88: 4 | B88: 100.5 | C88: 3874.425537 | D88: 154.717514 | E88: 232.8993988 | F88: 2058.690918 | G88: 934.3747559 | H88: 1124.316162 | I88: 87.20375824
A89: 4 | B89: 100.5416667 | C89: 4127.925781 | D89: 157.1775055 | E89: 232.9293976 | F89: 2083.006592 | G89: 966.8747559 | H89: 1116.131836 | I89: 88.31413269
A90: 4 | B90: 100.5833333 | C90: 3729.450684 | D90: 153.7425232 | E90: 232.96315 | F90: 1557.750122 | G90: 528.1248779 | H90: 1029.625244 | I90: 91.33250427
A91: 4 | B91: 100.625 | C91: 3910.800537 | D91: 155.9568787 | E91: 232.9049988 | F91: 1851.329834 | G91: 779.9998169 | H91: 1071.330017 | I91: 85.7795105
A92: 4 | B92: 100.6666667 | C92: 5013.750488 | D92: 165.9393921 | E92: 232.9143829 | F92: 2403.371826 | G92: 1210.624634 | H92: 1192.747192 | I92: 87.02375793
A93: 4 | B93: 100.7083333 | C93: 4971.000488 | D93: 166.1306305 | E93: 232.8487549 | F93: 2156.582764 | G93: 983.1247559 | H93: 1173.458008 | I93: 88.81587219
A94: 4 | B94: 100.75 | C94: 4979.925781 | D94: 168.5006409 | E94: 232.8431549 | F94: 1788.409546 | G94: 641.8748169 | H94: 1146.534729 | I94: 88.72363281
A95: 4 | B95: 100.7916667 | C95: 5051.025391 | D95: 167.8762665 | E95: 232.8581238 | F95: 2200.564453 | G95: 991.2497559 | H95: 1209.314697 | I95: 86.14625549
A96: 4 | B96: 100.8333333 | C96: 5067.975098 | D96: 166.7887573 | E96: 232.9706268 | F96: 2283.925293 | G96: 1137.499756 | H96: 1146.425537 | I96: 82.63513184
A97: 4 | B97: 100.875 | C97: 5094.825684 | D97: 168.46875 | E97: 232.8562622 | F97: 2005.845459 | G97: 893.7497559 | H97: 1112.095703 | I97: 82.84888458
A98: 4 | B98: 100.9166667 | C98: 5085.000488 | D98: 167.7450104 | E98: 232.8487549 | F98: 2380.994141 | G98: 1129.374756 | H98: 1251.619385 | I98: 81.95450592
A99: 5 | B99: 100.9583333 | C99: 5070.225098 | D99: 161.7000122 | E99: 232.9237518 | F99: 3604.186279 | G99: 2348.124268 | H99: 1256.062012 | I99: 71.60113525
A100: 5 | B100: 100 | C100: 5087.475098 | D100: 161.3118744 | E100: 232.8750153 | F100: 3728.57373 | G100: 2445.624268 | H100: 1282.949463 | I100: 67.67375183
A101: 5 | B101: 100.0416667 | C101: 5075.850098 | D101: 161.3587494 | E101: 232.8037872 | F101: 3799.583008 | G101: 2502.499268 | H101: 1297.08374 | I101: 68.55350494
A102: 5 | B102: 100.0833333 | C102: 5106.525391 | D102: 160.8037567 | E102: 232.8787842 | F102: 3989.312744 | G102: 2705.624268 | H102: 1283.688477 | I102: 67.40825653
A103: 5 | B103: 100.125 | C103: 5167.650391 | D103: 161.2893982 | E103: 232.8956299 | F103: 4047.970947 | G103: 2729.999268 | H103: 1317.97168 | I103: 68.72900391
A104: 5 | B104: 100.1666667 | C104: 5169.300781 | D104: 161.6868744 | E104: 232.8450165 | F104: 3897.281494 | G104: 2624.374268 | H104: 1272.907227 | I104: 68.90000153
A105: 5 | B105: 100.2083333 | C105: 5194.500488 | D105: 159.1856384 | E105: 232.7906342 | F105: 4882.548828 | G105: 3534.374023 | H105: 1348.174805 | I105: 57.81201172
A106: 5 | B106: 100.25 | C106: 5157.000488 | D106: 159 | E106: 232.7793884 | F106: 4944.452148 | G106: 3599.374023 | H106: 1345.078125 | I106: 57.25513458
A107: 5 | B107: 100.2916667 | C107: 5236.275391 | D107: 161.0343781 | E107: 232.77565 | F107: 4140.922363 | G107: 2859.999268 | H107: 1280.923096 | I107: 65.72750092
A108: 5 | B108: 100.3333333 | C108: 5109.000488 | D108: 160.6931305 | E108: 232.8675079 | F108: 3994.156494 | G108: 2713.749268 | H108: 1280.407227 | I108: 71.36375427
A109: 5 | B109: 100.375 | C109: 5082.975098 | D109: 161.9756317 | E109: 232.8993988 | F109: 3425.500244 | G109: 2177.499512 | H109: 1248.000732 | I109: 78.51650238
A110: 5 | B110: 100.4166667 | C110: 5021.475098 | D110: 163.1231384 | E110: 232.8918915 | F110: 2879.02832 | G110: 1657.499512 | H110: 1221.528809 | I110: 83.33600616
A111: 5 | B111: 100.4583333 | C111: 5096.925781 | D111: 165.0318909 | E111: 232.9425049 | F111: 2745.486328 | G111: 1519.374634 | H111: 1226.111694 | I111: 88.43338013
A112: 5 | B112: 100.5 | C112: 5105.400391 | D112: 166.9931335 | E112: 233.0625153 | F112: 2416.449951 | G112: 1186.249634 | H112: 1230.200317 | I112: 91.53500366
A113: 5 | B113: 100.5416667 | C113: 5063.250488 | D113: 167.1975098 | E113: 232.9500122 | F113: 2140.356201 | G113: 991.2497559 | H113: 1149.106445 | I113: 90.06124878
A114: 5 | B114: 100.5833333 | C114: 5104.725098 | D114: 167.7862701 | E114: 232.9312592 | F114: 2172.179932 | G114: 991.2497559 | H114: 1180.930176 | I114: 93.92675781
A115: 5 | B115: 100.625 | C115: 5187.375488 | D115: 169.9125061 | E115: 233.0250092 | F115: 2087.074951 | G115: 885.6247559 | H115: 1201.450195 | I115: 94.96400452
A116: 5 | B116: 100.6666667 | C116: 5179.950684 | D116: 169.9912567 | E116: 232.9462738 | F116: 1966.611084 | G116: 779.9998169 | H116: 1186.611267 | I116: 93.70401001
A117: 5 | B117: 100.7083333 | C117: 5158.950684 | D117: 169.875 | E117: 232.8956299 | F117: 2075.644043 | G117: 828.7497559 | H117: 1246.894287 | I117: 94.26200867
A118: 5 | B118: 100.75 | C118: 5153.325684 | D118: 169.7475128 | E118: 232.8956299 | F118: 2028.271973 | G118: 779.9998169 | H118: 1248.272156 | I118: 95.62774658
A119: 5 | B119: 100.7916667 | C119: 5250.375488 | D119: 170.5912628 | E119: 232.9537811 | F119: 2139.82373 | G119: 836.8747559 | H119: 1302.948975 | I119: 89.56851196
A120: 5 | B120: 100.8333333 | C120: 5274.450684 | D120: 169.5168915 | E120: 232.9781342 | F120: 2355.515869 | G120: 1056.249756 | H120: 1299.266113 | I120: 87.24650574
A121: 5 | B121: 100.875 | C121: 5261.400391 | D121: 168.4087524 | E121: 232.916275 | F121: 2582.445557 | G121: 1340.624634 | H121: 1241.820923 | I121: 83.29212952
A122: 5 | B122: 100.9166667 | C122: 5305.350098 | D122: 164.9024963 | E122: 232.9125061 | F122: 3181.908203 | G122: 1876.874512 | H122: 1305.033691 | I122: 75.29225922
A123: 6 | B123: 100.9583333 | C123: 5283.375488 | D123: 163.764389 | E123: 232.9143829 | F123: 3469.626953 | G123: 2209.999512 | H123: 1259.627441 | I123: 73.3887558
A124: 6 | B124: 100 | C124: 5295.675781 | D124: 163.5543823 | E124: 232.8787842 | F124: 3390.189453 | G124: 2153.124512 | H124: 1237.064941 | I124: 72.39988708
A125: 6 | B125: 100.0416667 | C125: 5292.150391 | D125: 163.3800201 | E125: 232.8787842 | F125: 3770.084717 | G125: 2486.249268 | H125: 1283.835449 | I125: 72.48875427
A126: 6 | B126: 100.0833333 | C126: 5260.200684 | D126: 161.9943848 | E126: 232.8562622 | F126: 4312.342773 | G126: 2957.499268 | H126: 1354.843506 | I126: 64.34375763
A127: 6 | B127: 100.125 | C127: 5304.975098 | D127: 161.326889 | E127: 232.9069061 | F127: 4532.200195 | G127: 3184.999268 | H127: 1347.200928 | I127: 63.16700745
A128: 6 | B128: 100.1666667 | C128: 5288.400391 | D128: 161.4787598 | E128: 232.9237518 | F128: 4470.975586 | G128: 3144.374268 | H128: 1326.601318 | I128: 65.66000366
A129: 6 | B129: 100.2083333 | C129: 5280.600098 | D129: 162.0018921 | E129: 232.9369049 | F129: 4253.006836 | G129: 2908.749268 | H129: 1344.257568 | I129: 64.258255
A130: 6 | B130: 100.25 | C130: 5292.150391 | D130: 160.8225098 | E130: 232.8862457 | F130: 4642.686523 | G130: 3314.999023 | H130: 1327.6875 | I130: 59.22725677
A131: 6 | B131: 100.2916667 | C131: 5304.600098 | D131: 161.964386 | E131: 232.9500122 | F131: 4282.553711 | G131: 2941.249268 | H131: 1341.304443 | I131: 67.11125183
A132: 6 | B132: 100.3333333 | C132: 5164.950684 | D132: 161.8050232 | E132: 232.8750153 | F132: 3817.408447 | G132: 2526.874268 | H132: 1290.53418 | I132: 73.07375336
A133: 6 | B133: 100.375 | C133: 5127.375488 | D133: 163.1268921 | E133: 232.8862457 | F133: 3167.376953 | G133: 1941.874512 | H133: 1225.502441 | I133: 79.07113647
A134: 6 | B134: 100.4166667 | C134: 5154.675781 | D134: 164.5912628 | E134: 232.8768768 | F134: 2902.908203 | G134: 1665.624512 | H134: 1237.283691 | I134: 83.21562958
A135: 6 | B135: 100.4583333 | C135: 5137.650391 | D135: 166.1475067 | E135: 232.9931488 | F135: 2626.475342 | G135: 1405.624634 | H135: 1220.850708 | I135: 87.92263794
A136: 6 | B136: 100.5 | C136: 5150.400391 | D136: 168.0543823 | E136: 232.9350281 | F136: 2422.795654 | G136: 1137.499756 | H136: 1285.295898 | I136: 90.75762939
A137: 6 | B137: 100.5416667 | C137: 5183.550781 | D137: 168.4762573 | E137: 233.0550079 | F137: 2102.672119 | G137: 942.4997559 | H137: 1160.172363 | I137: 93.50488281
A138: 6 | B138: 100.5833333 | C138: 5174.475098 | D138: 170.0625 | E138: 233.1112518 | F138: 2066.295654 | G138: 820.6247559 | H138: 1245.670898 | I138: 97.01937866
A139: 6 | B139: 100.625 | C139: 5187.375488 | D139: 170.4412537 | E139: 232.9369049 | F139: 1534.597046 | G139: 414.3748779 | H139: 1120.222168 | I139: 94.00775146
A140: 6 | B140: 100.6666667 | C140: 5166.825684 | D140: 171.3318787 | E140: 232.8975372 | F140: 1702.723633 | G140: 479.3748779 | H140: 1223.348755 | I140: 98.19500732
A141: 6 | B141: 100.7083333 | C141: 5173.950684 | D141: 173.7168884 | E141: 232.8412781 | F141: 1361.626709 | G141: 251.874939 | H141: 1109.75177 | I141: 93.98075867
A142: 6 | B142: 100.75 | C142: OFFLINE | I142: 91.7150116
A143: 6 | B143: 100.7916667 | C143: OFFLINE | I143: 89.43463135
A144: 6 | B144: 100.8333333 | C144: OFFLINE | I144: 87.49288177
A145: 6 | B145: 100.875 | C145: OFFLINE | I145: 85.7052536
A146: 6 | B146: 100.9166667 | C146: OFFLINE | I146: 81.81500244
A147: 6 | B147: 100.9583333 | C147: OFFLINE | I147: 77.40500641
A148: 7 | B148: 100 | C148: OFFLINE | I148: 71.2073822
A149: 7 | B149: 100.0416667 | C149: OFFLINE | I149: 70.81250763
A150: 7 | B150: 100.0833333 | C150: 4555.275391 | D150: 157.3031311 | E150: 232.6706238 | F150: 3085.129883 | G150: 1893.124512 | H150: 1192.005371 | I150: 72.22550964
A151: 7 | B151: 100.125 | C151: 5063.850098 | D151: 160.5037537 | E151: 232.8506622 | F151: 4025.834717 | G151: 2738.124268 | H151: 1287.710449 | I151: 66.94926453
A152: 7 | B152: 100.1666667 | C152: 5236.200684 | D152: 161.7918854 | E152: 232.7475281 | F152: 4122.85498 | G152: 2851.874268 | H152: 1270.980713 | I152: 63.83750153
A153: 7 | B153: 100.2083333 | C153: 5165.250488 | D153: 160.9725037 | E153: 232.8543854 | F153: 4111.569336 | G153: 2843.749268 | H153: 1267.820068 | I153: 63.28400421
A154: 7 | B154: 100.25 | C154: 5169.825684 | D154: 160.2787628 | E154: 232.9181519 | F154: 4361.070801 | G154: 3063.124268 | H154: 1297.946533 | I154: 63.74638367
A155: 7 | B155: 100.2916667 | C155: 5176.875488 | D155: 161.7318878 | E155: 232.8206329 | F155: 3927.361572 | G155: 2640.624268 | H155: 1286.737305 | I155: 68.2407608
A156: 7 | B156: 100.3333333 | C156: 5152.275391 | D156: 161.7000122 | E156: 232.8731384 | F156: 3770.714355 | G156: 2510.624268 | H156: 1260.090088 | I156: 73.0220108
A157: 7 | B157: 100.375 | C157: 5148.075684 | D157: 162.75 | E157: 232.9218903 | F157: 3445.311279 | G157: 2209.999512 | H157: 1235.311768 | I157: 77.24863434
A158: 7 | B158: 100.4166667 | C158: 5114.550781 | D158: 164.1468811 | E158: 232.9387665 | F158: 2914.048828 | G158: 1722.499512 | H158: 1191.549316 | I158: 83.01988983
A159: 7 | B159: 100.4583333 | C159: 5044.350098 | D159: 164.9850159 | E159: 232.9462738 | F159: 2658.734619 | G159: 1462.499634 | H159: 1196.234985 | I159: 84.11113739
A160: 7 | B160: 100.5 | C160: 5106.600098 | D160: 165.8981323 | E160: 232.8918915 | F160: 2486.587891 | G160: 1340.624634 | H160: 1145.963257 | I160: 88.32987976
A161: 7 | B161: 100.5416667 | C161: 5091.975098 | D161: 167.2537537 | E161: 232.9518738 | F161: 2364.137451 | G161: 1169.999634 | H161: 1194.137817 | I161: 88.49638367
A162: 7 | B162: 100.5833333 | C162: 5077.500488 | D162: 167.9306335 | E162: 233.0343781 | F162: 2040.42981 | G162: 909.9997559 | H162: 1130.430054 | I162: 92.07501221
A163: 7 | B163: 100.625 | C163: 5137.050781 | D163: 169.0050201 | E163: 232.9556427 | F163: 2080.826904 | G163: 877.4997559 | H163: 1203.327148 | I163: 92.89176941
A164: 7 | B164: 100.6666667 | C164: 5167.650391 | D164: 169.6650085 | E164: 232.9650269 | F164: 2055.155029 | G164: 853.1247559 | H164: 1202.030273 | I164: 96.3500061
A165: 7 | B165: 100.7083333 | C165: 5092.350098 | D165: 170.0625 | E165: 232.9612579 | F165: 2028.320435 | G165: 779.9998169 | H165: 1248.320618 | I165: 96.81013489
A166: 7 | B166: 100.75 | C166: 5199.600098 | D166: 172.183136 | E166: 232.8843842 | F166: 1852.298584 | G166: 576.8748169 | H166: 1275.423767 | I166: 92.15376282
A167: 7 | B167: 100.7916667 | C167: 5235.900391 | D167: 170.1262665 | E167: 232.916275 | F167: 2065.617432 | G167: 844.9997559 | H167: 1220.617676 | I167: 88.90138245
A168: 7 | B168: 100.8333333 | C168: 5295.150391 | D168: 169.4943848 | E168: 233.0493927 | F168: 2367.916016 | G168: 1064.374756 | H168: 1303.54126 | I168: 85.9437561
A169: 7 | B169: 100.875 | C169: 5301.975098 | D169: 171.2531281 | E169: 232.9706268 | F169: 2075.304932 | G169: 853.1247559 | H169: 1222.180176 | I169: 84.12350464
A170: 7 | B170: 100.9166667 | C170: 5302.425781 | D170: 169.2825165 | E170: 232.9087677 | F170: 2509.498779 | G170: 1226.874634 | H170: 1282.624146 | I170: 82.26500702
A171: 7 | B171: 100.9583333 | C171: 5277.600098 | D171: 165.8343811 | E171: 232.8768768 | F171: 3011.553467 | G171: 1665.624512 | H171: 1345.928955 | I171: 77.76500702
A172: 8 | B172: 101 | C172: 5341.200684 | D172: 165.292511 | E172: 232.9143829 | F172: 3064.931641 | G172: 1795.624512 | H172: 1269.307129 | I172: 76.75250244
A173: 8 | B173: 101.0416667 | C173: 5359.350098 | D173: 164.1018982 | E173: 232.8937531 | F173: 3656.595703 | G173: 2364.374268 | H173: 1292.221436 | I173: 71.92063141
A174: 8 | B174: 101.0833333 | C174: 5400.075684 | D174: 164.15625 | E174: 232.9612579 | F174: 4059.35376 | G174: 2713.749268 | H174: 1345.604492 | I174: 69.05975342
A175: 8 | B175: 101.125 | C175: 5402.400391 | D175: 163.2075195 | E175: 232.9762726 | F175: 4286.525391 | G175: 2924.999268 | H175: 1361.526123 | I175: 65.80287933
A176: 8 | B176: 101.1666667 | C176: 5395.350098 | D176: 163.1268921 | E176: 232.7924957 | F176: 4096.795898 | G176: 2843.749268 | H176: 1253.046631 | I176: 67.21138
A177: 8 | B177: 101.2083333 | C177: 5401.650391 | D177: 162.9262695 | E177: 232.9369049 | F177: 4393.330078 | G177: 3054.999268 | H177: 1338.330811 | I177: 64.90625763
A178: 8 | B178: 101.25 | C178: 5413.125488 | D178: 162.28125 | E178: 232.9425049 | F178: 4632.562988 | G178: 3266.249023 | H178: 1366.313965 | I178: 62.5606308
A179: 8 | B179: 101.2916667 | C179: 5410.200684 | D179: 163.0818787 | E179: 232.8787842 | F179: 4331.426758 | G179: 2957.499268 | H179: 1373.92749 | I179: 67.78625488
A180: 8 | B180: 101.3333333 | C180: 5316.750488 | D180: 163.6575165 | E180: 232.9369049 | F180: 3808.883057 | G180: 2453.749268 | H180: 1355.133789 | I180: 73.17837524
A181: 8 | B181: 101.375 | C181: 5190.150391 | D181: 163.1906281 | E181: 232.8375092 | F181: 3288.80957 | G181: 2055.624512 | H181: 1233.185059 | I181: 77.57826233
A182: 8 | B182: 101.4166667 | C182: 5210.175781 | D182: 163.7662659 | E182: 232.8656311 | F182: 3105.861328 | G182: 1933.749512 | H182: 1172.111816 | I182: 79.79338074
A183: 8 | B183: 101.4583333 | C183: 5217.525391 | D183: 165.3018951 | E183: 232.9500122 | F183: 2913.85498 | G183: 1673.749512 | H183: 1240.105469 | I183: 82.01750183
A184: 8 | B184: 101.5 | C184: 5190.600098 | D184: 166.7137604 | E184: 232.8937531 | F184: 2851.128418 | G184: 1511.249634 | H184: 1339.878784 | I184: 85.85938263
A185: 8 | B185: 101.5416667 | C185: 5236.425781 | D185: 166.5450134 | E185: 232.9612579 | F185: 2697.871826 | G185: 1454.374634 | H185: 1243.497192 | I185: 86.31726074
A186: 8 | B186: 101.5833333 | C186: 5235.075684 | D186: 167.514389 | E186: 232.9987488 | F186: 2523.303467 | G186: 1218.749634 | H186: 1304.553833 | I186: 88.67863464
A187: 8 | B187: 101.625 | C187: 5231.850098 | D187: 168.2268982 | E187: 233.0043945 | F187: 2492.44873 | G187: 1243.124634 | H187: 1249.324097 | I187: 90.54951477
A188: 8 | B188: 101.6666667 | C188: 5181.000488 | D188: 167.4900055 | E188: 232.9687653 | F188: 2451.615967 | G188: 1291.874634 | H188: 1159.741333 | I188: 91.50013733
A189: 8 | B189: 101.7083333 | C189: 5193.825684 | D189: 168.1912537 | E189: 232.9256592 | F189: 2190.537842 | G189: 974.9997559 | H189: 1215.538086 | I189: 91.04225159
A190: 8 | B190: 101.75 | C190: 5214.375488 | D190: 168.6356354 | E190: 232.9650269 | F190: 2303.687744 | G190: 1104.999756 | H190: 1198.687988 | I190: 89.44250488
A191: 8 | B191: 101.7916667 | C191: 5225.475098 | D191: 168.2024994 | E191: 233.0025177 | F191: 2262.612793 | G191: 1113.124756 | H191: 1149.488037 | I191: 87.5063858
A192: 8 | B192: 101.8333333 | C192: 5267.025391 | D192: 167.9043884 | E192: 232.8918915 | F192: 2301.459717 | G192: 1161.874634 | H192: 1139.585083 | I192: 84.10774994
A193: 8 | B193: 101.875 | C193: 5266.425781 | D193: 167.5462494 | E193: 232.8937531 | F193: 2620.953369 | G193: 1446.249634 | H193: 1174.703735 | I193: 81.92076111
A194: 8 | B194: 101.9166667 | C194: 5284.950684 | D194: 164.0025024 | E194: 232.8993988 | F194: 3291.425293 | G194: 2039.374512 | H194: 1252.050781 | I194: 73.96250153
A195: 8 | B195: 101.9583333 | C195: 5289.450684 | D195: 163.2375031 | E195: 232.9500122 | F195: 3622.01123 | G195: 2380.624268 | H195: 1241.386963 | I195: 69.08000183
A196: 9 | B196: 102 | C196: 5287.575684 | D196: 163.5750122 | E196: 232.8300018 | F196: 3809.803467 | G196: 2437.499268 | H196: 1372.304199 | I196: 72.55400085
A197: 9 | B197: 102.0416667 | C197: 5277.300781 | D197: 164.4937592 | E197: 232.9481354 | F197: 3583.26123 | G197: 2242.499512 | H197: 1340.761719 | I197: 73.16375732
A198: 9 | B198: 102.0833333 | C198: 5265.450684 | D198: 162.8962555 | E198: 232.822525 | F198: 3942.13501 | G198: 2583.749268 | H198: 1358.385742 | I198: 68.21375275
A199: 9 | B199: 102.125 | C199: 5317.725098 | D199: 161.0568848 | E199: 232.8356476 | F199: 4563.442383 | G199: 3233.749023 | H199: 1329.693359 | I199: 61.90475464
A200: 9 | B200: 102.1666667 | C200: 5328.900391 | D200: 159.8137665 | E200: 232.7924957 | F200: 5030.57373 | G200: 3704.999023 | H200: 1325.574707 | I200: 57.08750153
A201: 9 | B201: 102.2083333 | C201: 5344.875488 | D201: 162.526886 | E201: 232.77565 | F201: 4456.734863 | G201: 3063.124268 | H201: 1393.610596 | I201: 63.35150146
... 522 more rows

Sheet Jul
A1: July 2014 Dixie Binary Bottoming Cycle Data
A3: Date Jul | B3: Time | C3: Brine Flow [gpm] | D3: Brine Return Temp [F] | E3: Brine Supply Temp [F] | F3: Gen. Output [kW] | G3: Net [KW] | H3: Parasitic KW] | I3: T Dry Bulb [F]
A4: 1 | B4: 100 | C4: OFFLINE FOR EQUIPMENT REPAIR
A5: 1 | B5: 100.0416667 | C5: OFFLINE FOR EQUIPMENT REPAIR
A6: 1 | B6: 100.0833333 | C6: OFFLINE FOR EQUIPMENT REPAIR
A7: 1 | B7: 100.125 | C7: OFFLINE FOR EQUIPMENT REPAIR
A8: 1 | B8: 100.1666667 | C8: OFFLINE FOR EQUIPMENT REPAIR
A9: 1 | B9: 100.2083333 | C9: OFFLINE FOR EQUIPMENT REPAIR
A10: 1 | B10: 100.25 | C10: OFFLINE FOR EQUIPMENT REPAIR
A11: 1 | B11: 100.2916667 | C11: OFFLINE FOR EQUIPMENT REPAIR
A12: 1 | B12: 100.3333333 | C12: OFFLINE FOR EQUIPMENT REPAIR
A13: 1 | B13: 100.375 | C13: OFFLINE FOR EQUIPMENT REPAIR
A14: 1 | B14: 100.4166667 | C14: OFFLINE FOR EQUIPMENT REPAIR
A15: 1 | B15: 100.4583333 | C15: OFFLINE FOR EQUIPMENT REPAIR
A16: 1 | B16: 100.5 | C16: OFFLINE FOR EQUIPMENT REPAIR
A17: 1 | B17: 100.5416667 | C17: OFFLINE FOR EQUIPMENT REPAIR
A18: 1 | B18: 100.5833333 | C18: OFFLINE FOR EQUIPMENT REPAIR
A19: 1 | B19: 100.625 | C19: OFFLINE FOR EQUIPMENT REPAIR
A20: 1 | B20: 100.6666667 | C20: OFFLINE FOR EQUIPMENT REPAIR
A21: 1 | B21: 100.7083333 | C21: OFFLINE FOR EQUIPMENT REPAIR
A22: 1 | B22: 100.75 | C22: OFFLINE FOR EQUIPMENT REPAIR
A23: 1 | B23: 100.7916667 | C23: OFFLINE FOR EQUIPMENT REPAIR
A24: 1 | B24: 100.8333333 | C24: OFFLINE FOR EQUIPMENT REPAIR
A25: 1 | B25: 100.875 | C25: OFFLINE FOR EQUIPMENT REPAIR
A26: 1 | B26: 100.9166667 | C26: OFFLINE FOR EQUIPMENT REPAIR
A27: 1 | B27: 100.9583333 | C27: OFFLINE FOR EQUIPMENT REPAIR
A28: 2 | B28: 100 | C28: OFFLINE FOR EQUIPMENT REPAIR
A29: 2 | B29: 100.0416667 | C29: OFFLINE FOR EQUIPMENT REPAIR
A30: 2 | B30: 100.0833333 | C30: OFFLINE FOR EQUIPMENT REPAIR
A31: 2 | B31: 100.125 | C31: OFFLINE FOR EQUIPMENT REPAIR
A32: 2 | B32: 100.1666667 | C32: OFFLINE FOR EQUIPMENT REPAIR
A33: 2 | B33: 100.2083333 | C33: OFFLINE FOR EQUIPMENT REPAIR
A34: 2 | B34: 100.25 | C34: OFFLINE FOR EQUIPMENT REPAIR
A35: 2 | B35: 100.2916667 | C35: OFFLINE FOR EQUIPMENT REPAIR
A36: 2 | B36: 100.3333333 | C36: OFFLINE FOR EQUIPMENT REPAIR
A37: 2 | B37: 100.375 | C37: OFFLINE FOR EQUIPMENT REPAIR
A38: 2 | B38: 100.4166667 | C38: OFFLINE FOR EQUIPMENT REPAIR
A39: 2 | B39: 100.4583333 | C39: OFFLINE FOR EQUIPMENT REPAIR
A40: 2 | B40: 100.5 | C40: OFFLINE FOR EQUIPMENT REPAIR
A41: 2 | B41: 100.5416667 | C41: OFFLINE FOR EQUIPMENT REPAIR
A42: 2 | B42: 100.5833333 | C42: OFFLINE FOR EQUIPMENT REPAIR
A43: 2 | B43: 100.625 | C43: OFFLINE FOR EQUIPMENT REPAIR
A44: 2 | B44: 100.6666667 | C44: OFFLINE FOR EQUIPMENT REPAIR
A45: 2 | B45: 100.7083333 | C45: OFFLINE FOR EQUIPMENT REPAIR
A46: 2 | B46: 100.75 | C46: OFFLINE FOR EQUIPMENT REPAIR
A47: 2 | B47: 100.7916667 | C47: OFFLINE FOR EQUIPMENT REPAIR
A48: 2 | B48: 100.8333333 | C48: OFFLINE FOR EQUIPMENT REPAIR
A49: 2 | B49: 100.875 | C49: OFFLINE FOR EQUIPMENT REPAIR
A50: 2 | B50: 100.9166667 | C50: OFFLINE FOR EQUIPMENT REPAIR
A51: 2 | B51: 100.9583333 | C51: OFFLINE FOR EQUIPMENT REPAIR
A52: 3 | B52: 100 | C52: OFFLINE FOR EQUIPMENT REPAIR
A53: 3 | B53: 100.0416667 | C53: OFFLINE FOR EQUIPMENT REPAIR
A54: 3 | B54: 100.0833333 | C54: OFFLINE FOR EQUIPMENT REPAIR
A55: 3 | B55: 100.125 | C55: OFFLINE FOR EQUIPMENT REPAIR
A56: 3 | B56: 100.1666667 | C56: OFFLINE FOR EQUIPMENT REPAIR
A57: 3 | B57: 100.2083333 | C57: OFFLINE FOR EQUIPMENT REPAIR
A58: 3 | B58: 100.25 | C58: OFFLINE FOR EQUIPMENT REPAIR
A59: 3 | B59: 100.2916667 | C59: OFFLINE FOR EQUIPMENT REPAIR
A60: 3 | B60: 100.3333333 | C60: OFFLINE FOR EQUIPMENT REPAIR
A61: 3 | B61: 100.375 | C61: OFFLINE FOR EQUIPMENT REPAIR
A62: 3 | B62: 100.4166667 | C62: OFFLINE FOR EQUIPMENT REPAIR
A63: 3 | B63: 100.4583333 | C63: OFFLINE FOR EQUIPMENT REPAIR
A64: 3 | B64: 100.5 | C64: OFFLINE FOR EQUIPMENT REPAIR
A65: 3 | B65: 100.5416667 | C65: OFFLINE FOR EQUIPMENT REPAIR
A66: 3 | B66: 100.5833333 | C66: OFFLINE FOR EQUIPMENT REPAIR
A67: 3 | B67: 100.625 | C67: OFFLINE FOR EQUIPMENT REPAIR
A68: 3 | B68: 100.6666667 | C68: OFFLINE FOR EQUIPMENT REPAIR
A69: 3 | B69: 100.7083333 | C69: OFFLINE FOR EQUIPMENT REPAIR
A70: 3 | B70: 100.75 | C70: OFFLINE FOR EQUIPMENT REPAIR
A71: 3 | B71: 100.7916667 | C71: OFFLINE FOR EQUIPMENT REPAIR
A72: 3 | B72: 100.8333333 | C72: OFFLINE FOR EQUIPMENT REPAIR
A73: 3 | B73: 100.875 | C73: OFFLINE FOR EQUIPMENT REPAIR
A74: 3 | B74: 100.9166667 | C74: OFFLINE FOR EQUIPMENT REPAIR
A75: 3 | B75: 100.9583333 | C75: OFFLINE FOR EQUIPMENT REPAIR
A76: 4 | B76: 100 | C76: OFFLINE FOR EQUIPMENT REPAIR
A77: 4 | B77: 100.0416667 | C77: OFFLINE FOR EQUIPMENT REPAIR
A78: 4 | B78: 100.0833333 | C78: OFFLINE FOR EQUIPMENT REPAIR
A79: 4 | B79: 100.125 | C79: OFFLINE FOR EQUIPMENT REPAIR
A80: 4 | B80: 100.1666667 | C80: OFFLINE FOR EQUIPMENT REPAIR
A81: 4 | B81: 100.2083333 | C81: OFFLINE FOR EQUIPMENT REPAIR
A82: 4 | B82: 100.25 | C82: OFFLINE FOR EQUIPMENT REPAIR
A83: 4 | B83: 100.2916667 | C83: OFFLINE FOR EQUIPMENT REPAIR
A84: 4 | B84: 100.3333333 | C84: OFFLINE FOR EQUIPMENT REPAIR
A85: 4 | B85: 100.375 | C85: OFFLINE FOR EQUIPMENT REPAIR
A86: 4 | B86: 100.4166667 | C86: OFFLINE FOR EQUIPMENT REPAIR
A87: 4 | B87: 100.4583333 | C87: OFFLINE FOR EQUIPMENT REPAIR
A88: 4 | B88: 100.5 | C88: OFFLINE FOR EQUIPMENT REPAIR
A89: 4 | B89: 100.5416667 | C89: OFFLINE FOR EQUIPMENT REPAIR
A90: 4 | B90: 100.5833333 | C90: OFFLINE FOR EQUIPMENT REPAIR
A91: 4 | B91: 100.625 | C91: OFFLINE FOR EQUIPMENT REPAIR
A92: 4 | B92: 100.6666667 | C92: OFFLINE FOR EQUIPMENT REPAIR
A93: 4 | B93: 100.7083333 | C93: OFFLINE FOR EQUIPMENT REPAIR
A94: 4 | B94: 100.75 | C94: OFFLINE FOR EQUIPMENT REPAIR
A95: 4 | B95: 100.7916667 | C95: OFFLINE FOR EQUIPMENT REPAIR
A96: 4 | B96: 100.8333333 | C96: OFFLINE FOR EQUIPMENT REPAIR
A97: 4 | B97: 100.875 | C97: OFFLINE FOR EQUIPMENT REPAIR
A98: 4 | B98: 100.9166667 | C98: OFFLINE FOR EQUIPMENT REPAIR
A99: 4 | B99: 100.9583333 | C99: OFFLINE FOR EQUIPMENT REPAIR
A100: 5 | B100: 100 | C100: OFFLINE FOR EQUIPMENT REPAIR
A101: 5 | B101: 100.0416667 | C101: OFFLINE FOR EQUIPMENT REPAIR
A102: 5 | B102: 100.0833333 | C102: OFFLINE FOR EQUIPMENT REPAIR
A103: 5 | B103: 100.125 | C103: OFFLINE FOR EQUIPMENT REPAIR
A104: 5 | B104: 100.1666667 | C104: OFFLINE FOR EQUIPMENT REPAIR
A105: 5 | B105: 100.2083333 | C105: OFFLINE FOR EQUIPMENT REPAIR
A106: 5 | B106: 100.25 | C106: OFFLINE FOR EQUIPMENT REPAIR
A107: 5 | B107: 100.2916667 | C107: OFFLINE FOR EQUIPMENT REPAIR
A108: 5 | B108: 100.3333333 | C108: OFFLINE FOR EQUIPMENT REPAIR
A109: 5 | B109: 100.375 | C109: OFFLINE FOR EQUIPMENT REPAIR
A110: 5 | B110: 100.4166667 | C110: OFFLINE FOR EQUIPMENT REPAIR
A111: 5 | B111: 100.4583333 | C111: OFFLINE FOR EQUIPMENT REPAIR
A112: 5 | B112: 100.5 | C112: OFFLINE FOR EQUIPMENT REPAIR
A113: 5 | B113: 100.5416667 | C113: OFFLINE FOR EQUIPMENT REPAIR
A114: 5 | B114: 100.5833333 | C114: OFFLINE FOR EQUIPMENT REPAIR
A115: 5 | B115: 100.625 | C115: OFFLINE FOR EQUIPMENT REPAIR
A116: 5 | B116: 100.6666667 | C116: OFFLINE FOR EQUIPMENT REPAIR
A117: 5 | B117: 100.7083333 | C117: OFFLINE FOR EQUIPMENT REPAIR
A118: 5 | B118: 100.75 | C118: OFFLINE FOR EQUIPMENT REPAIR
A119: 5 | B119: 100.7916667 | C119: OFFLINE FOR EQUIPMENT REPAIR
A120: 5 | B120: 100.8333333 | C120: OFFLINE FOR EQUIPMENT REPAIR
A121: 5 | B121: 100.875 | C121: OFFLINE FOR EQUIPMENT REPAIR
A122: 5 | B122: 100.9166667 | C122: OFFLINE FOR EQUIPMENT REPAIR
A123: 5 | B123: 100.9583333 | C123: OFFLINE FOR EQUIPMENT REPAIR
A124: 6 | B124: 100 | C124: OFFLINE FOR EQUIPMENT REPAIR
A125: 6 | B125: 100.0416667 | C125: OFFLINE FOR EQUIPMENT REPAIR
A126: 6 | B126: 100.0833333 | C126: OFFLINE FOR EQUIPMENT REPAIR
A127: 6 | B127: 100.125 | C127: OFFLINE FOR EQUIPMENT REPAIR
A128: 6 | B128: 100.1666667 | C128: OFFLINE FOR EQUIPMENT REPAIR
A129: 6 | B129: 100.2083333 | C129: OFFLINE FOR EQUIPMENT REPAIR
A130: 6 | B130: 100.25 | C130: OFFLINE FOR EQUIPMENT REPAIR
A131: 6 | B131: 100.2916667 | C131: OFFLINE FOR EQUIPMENT REPAIR
A132: 6 | B132: 100.3333333 | C132: OFFLINE FOR EQUIPMENT REPAIR
A133: 6 | B133: 100.375 | C133: OFFLINE FOR EQUIPMENT REPAIR
A134: 6 | B134: 100.4166667 | C134: OFFLINE FOR EQUIPMENT REPAIR
A135: 6 | B135: 100.4583333 | C135: OFFLINE FOR EQUIPMENT REPAIR
A136: 6 | B136: 100.5 | C136: OFFLINE FOR EQUIPMENT REPAIR
A137: 6 | B137: 100.5416667 | C137: OFFLINE FOR EQUIPMENT REPAIR
A138: 6 | B138: 100.5833333 | C138: OFFLINE FOR EQUIPMENT REPAIR
A139: 6 | B139: 100.625 | C139: OFFLINE FOR EQUIPMENT REPAIR
A140: 6 | B140: 100.6666667 | C140: OFFLINE FOR EQUIPMENT REPAIR
A141: 6 | B141: 100.7083333 | C141: OFFLINE FOR EQUIPMENT REPAIR
A142: 6 | B142: 100.75 | C142: OFFLINE FOR EQUIPMENT REPAIR
A143: 6 | B143: 100.7916667 | C143: OFFLINE FOR EQUIPMENT REPAIR
A144: 6 | B144: 100.8333333 | C144: OFFLINE FOR EQUIPMENT REPAIR
A145: 6 | B145: 100.875 | C145: OFFLINE FOR EQUIPMENT REPAIR
A146: 6 | B146: 100.9166667 | C146: OFFLINE FOR EQUIPMENT REPAIR
A147: 6 | B147: 100.9583333 | C147: OFFLINE FOR EQUIPMENT REPAIR
A148: 7 | B148: 100 | C148: OFFLINE FOR EQUIPMENT REPAIR
A149: 7 | B149: 100.0416667 | C149: OFFLINE FOR EQUIPMENT REPAIR
A150: 7 | B150: 100.0833333 | C150: OFFLINE FOR EQUIPMENT REPAIR
A151: 7 | B151: 100.125 | C151: OFFLINE FOR EQUIPMENT REPAIR
A152: 7 | B152: 100.1666667 | C152: OFFLINE FOR EQUIPMENT REPAIR
A153: 7 | B153: 100.2083333 | C153: OFFLINE FOR EQUIPMENT REPAIR
A154: 7 | B154: 100.25 | C154: OFFLINE FOR EQUIPMENT REPAIR
A155: 7 | B155: 100.2916667 | C155: OFFLINE FOR EQUIPMENT REPAIR
A156: 7 | B156: 100.3333333 | C156: OFFLINE FOR EQUIPMENT REPAIR
A157: 7 | B157: 100.375 | C157: OFFLINE FOR EQUIPMENT REPAIR
A158: 7 | B158: 100.4166667 | C158: OFFLINE FOR EQUIPMENT REPAIR
A159: 7 | B159: 100.4583333 | C159: OFFLINE FOR EQUIPMENT REPAIR
A160: 7 | B160: 100.5 | C160: OFFLINE FOR EQUIPMENT REPAIR
A161: 7 | B161: 100.5416667 | C161: OFFLINE FOR EQUIPMENT REPAIR
A162: 7 | B162: 100.5833333 | C162: OFFLINE FOR EQUIPMENT REPAIR
A163: 7 | B163: 100.625 | C163: OFFLINE FOR EQUIPMENT REPAIR
A164: 7 | B164: 100.6666667 | C164: OFFLINE FOR EQUIPMENT REPAIR
A165: 7 | B165: 100.7083333 | C165: OFFLINE FOR EQUIPMENT REPAIR
A166: 7 | B166: 100.75 | C166: OFFLINE FOR EQUIPMENT REPAIR
A167: 7 | B167: 100.7916667 | C167: OFFLINE FOR EQUIPMENT REPAIR
A168: 7 | B168: 100.8333333 | C168: OFFLINE FOR EQUIPMENT REPAIR
A169: 7 | B169: 100.875 | C169: OFFLINE FOR EQUIPMENT REPAIR
A170: 7 | B170: 100.9166667 | C170: OFFLINE FOR EQUIPMENT REPAIR
A171: 7 | B171: 100.9583333 | C171: OFFLINE FOR EQUIPMENT REPAIR
A172: 8 | B172: 100 | C172: OFFLINE FOR EQUIPMENT REPAIR
A173: 8 | B173: 100.0416667 | C173: OFFLINE FOR EQUIPMENT REPAIR
A174: 8 | B174: 100.0833333 | C174: OFFLINE FOR EQUIPMENT REPAIR
A175: 8 | B175: 100.125 | C175: OFFLINE FOR EQUIPMENT REPAIR
A176: 8 | B176: 100.1666667 | C176: OFFLINE FOR EQUIPMENT REPAIR
A177: 8 | B177: 100.2083333 | C177: OFFLINE FOR EQUIPMENT REPAIR
A178: 8 | B178: 100.25 | C178: OFFLINE FOR EQUIPMENT REPAIR
A179: 8 | B179: 100.2916667 | C179: OFFLINE FOR EQUIPMENT REPAIR
A180: 8 | B180: 100.3333333 | C180: OFFLINE FOR EQUIPMENT REPAIR
A181: 8 | B181: 100.375 | C181: OFFLINE FOR EQUIPMENT REPAIR
A182: 8 | B182: 100.4166667 | C182: OFFLINE FOR EQUIPMENT REPAIR
A183: 8 | B183: 100.4583333 | C183: OFFLINE FOR EQUIPMENT REPAIR
A184: 8 | B184: 100.5 | C184: OFFLINE FOR EQUIPMENT REPAIR
A185: 8 | B185: 100.5416667 | C185: OFFLINE FOR EQUIPMENT REPAIR
A186: 8 | B186: 100.5833333 | C186: OFFLINE FOR EQUIPMENT REPAIR
A187: 8 | B187: 100.625 | C187: OFFLINE FOR EQUIPMENT REPAIR
A188: 8 | B188: 100.6666667 | C188: OFFLINE FOR EQUIPMENT REPAIR
A189: 8 | B189: 100.7083333 | C189: OFFLINE FOR EQUIPMENT REPAIR
A190: 8 | B190: 100.75 | C190: OFFLINE FOR EQUIPMENT REPAIR
A191: 8 | B191: 100.7916667 | C191: OFFLINE FOR EQUIPMENT REPAIR
A192: 8 | B192: 100.8333333 | C192: OFFLINE FOR EQUIPMENT REPAIR
A193: 8 | B193: 100.875 | C193: OFFLINE FOR EQUIPMENT REPAIR
A194: 8 | B194: 100.9166667 | C194: OFFLINE FOR EQUIPMENT REPAIR
A195: 8 | B195: 100.9583333 | C195: OFFLINE FOR EQUIPMENT REPAIR
A196: 9 | B196: 100 | C196: OFFLINE FOR EQUIPMENT REPAIR
A197: 9 | B197: 100.0416667 | C197: OFFLINE FOR EQUIPMENT REPAIR
A198: 9 | B198: 100.0833333 | C198: OFFLINE FOR EQUIPMENT REPAIR
A199: 9 | B199: 100.125 | C199: OFFLINE FOR EQUIPMENT REPAIR
A200: 9 | B200: 100.1666667 | C200: OFFLINE FOR EQUIPMENT REPAIR
A201: 9 | B201: 100.2083333 | C201: OFFLINE FOR EQUIPMENT REPAIR
... 546 more rows

Sheet Aug
A1: August, 2014 Dixie Binary Bottoming Cycle Data
A3: Date Aug | B3: Time | C3: Brine Flow [gpm] | D3: Brine Return Temp [F] | E3: Brine Supply Temp [F] | F3: Gen. Output [kW] | G3: Net [KW] | H3: Parasitic KW] | I3: T Dry Bulb [F]
A4: 1 | B4: 00:00:00 | C4: Offline for equipment repair
A5: 2 | B5: 100.0416667 | C5: Offline for equipment repair
A6: 1 | B6: 100.0833333 | C6: Offline for equipment repair
A7: 1 | B7: 100.125 | C7: Offline for equipment repair
A8: 1 | B8: 100.1666667 | C8: Offline for equipment repair
A9: 1 | B9: 100.2083333 | C9: Offline for equipment repair
A10: 1 | B10: 100.25 | C10: Offline for equipment repair
A11: 1 | B11: 100.2916667 | C11: Offline for equipment repair
A12: 1 | B12: 100.3333333 | C12: Offline for equipment repair
A13: 1 | B13: 100.375 | C13: Offline for equipment repair
A14: 1 | B14: 100.4166667 | C14: Offline for equipment repair
A15: 1 | B15: 100.4583333 | C15: Offline for equipment repair
A16: 1 | B16: 100.5 | C16: Offline for equipment repair
A17: 1 | B17: 100.5416667 | C17: Offline for equipment repair
A18: 1 | B18: 100.5833333 | C18: Offline for equipment repair
A19: 1 | B19: 100.625 | C19: Offline for equipment repair
A20: 1 | B20: 100.6666667 | C20: Offline for equipment repair
A21: 1 | B21: 100.7083333 | C21: Offline for equipment repair
A22: 1 | B22: 100.75 | C22: Offline for equipment repair
A23: 1 | B23: 100.7916667 | C23: Offline for equipment repair
A24: 1 | B24: 100.8333333 | C24: Offline for equipment repair
A25: 1 | B25: 100.875 | C25: Offline for equipment repair
A26: 1 | B26: 100.9166667 | C26: Offline for equipment repair
A27: 1 | B27: 100.9583333 | C27: Offline for equipment repair
A28: 2 | B28: 100 | C28: Offline for equipment repair
A29: 2 | B29: 100.0416667 | C29: Offline for equipment repair
A30: 2 | B30: 100.0833333 | C30: Offline for equipment repair
A31: 2 | B31: 100.125 | C31: Offline for equipment repair
A32: 2 | B32: 100.1666667 | C32: Offline for equipment repair
A33: 2 | B33: 100.2083333 | C33: Offline for equipment repair
A34: 2 | B34: 100.25 | C34: Offline for equipment repair
A35: 2 | B35: 100.2916667 | C35: Offline for equipment repair
A36: 2 | B36: 100.3333333 | C36: Offline for equipment repair
A37: 2 | B37: 100.375 | C37: Offline for equipment repair
A38: 2 | B38: 100.4166667 | C38: Offline for equipment repair
A39: 2 | B39: 100.4583333 | C39: Offline for equipment repair
A40: 2 | B40: 100.5 | C40: Offline for equipment repair
A41: 2 | B41: 100.5416667 | C41: Offline for equipment repair
A42: 2 | B42: 100.5833333 | C42: Offline for equipment repair
A43: 2 | B43: 100.625 | C43: Offline for equipment repair
A44: 2 | B44: 100.6666667 | C44: Offline for equipment repair
A45: 2 | B45: 100.7083333 | C45: Offline for equipment repair
A46: 2 | B46: 100.75 | C46: Offline for equipment repair
A47: 2 | B47: 100.7916667 | C47: Offline for equipment repair
A48: 2 | B48: 100.8333333 | C48: Offline for equipment repair
A49: 2 | B49: 100.875 | C49: Offline for equipment repair
A50: 2 | B50: 100.9166667 | C50: Offline for equipment repair
A51: 2 | B51: 100.9583333 | C51: Offline for equipment repair
A52: 3 | B52: 100 | C52: Offline for equipment repair
A53: 3 | B53: 100.0416667 | C53: Offline for equipment repair
A54: 3 | B54: 100.0833333 | C54: Offline for equipment repair
A55: 3 | B55: 100.125 | C55: Offline for equipment repair
A56: 3 | B56: 100.1666667 | C56: Offline for equipment repair
A57: 3 | B57: 100.2083333 | C57: Offline for equipment repair
A58: 3 | B58: 100.25 | C58: Offline for equipment repair
A59: 3 | B59: 100.2916667 | C59: Offline for equipment repair
A60: 3 | B60: 100.3333333 | C60: Offline for equipment repair
A61: 3 | B61: 100.375 | C61: Offline for equipment repair
A62: 3 | B62: 100.4166667 | C62: Offline for equipment repair
A63: 3 | B63: 100.4583333 | C63: Offline for equipment repair
A64: 3 | B64: 100.5 | C64: Offline for equipment repair
A65: 3 | B65: 100.5416667 | C65: Offline for equipment repair
A66: 3 | B66: 100.5833333 | C66: Offline for equipment repair
A67: 3 | B67: 100.625 | C67: Offline for equipment repair
A68: 3 | B68: 100.6666667 | C68: Offline for equipment repair
A69: 3 | B69: 100.7083333 | C69: Offline for equipment repair
A70: 3 | B70: 100.75 | C70: Offline for equipment repair
A71: 3 | B71: 100.7916667 | C71: Offline for equipment repair
A72: 3 | B72: 100.8333333 | C72: Offline for equipment repair
A73: 3 | B73: 100.875 | C73: Offline for equipment repair
A74: 3 | B74: 100.9166667 | C74: Offline for equipment repair
A75: 3 | B75: 100.9583333 | C75: Offline for equipment repair
A76: 4 | B76: 100 | C76: Offline for equipment repair
A77: 4 | B77: 100.0416667 | C77: Offline for equipment repair
A78: 4 | B78: 100.0833333 | C78: Offline for equipment repair
A79: 4 | B79: 100.125 | C79: Offline for equipment repair
A80: 4 | B80: 100.1666667 | C80: Offline for equipment repair
A81: 4 | B81: 100.2083333 | C81: Offline for equipment repair
A82: 4 | B82: 100.25 | C82: Offline for equipment repair
A83: 4 | B83: 100.2916667 | C83: Offline for equipment repair
A84: 4 | B84: 100.3333333 | C84: Offline for equipment repair
A85: 4 | B85: 100.375 | C85: Offline for equipment repair
A86: 4 | B86: 100.4166667 | C86: Offline for equipment repair
A87: 4 | B87: 100.4583333 | C87: Offline for equipment repair
A88: 4 | B88: 100.5 | C88: Offline for equipment repair
A89: 4 | B89: 100.5416667 | C89: Offline for equipment repair
A90: 4 | B90: 100.5833333 | C90: Offline for equipment repair
A91: 4 | B91: 100.625 | C91: Offline for equipment repair
A92: 4 | B92: 100.6666667 | C92: Offline for equipment repair
A93: 4 | B93: 100.7083333 | C93: Offline for equipment repair
A94: 4 | B94: 100.75 | C94: Offline for equipment repair
A95: 4 | B95: 100.7916667 | C95: Offline for equipment repair
A96: 4 | B96: 100.8333333 | C96: Offline for equipment repair
A97: 4 | B97: 100.875 | C97: Offline for equipment repair
A98: 4 | B98: 100.9166667 | C98: Offline for equipment repair
A99: 4 | B99: 100.9583333 | C99: Offline for equipment repair
A100: 5 | B100: 100 | C100: Offline for equipment repair
A101: 5 | B101: 100.0416667 | C101: Offline for equipment repair
A102: 5 | B102: 100.0833333 | C102: Offline for equipment repair
A103: 5 | B103: 100.125 | C103: Offline for equipment repair
A104: 5 | B104: 100.1666667 | C104: Offline for equipment repair
A105: 5 | B105: 100.2083333 | C105: Offline for equipment repair
A106: 5 | B106: 100.25 | C106: Offline for equipment repair
A107: 5 | B107: 100.2916667 | C107: Offline for equipment repair
A108: 5 | B108: 100.3333333 | C108: Offline for equipment repair
A109: 5 | B109: 100.375 | C109: Offline for equipment repair
A110: 5 | B110: 100.4166667 | C110: Offline for equipment repair
A111: 5 | B111: 100.4583333 | C111: Offline for equipment repair
A112: 5 | B112: 100.5 | C112: Offline for equipment repair
A113: 5 | B113: 100.5416667 | C113: Offline for equipment repair
A114: 5 | B114: 100.5833333 | C114: Offline for equipment repair
A115: 5 | B115: 100.625 | C115: Offline for equipment repair
A116: 5 | B116: 100.6666667 | C116: Offline for equipment repair
A117: 5 | B117: 100.7083333 | C117: Offline for equipment repair
A118: 5 | B118: 100.75 | C118: Offline for equipment repair
A119: 5 | B119: 100.7916667 | C119: Offline for equipment repair
A120: 5 | B120: 100.8333333 | C120: Offline for equipment repair
A121: 5 | B121: 100.875 | C121: Offline for equipment repair
A122: 5 | B122: 100.9166667 | C122: Offline for equipment repair
A123: 5 | B123: 100.9583333 | C123: Offline for equipment repair
A124: 6 | B124: 100 | C124: Offline for equipment repair
A125: 6 | B125: 100.0416667 | C125: Offline for equipment repair
A126: 6 | B126: 100.0833333 | C126: Offline for equipment repair
A127: 6 | B127: 100.125 | C127: Offline for equipment repair
A128: 6 | B128: 100.1666667 | C128: Offline for equipment repair
A129: 6 | B129: 100.2083333 | C129: Offline for equipment repair
A130: 6 | B130: 100.25 | C130: Offline for equipment repair
A131: 6 | B131: 100.2916667 | C131: Offline for equipment repair
A132: 6 | B132: 100.3333333 | C132: Offline for equipment repair
A133: 6 | B133: 100.375 | C133: Offline for equipment repair
A134: 6 | B134: 100.4166667 | C134: Offline for equipment repair
A135: 6 | B135: 100.4583333 | C135: Offline for equipment repair
A136: 6 | B136: 100.5 | C136: Offline for equipment repair
A137: 6 | B137: 100.5416667 | C137: Offline for equipment repair
A138: 6 | B138: 100.5833333 | C138: Offline for equipment repair
A139: 6 | B139: 100.625 | C139: Offline for equipment repair
A140: 6 | B140: 100.6666667 | C140: Offline for equipment repair
A141: 6 | B141: 100.7083333 | C141: Offline for equipment repair
A142: 6 | B142: 100.75 | C142: Offline for equipment repair
A143: 6 | B143: 100.7916667 | C143: Offline for equipment repair
A144: 6 | B144: 100.8333333 | C144: Offline for equipment repair
A145: 6 | B145: 100.875 | C145: Offline for equipment repair
A146: 6 | B146: 100.9166667 | C146: Offline for equipment repair
A147: 6 | B147: 100.9583333 | C147: Offline for equipment repair
A148: 7 | B148: 100 | C148: Offline for equipment repair
A149: 7 | B149: 100.0416667 | C149: Offline for equipment repair
A150: 7 | B150: 100.0833333 | C150: Offline for equipment repair
A151: 7 | B151: 100.125 | C151: Offline for equipment repair
A152: 7 | B152: 100.1666667 | C152: Offline for equipment repair
A153: 7 | B153: 100.2083333 | C153: Offline for equipment repair
A154: 7 | B154: 100.25 | C154: Offline for equipment repair
A155: 7 | B155: 100.2916667 | C155: Offline for equipment repair
A156: 7 | B156: 100.3333333 | C156: Offline for equipment repair
A157: 7 | B157: 100.375 | C157: Offline for equipment repair
A158: 7 | B158: 100.4166667 | C158: Offline for equipment repair
A159: 7 | B159: 100.4583333 | C159: Offline for equipment repair
A160: 7 | B160: 100.5 | C160: Offline for equipment repair
A161: 7 | B161: 100.5416667 | C161: Offline for equipment repair
A162: 7 | B162: 100.5833333 | C162: Offline for equipment repair
A163: 7 | B163: 100.625 | C163: Offline for equipment repair
A164: 7 | B164: 100.6666667 | C164: Offline for equipment repair
A165: 7 | B165: 100.7083333 | C165: Offline for equipment repair
A166: 7 | B166: 100.75 | C166: Offline for equipment repair
A167: 7 | B167: 100.7916667 | C167: Offline for equipment repair
A168: 7 | B168: 100.8333333 | C168: Offline for equipment repair
A169: 7 | B169: 100.875 | C169: Offline for equipment repair
A170: 7 | B170: 100.9166667 | C170: Offline for equipment repair
A171: 7 | B171: 100.9583333 | C171: Offline for equipment repair
A172: 8 | B172: 100 | C172: Offline for equipment repair
A173: 8 | B173: 100.0416667 | C173: Offline for equipment repair
A174: 8 | B174: 100.0833333 | C174: Offline for equipment repair
A175: 8 | B175: 100.125 | C175: Offline for equipment repair
A176: 8 | B176: 100.1666667 | C176: Offline for equipment repair
A177: 8 | B177: 100.2083333 | C177: Offline for equipment repair
A178: 8 | B178: 100.25 | C178: Offline for equipment repair
A179: 8 | B179: 100.2916667 | C179: Offline for equipment repair
A180: 8 | B180: 100.3333333 | C180: Offline for equipment repair
A181: 8 | B181: 100.375 | C181: Offline for equipment repair
A182: 8 | B182: 100.4166667 | C182: Offline for equipment repair
A183: 8 | B183: 100.4583333 | C183: Offline for equipment repair
A184: 8 | B184: 100.5 | C184: Offline for equipment repair
A185: 8 | B185: 100.5416667 | C185: Offline for equipment repair
A186: 8 | B186: 100.5833333 | C186: Offline for equipment repair
A187: 8 | B187: 100.625 | C187: Offline for equipment repair
A188: 8 | B188: 100.6666667 | C188: Offline for equipment repair
A189: 8 | B189: 100.7083333 | C189: Offline for equipment repair
A190: 8 | B190: 100.75 | C190: Offline for equipment repair
A191: 8 | B191: 100.7916667 | C191: Offline for equipment repair
A192: 8 | B192: 100.8333333 | C192: Offline for equipment repair
A193: 8 | B193: 100.875 | C193: Offline for equipment repair
A194: 8 | B194: 100.9166667 | C194: Offline for equipment repair
A195: 8 | B195: 100.9583333 | C195: Offline for equipment repair
A196: 9 | B196: 100 | C196: Offline for equipment repair
A197: 9 | B197: 100.0416667 | C197: Offline for equipment repair
A198: 9 | B198: 100.0833333 | C198: Offline for equipment repair
A199: 9 | B199: 100.125 | C199: Offline for equipment repair
A200: 9 | B200: 100.1666667 | C200: Offline for equipment repair
A201: 9 | B201: 100.2083333 | C201: Offline for equipment repair
... 546 more rows

Sheet Sept
A1: September 2014 Dixie Binary Bottoming Cycle Data
A3: Date Sept | B3: Time | C3: Brine Flow [gpm] | D3: Brine Return Temp [F] | E3: Brine Supply Temp [F] | F3: Gen. Output [kW] | G3: Net [KW] | H3: Parasitic KW] | I3: T Dry Bulb [F]
A4: 1 | B4: 100 | C4: 4130.850098 | D4: 154.0668945 | E4: 233.2668915 | F4: 3324.750244 | G4: 2120.624512 | H4: =F4-G4 -> 1204.125732 | I4: 67.37000275
A5: 1 | B5: 100.0416667 | C5: 4120.500488 | D5: 153.3937531 | E5: 233.2143707 | F5: 3415.619141 | G5: 2209.999512 | H5: =F5-G5 -> 1205.619629 | I5: 66.34625244
A6: 1 | B6: 100.0833333 | C6: 4134.150391 | D6: 152.1431274 | E6: 233.2987518 | F6: 3782.436279 | G6: 2608.124268 | H6: 1174.312012 | I6: 61.91488647
A7: 1 | B7: 100.125 | C7: 4152.450684 | D7: 153.6975098 | E7: 233.291275 | F7: 3493.16748 | G7: 2242.499512 | H7: 1250.667969 | I7: 65.82875061
A8: 1 | B8: 100.1666667 | C8: 4117.500488 | D8: 153.217514 | E8: 233.2162781 | F8: 3714.526855 | G8: 2510.624268 | H8: 1203.902588 | I8: 62.4751358
A9: 1 | B9: 100.2083333 | C9: 4191.975098 | D9: 152.0625 | E9: 233.2593842 | F9: 3820.120605 | G9: 2640.624268 | H9: 1179.496338 | I9: 60.76625061
A10: 1 | B10: 100.25 | C10: 4202.775391 | D10: 153.3431244 | E10: 233.1731415 | F10: 3880.280029 | G10: 2591.874268 | H10: 1288.405762 | I10: 60.26000214
A11: 1 | B11: 100.2916667 | C11: 4171.275391 | D11: 152.1468811 | E11: 233.33815 | F11: 4158.359863 | G11: 2876.249268 | H11: 1282.110596 | I11: 57.21125031
A12: 1 | B12: 100.3333333 | C12: 4282.650391 | D12: 155.1018982 | E12: 233.3062592 | F12: 3776.333008 | G12: 2494.374268 | H12: 1281.95874 | I12: 67.22488403
A13: 1 | B13: 100.375 | C13: 4305.450684 | D13: 155.5743713 | E13: 233.2743988 | F13: 3471.467529 | G13: 2234.374512 | H13: 1237.093018 | I13: 71.478508
A14: 1 | B14: 100.4166667 | C14: 4073.325684 | D14: 155.542511 | E14: 233.2893829 | F14: 2950.522217 | G14: 1722.499512 | H14: 1228.022705 | I14: 75.28437805
A15: 1 | B15: 100.4583333 | C15: 4093.050537 | D15: 157.4868774 | E15: 233.2743988 | F15: 2553.576904 | G15: 1324.374634 | H15: 1229.202271 | I15: 81.14450836
A16: 1 | B16: 100.5 | C16: 4084.050537 | D16: 158.8368835 | E16: 233.3475342 | F16: 2351.97998 | G16: 1088.749756 | H16: 1263.230225 | I16: 86.96638489
A17: 1 | B17: 100.5416667 | C17: 4062.450684 | D17: 160.8787537 | E17: 233.4093781 | F17: 2096.035889 | G17: 812.4997559 | H17: 1283.536133 | I17: 91.93325806
A18: 1 | B18: 100.5833333 | C18: 4068.150391 | D18: 161.5031281 | E18: 233.3456268 | F18: 1950.771973 | G18: 682.4998169 | H18: 1268.272156 | I18: 90.44038391
A19: 1 | B19: 100.625 | C19: 4082.850098 | D19: 162.6300201 | E19: 233.3625031 | F19: 1724.568848 | G19: 446.8748779 | H19: 1277.69397 | I19: 93.09649658
A20: 1 | B20: 100.6666667 | C20: 4091.925537 | D20: 163.6631317 | E20: 233.4056549 | F20: 1710.667358 | G20: 389.9999084 | H20: 1320.66745 | I20: 92.35626221
A21: 1 | B21: 100.7083333 | C21: 4063.125244 | D21: 163.558136 | E21: 233.3587799 | F21: 1655.884521 | G21: 365.6249084 | H21: 1290.259613 | I21: 93.09875488
A22: 1 | B22: 100.75 | C22: 4073.850098 | D22: 163.5993805 | E22: 233.5181427 | F22: 1595.337646 | G22: 268.124939 | H22: 1327.212708 | I22: 92.1076355
A23: 1 | B23: 100.7916667 | C23: 4084.425537 | D23: 162.7106323 | E23: 233.1806488 | F23: 1800.518921 | G23: 552.4998779 | H23: 1248.019043 | I23: 87.85625458
A24: 1 | B24: 100.8333333 | C24: 4108.875488 | D24: 163.4812622 | E24: 233.3119049 | F24: 1715.220459 | G24: 438.7498779 | H24: 1276.470581 | I24: 86.22725677
A25: 1 | B25: 100.875 | C25: 4162.500488 | D25: 163.3931274 | E25: 233.2125092 | F25: 1826.771973 | G25: 560.6248779 | H25: 1266.147095 | I25: 84.17638397
A26: 1 | B26: 100.9166667 | C26: 4111.875488 | D26: 160.0968781 | E26: 233.2650299 | F26: 2366.559326 | G26: 1088.749756 | H26: 1277.80957 | I26: 78.78875732
A27: 1 | B27: 100.9583333 | C27: 4154.475098 | D27: 158.3287659 | E27: 233.3569031 | F27: 2689.056641 | G27: 1405.624634 | H27: 1283.432007 | I27: 75.45426178
A28: 2 | B28: 100 | C28: 4175.325684 | D28: 156.1162567 | E28: 233.3887634 | F28: 2950.570557 | G28: 1754.999512 | H28: 1195.571045 | I28: 72.80375671
A29: 2 | B29: 100.0416667 | C29: 4158.300781 | D29: 156.6375122 | E29: 233.1600342 | F29: 2762.826904 | G29: 1576.249634 | H29: 1186.577271 | I29: 73.13113403
A30: 2 | B30: 100.0833333 | C30: 4156.275391 | D30: 156.6900024 | E30: 233.1656342 | F30: 2960.35498 | G30: 1738.749512 | H30: 1221.605469 | I30: 72.57875824
A31: 2 | B31: 100.125 | C31: 4152.975098 | D31: 153.7275085 | E31: 233.2331238 | F31: 3595.90332 | G31: 2364.374268 | H31: 1231.529053 | I31: 64.8500061
A32: 2 | B32: 100.1666667 | C32: 4148.625488 | D32: 152.1300201 | E32: 233.1712799 | F32: 3754.051758 | G32: 2616.249268 | H32: 1137.80249 | I32: 62.57863617
A33: 2 | B33: 100.2083333 | C33: 4133.550781 | D33: 153.5006409 | E33: 233.1806488 | F33: 3613.486328 | G33: 2404.999268 | H33: 1208.487061 | I33: 64.62500763
A34: 2 | B34: 100.25 | C34: 4174.050781 | D34: 152.8387604 | E34: 233.2893829 | F34: 3890.064697 | G34: 2681.249268 | H34: 1208.81543 | I34: 62.51225281
A35: 2 | B35: 100.2916667 | C35: 4190.475098 | D35: 152.7787628 | E35: 233.1431427 | F35: 3597.259766 | G35: 2437.499268 | H35: 1159.760498 | I35: 63.14225769
A36: 2 | B36: 100.3333333 | C36: 4176.000488 | D36: 153.8868713 | E36: 233.3175049 | F36: 3524.554932 | G36: 2331.874268 | H36: 1192.680664 | I36: 68.2013855
A37: 2 | B37: 100.375 | C37: 4156.425781 | D37: 155.4768982 | E37: 233.3456268 | F37: 3172.220703 | G37: 1958.124512 | H37: 1214.096191 | I37: 74.62625122
A38: 2 | B38: 100.4166667 | C38: 4131.825684 | D38: 157.5618744 | E38: 233.4375153 | F38: 2651.517578 | G38: 1446.249634 | H38: 1205.267944 | I38: 81.14000702
A39: 2 | B39: 100.4583333 | C39: 4121.925781 | D39: 159.2700195 | E39: 233.3400269 | F39: 2385.111328 | G39: 1104.999756 | H39: 1280.111572 | I39: 86.13500214
A40: 2 | B40: 100.5 | C40: 4096.275391 | D40: 160.6068878 | E40: 233.4600372 | F40: 2061.548828 | G40: 763.7498169 | H40: 1297.799011 | I40: 90.64625549
A41: 2 | B41: 100.5416667 | C41: 4026.600098 | D41: 162.5437622 | E41: 233.3869019 | F41: 1724.762695 | G41: 422.4998779 | H41: 1302.262817 | I41: 93.75914001
A42: 2 | B42: 100.5833333 | C42: 4036.500244 | D42: 164.0137634 | E42: 233.4000092 | F42: 1448.765747 | G42: 162.4999542 | H42: 1286.265793 | I42: 96.91926575
A43: 2 | B43: 100.625 | C43: 4055.775391 | D43: 165.9806213 | E43: 233.4131622 | F43: 1222.368896 | G43: -24.37499428 | H43: 1246.743891 | I43: 97.91488647
A44: 2 | B44: 100.6666667 | C44: OFFLINE | I44: 97.66625977
A45: 2 | B45: 100.7083333 | C45: OFFLINE | I45: 97.50875854
A46: 2 | B46: 100.75 | C46: OFFLINE | I46: 93.93125916
A47: 2 | B47: 100.7916667 | C47: OFFLINE | I47: 92.1875
A48: 2 | B48: 100.8333333 | C48: OFFLINE | I48: 86.77625275
A49: 2 | B49: 100.875 | C49: OFFLINE | I49: 86.7875061
A50: 2 | B50: 100.9166667 | C50: OFFLINE | I50: 86.00000763
A51: 2 | B51: 100.9583333 | C51: OFFLINE | I51: 85.99774933
A52: 3 | B52: 100 | C52: OFFLINE | I52: 84.55888367
A53: 3 | B53: 100.0416667 | C53: OFFLINE | I53: 79.13750458
A54: 3 | B54: 100.0833333 | C54: 2790.300049 | D54: 138.6450195 | E54: 233.1787872 | F54: 1129.078247 | G54: 211.249939 | H54: 917.8283081 | I54: 78.90913391
A55: 3 | B55: 100.125 | C55: 4001.925537 | D55: 157.5600128 | E55: 233.1937561 | F55: 2427.881592 | G55: 1243.124634 | H55: 1184.756958 | I55: 77.95625305
A56: 3 | B56: 100.1666667 | C56: 4019.100098 | D56: 153.8175201 | E56: 233.1825104 | F56: 2913.176758 | G56: 1738.749512 | H56: 1174.427246 | I56: 70.3771286
A57: 3 | B57: 100.2083333 | C57: 4020.375244 | D57: 153.9112701 | E57: 233.0962677 | F57: 2891.961182 | G57: 1754.999512 | H57: 1136.96167 | I57: 71.24562836
A58: 3 | B58: 100.25 | C58: 4007.250244 | D58: 152.6943817 | E58: 233.1694031 | F58: 3014.120605 | G58: 1860.624512 | H58: 1153.496094 | I58: 68.43537903
A59: 3 | B59: 100.2916667 | C59: 4032.675537 | D59: 151.9350128 | E59: 233.1637726 | F59: 3267.49707 | G59: 2161.249512 | H59: 1106.247559 | I59: 65.53400421
A60: 3 | B60: 100.3333333 | C60: 4020.375244 | D60: 152.4225159 | E60: 233.2256622 | F60: 3231.265869 | G60: 2079.999512 | H60: 1151.266357 | I60: 69.67625427
A61: 3 | B61: 100.375 | C61: 4009.950684 | D61: 154.0593872 | E61: 233.1843872 | F61: 2747.181641 | G61: 1584.374634 | H61: 1162.807007 | I61: 75.65000153
A62: 3 | B62: 100.4166667 | C62: 4007.025391 | D62: 156.0656281 | E62: 233.1543884 | F62: 2417.951904 | G62: 1275.624634 | H62: 1142.327271 | I62: 80.66975403
A63: 3 | B63: 100.4583333 | C63: 3870.600098 | D63: 156.6262665 | E63: 233.4075165 | F63: 2063.873779 | G63: 909.9997559 | H63: 1153.874023 | I63: 86.55238342
A64: 3 | B64: 100.5 | C64: 3986.925537 | D64: 159.1181335 | E64: 233.3250122 | F64: 1923.501709 | G64: 739.3748169 | H64: 1184.126892 | I64: 90.45388794
A65: 3 | B65: 100.5416667 | C65: 3938.700684 | D65: 162.28125 | E65: 233.2762604 | F65: 1616.892334 | G65: 406.2498779 | H65: 1210.642456 | I65: 90.67774963
A66: 3 | B66: 100.5833333 | C66: 3974.550537 | D66: 160.4662628 | E66: 233.2762604 | F66: 1715.171997 | G66: 568.7498779 | H66: 1146.422119 | I66: 87.76738739
A67: 3 | B67: 100.625 | C67: 4053.075684 | D67: 163.2787628 | E67: 233.2687531 | F67: 1517.98291 | G67: 300.6249084 | H67: 1217.358002 | I67: 88.18363953
A68: 3 | B68: 100.6666667 | C68: 4023.675537 | D68: 164.5218811 | E68: 233.291275 | F68: 1251.625122 | G68: 97.49997711 | H68: 1154.125145 | I68: 92.80963135
A69: 3 | B69: 100.7083333 | C69: 4053.375244 | D69: 162.2962494 | E69: 233.1862488 | F69: 1585.504883 | G69: 414.3748779 | H69: =F69-G69 -> 1171.130005 | I69: 87.12388611
A70: 3 | B70: 100.75 | C70: 4057.800537 | D70: 162.6431274 | E70: 233.2425079 | F70: 1455.740723 | G70: 333.1249084 | H70: 1122.615814 | I70: 85.10225677
A71: 3 | B71: 100.7916667 | C71: 4068.450684 | D71: 162.8568878 | E71: 233.1056519 | F71: 1474.67981 | G71: 349.3749084 | H71: 1125.304901 | I71: 82.82076263
A72: 3 | B72: 100.8333333 | C72: 3996.675537 | D72: 163.0537567 | E72: 233.1600342 | F72: 1395.145508 | G72: 235.624939 | H72: 1159.520569 | I72: 80.66864014
A73: 3 | B73: 100.875 | C73: 4051.725098 | D73: 156.2493744 | E73: 233.1806488 | F73: 2495.887451 | G73: 1381.249634 | H73: 1114.637817 | I73: 75.88625336
A74: 3 | B74: 100.9166667 | C74: 4013.400391 | D74: 154.9181213 | E74: 233.1168976 | F74: 2691.332764 | G74: 1576.249634 | H74: 1115.08313 | I74: 73.18625641
A75: 3 | B75: 100.9583333 | C75: 4028.250244 | D75: 153.7125092 | E75: 233.1300049 | F75: 3026.133057 | G75: 1828.124512 | H75: 1198.008545 | I75: 70.10375214
A76: 4 | B76: 100 | C76: 4005.300537 | D76: 153.6262665 | E76: 233.0700226 | F76: 2848.367432 | G76: 1738.749512 | H76: 1109.61792 | I76: 68.97312927
A77: 4 | B77: 100.0416667 | C77: 4000.950684 | D77: 152.280014 | E77: 233.0531311 | F77: 3346.88623 | G77: 2120.624512 | H77: 1226.261719 | I77: 65.6937561
A78: 4 | B78: 100.0833333 | C78: 4010.175537 | D78: 151.828125 | E78: 233.1281281 | F78: 3148.873779 | G78: 2047.499512 | H78: 1101.374268 | I78: 66.48912811
A79: 4 | B79: 100.125 | C79: 4017.150391 | D79: 152.5762634 | E79: 233.0268707 | F79: 3293.944092 | G79: 2071.874512 | H79: 1222.06958 | I79: 66.35863495
A80: 4 | B80: 100.1666667 | C80: 4005.300537 | D80: 152.578125 | E80: 233.0700226 | F80: 3327.123779 | G80: 2104.374512 | H80: 1222.749268 | I80: 65.92551422
A81: 4 | B81: 100.2083333 | C81: 4057.125244 | D81: 152.0118713 | E81: 233.0250092 | F81: 3799.098633 | G81: 2478.124268 | H81: 1320.974365 | I81: 59.23175812
A82: 4 | B82: 100.25 | C82: 4189.650391 | D82: 153.609375 | E82: 233.1450195 | F82: 3897.233154 | G82: 2599.999268 | H82: 1297.233887 | I82: 60.80000305
A83: 4 | B83: 100.2916667 | C83: 4259.400391 | D83: 153.0618744 | E83: 233.1093903 | F83: 4093.453369 | G83: 2770.624268 | H83: 1322.829102 | I83: 60.13063049
A84: 4 | B84: 100.3333333 | C84: 4237.875488 | D84: 152.1187592 | E84: 233.2275238 | F84: 3749.208008 | G84: 2624.374268 | H84: 1124.83374 | I84: 64.03775024
A85: 4 | B85: 100.375 | C85: 4182.600098 | D85: 154.5131378 | E85: 233.1618958 | F85: 3297.043945 | G85: 2071.874512 | H85: 1225.169434 | I85: 68.75375366
A86: 4 | B86: 100.4166667 | C86: 3992.475098 | D86: 153.328125 | E86: 233.1674957 | F86: 2916.664307 | G86: 1803.749512 | H86: 1112.914795 | I86: 71.18263245
A87: 4 | B87: 100.4583333 | C87: 4027.875244 | D87: 154.4700165 | E87: 233.0643768 | F87: 2751.589355 | G87: 1568.124634 | H87: 1183.464722 | I87: 73.97600555
A88: 4 | B88: 100.5 | C88: 4059.450684 | D88: 156.1068878 | E88: 233.1881561 | F88: 2534.976807 | G88: 1381.249634 | H88: 1153.727173 | I88: 75.94250488
A89: 4 | B89: 100.5416667 | C89: 4032.675537 | D89: 156.5306244 | E89: 233.1731415 | F89: 2374.115967 | G89: 1210.624634 | H89: 1163.491333 | I89: 80.36937714
A90: 4 | B90: 100.5833333 | C90: 4043.100098 | D90: 157.230011 | E90: 233.1431427 | F90: 2180.705078 | G90: 1104.999756 | H90: 1075.705322 | I90: 84.15275574
A91: 4 | B91: 100.625 | C91: 4042.950684 | D91: 159.0862732 | E91: 233.1862488 | F91: 2166.658203 | G91: 983.1247559 | H91: 1183.533447 | I91: 85.98988342
A92: 4 | B92: 100.6666667 | C92: 4047.300537 | D92: 159.9918823 | E92: 233.2012634 | F92: 2129.506592 | G92: 901.8747559 | H92: 1227.631836 | I92: 85.89312744
A93: 4 | B93: 100.7083333 | C93: 4050.675537 | D93: 159.5662537 | E93: 233.1768799 | F93: 2004.053223 | G93: 836.8747559 | H93: 1167.178467 | I93: 86.05850983
A94: 4 | B94: 100.75 | C94: 4043.175537 | D94: 159.5568848 | E94: 233.1637726 | F94: 2007.831421 | G94: 853.1247559 | H94: 1154.706665 | I94: 83.40576172
A95: 4 | B95: 100.7916667 | C95: 4061.250244 | D95: 159.375 | E95: 233.1674957 | F95: 1962.881348 | G95: 820.6247559 | H95: 1142.256592 | I95: 80.73500824
A96: 4 | B96: 100.8333333 | C96: 4043.175537 | D96: 159.09375 | E96: 233.0718842 | F96: 2072.108154 | G96: 926.2497559 | H96: 1145.858398 | I96: 79.43225861
A97: 4 | B97: 100.875 | C97: 4058.325684 | D97: 156.1893921 | E97: 233.1825104 | F97: 2507.464355 | G97: 1340.624634 | H97: 1166.839722 | I97: 73.83425903
A98: 4 | B98: 100.9166667 | C98: 4236.600098 | D98: 154.8206482 | E98: 233.1356354 | F98: 3219.737793 | G98: 2063.749512 | H98: 1155.988281 | I98: 68.57263184
A99: 4 | B99: 100.9583333 | C99: 4201.500488 | D99: 155.4975128 | E99: 233.0625153 | F99: 3322.764404 | G99: 2055.624512 | H99: 1267.139893 | I99: 67.94488525
A100: 5 | B100: 100 | C100: 4254.900391 | D100: 154.530014 | E100: 233.0850372 | F100: 3287.501953 | G100: 2096.249512 | H100: 1191.252441 | I100: 67.40825653
A101: 5 | B101: 100.0416667 | C101: 4233.225098 | D101: 153.4725037 | E101: 233.1262665 | F101: 3523.683105 | G101: 2388.749268 | H101: 1134.933838 | I101: 63.38301086
A102: 5 | B102: 100.0833333 | C102: 4253.550781 | D102: 154.8450165 | E102: 233.0775299 | F102: 3526.879883 | G102: 2250.624512 | H102: 1276.255371 | I102: 66.68825531
A103: 5 | B103: 100.125 | C103: 4234.050781 | D103: 153.3037567 | E103: 233.0812531 | F103: 3589.703369 | G103: 2413.124268 | H103: 1176.579102 | I103: 64.52600861
A104: 5 | B104: 100.1666667 | C104: 4251.225098 | D104: 153.1743774 | E104: 233.0850372 | F104: 3748.045654 | G104: 2551.249268 | H104: 1196.796387 | I104: 63.77000427
A105: 5 | B105: 100.2083333 | C105: 4194.450684 | D105: 153.526886 | E105: 233.0850372 | F105: 3856.981445 | G105: 2559.374268 | H105: 1297.607178 | I105: 61.73937988
A106: 5 | B106: 100.25 | C106: 4241.400391 | D106: 154.1062622 | E106: 233.0231476 | F106: 3951.531494 | G106: 2591.874268 | H106: 1359.657227 | I106: 61.24774933
A107: 5 | B107: 100.2916667 | C107: 4221.600098 | D107: 153.4200134 | E107: 233.0456238 | F107: 3940.390869 | G107: 2616.249268 | H107: 1324.141602 | I107: 60.05187988
A108: 5 | B108: 100.3333333 | C108: 4289.100098 | D108: 153.9600067 | E108: 233.0737457 | F108: 3885.220947 | G108: 2575.624268 | H108: 1309.59668 | I108: 64.34037781
A109: 5 | B109: 100.375 | C109: 4201.800781 | D109: 155.2387695 | E109: 233.1637726 | F109: 3346.88623 | G109: 2104.374512 | H109: 1242.511719 | I109: 70.91149902
A110: 5 | B110: 100.4166667 | C110: 4113.225098 | D110: 154.4006348 | E110: 233.1450195 | F110: 2838.970703 | G110: 1681.874512 | H110: 1157.096191 | I110: 74.6937561
A111: 5 | B111: 100.4583333 | C111: 4108.050781 | D111: 156.5493774 | E111: 233.1018829 | F111: 2569.803467 | G111: 1429.999634 | H111: 1139.803833 | I111: 78.59975433
A112: 5 | B112: 100.5 | C112: 4074.225098 | D112: 158.0137634 | E112: 233.1562653 | F112: 2300.926514 | G112: 1145.624756 | H112: 1155.301758 | I112: 83.89625549
A113: 5 | B113: 100.5416667 | C113: 4108.800781 | D113: 159.339386 | E113: 233.1712799 | F113: 2206.909668 | G113: 1007.499756 | H113: 1199.409912 | I113: 86.61537933
A114: 5 | B114: 100.5833333 | C114: 4106.325684 | D114: 159.8418884 | E114: 233.1393738 | F114: 2071.914307 | G114: 909.9997559 | H114: 1161.914551 | I114: 87.50301361
A115: 5 | B115: 100.625 | C115: 4133.700684 | D115: 160.8318787 | E115: 233.1731415 | F115: 1929.072021 | G115: 771.8748169 | H115: 1157.197205 | I115: 89.2388916
A116: 5 | B116: 100.6666667 | C116: 4074.375244 | D116: 161.8200073 | E116: 233.2462769 | F116: 1774.943848 | G116: 544.3748779 | H116: 1230.56897 | I116: 92.96376038
A117: 5 | B117: 100.7083333 | C117: 4085.475098 | D117: 162.3243713 | E117: 233.291275 | F117: 1737.404785 | G117: 503.7498779 | H117: 1233.654907 | I117: 91.8848877
A118: 5 | B118: 100.75 | C118: 4107.375488 | D118: 162.4481354 | E118: 233.2875061 | F118: 1811.126709 | G118: 568.7498779 | H118: 1242.376831 | I118: 89.34576416
A119: 5 | B119: 100.7916667 | C119: 4093.650391 | D119: 161.2818909 | E119: 233.2218781 | F119: 1913.039185 | G119: 706.8748169 | H119: 1206.164368 | I119: 84.06613922
A120: 5 | B120: 100.8333333 | C120: 4127.700684 | D120: 160.8712463 | E120: 233.2631531 | F120: 2143.746826 | G120: 926.2497559 | H120: 1217.49707 | I120: 81.462883
A121: 5 | B121: 100.875 | C121: 4165.575684 | D121: 156.9281311 | E121: 233.1562653 | F121: 2662.94873 | G121: 1462.499634 | H121: 1200.449097 | I121: 71.83399963
A122: 5 | B122: 100.9166667 | C122: 4137.750488 | D122: 154.5806274 | E122: 233.2069092 | F122: 3030.298828 | G122: 1852.499512 | H122: 1177.799316 | I122: 70.97000122
A123: 5 | B123: 100.9583333 | C123: 4164.675781 | D123: 155.2706451 | E123: 233.0775299 | F123: 2882.322266 | G123: 1706.249512 | H123: 1176.072754 | I123: 72.87350464
A124: 6 | B124: 100 | C124: 4126.200684 | D124: 156.2625122 | E124: 233.0868988 | F124: 2672.054932 | G124: 1486.874634 | H124: 1185.180298 | I124: 73.90176392
A125: 6 | B125: 100.0416667 | C125: 4138.275391 | D125: 154.7024994 | E125: 233.1674957 | F125: 3091.862793 | G125: 1876.874512 | H125: 1214.988281 | I125: 68.57263184
A126: 6 | B126: 100.0833333 | C126: 4138.950684 | D126: 153.5043945 | E126: 233.1093903 | F126: 3423.078369 | G126: 2161.249512 | H126: 1261.828857 | I126: 65.87375641
A127: 6 | B127: 100.125 | C127: 4127.400391 | D127: 152.0962524 | E127: 233.0906372 | F127: 3552.600342 | G127: 2404.999268 | H127: 1147.601074 | I127: 63.56975555
A128: 6 | B128: 100.1666667 | C128: 4174.125488 | D128: 151.7737732 | E128: 233.1244049 | F128: 3510.023682 | G128: 2388.749268 | H128: 1121.274414 | I128: 64.59125519
A129: 6 | B129: 100.2083333 | C129: 4127.775391 | D129: 153.592514 | E129: 233.0718842 | F129: 3372.07373 | G129: 2177.499512 | H129: 1194.574219 | I129: 65.78263092
A130: 6 | B130: 100.25 | C130: 4134.150391 | D130: 152.1225128 | E130: 233.1337738 | F130: 3457.759766 | G130: 2291.249512 | H130: 1166.510254 | I130: 65.42037964
A131: 6 | B131: 100.2916667 | C131: 4148.925781 | D131: 151.5975037 | E131: 233.1562653 | F131: 3735.839355 | G131: 2583.749268 | H131: 1152.090088 | I131: 63.33125305
A132: 6 | B132: 100.3333333 | C132: 4285.050781 | D132: 154.8243713 | E132: 233.1206207 | F132: 3506.923828 | G132: 2315.624268 | H132: 1191.299561 | I132: 68.81900024
A133: 6 | B133: 100.375 | C133: 4209.450684 | D133: 154.2806244 | E133: 233.103775 | F133: 3234.269043 | G133: 2071.874512 | H133: =F133-G133 -> 1162.394531 | I133: 72.99500275
A134: 6 | B134: 100.4166667 | C134: 4207.800781 | D134: 156.0393982 | E134: 233.1319122 | F134: 2816.737793 | G134: 1665.624512 | H134: 1151.113281 | I134: 77.36113739
A135: 6 | B135: 100.4583333 | C135: 4087.875244 | D135: 156.7818909 | E135: 233.2725372 | F135: 2439.797119 | G135: 1291.874634 | H135: 1147.922485 | I135: 83.08625793
A136: 6 | B136: 100.5 | C136: 4095.300537 | D136: 158.6850128 | E136: 233.2500153 | F136: 2239.750244 | G136: 1072.499756 | H136: 1167.250488 | I136: 88.63250732
A137: 6 | B137: 100.5416667 | C137: 4068.450684 | D137: 161.1581421 | E137: 233.3043976 | F137: 1910.472046 | G137: 682.4998169 | H137: 1227.972229 | I137: 91.64750671
A138: 6 | B138: 100.5833333 | C138: 4095.900391 | D138: 162.2868805 | E138: 233.3418884 | F138: 1662.568848 | G138: 430.6248779 | H138: 1231.94397 | I138: 93.41712952
A139: 6 | B139: 100.625 | C139: 4088.400391 | D139: 163.8412628 | E139: 233.2387695 | F139: 1562.932983 | G139: 259.999939 | H139: 1302.933044 | I139: 95.32063293
A140: 6 | B140: 100.6666667 | C140: OFFLINE | I140: 96.00575256
A141: 6 | B141: 100.7083333 | C141: OFFLINE | I141: 96.37138367
A142: 6 | B142: 100.75 | C142: OFFLINE | I142: 92.65213013
A143: 6 | B143: 100.7916667 | C143: OFFLINE | I143: 89.12750244
A144: 6 | B144: 100.8333333 | C144: OFFLINE | I144: 86.861763
A145: 6 | B145: 100.875 | C145: OFFLINE | I145: 81.08712769
A146: 6 | B146: 100.9166667 | C146: OFFLINE | I146: 75.76363373
A147: 6 | B147: 100.9583333 | C147: 3690.150391 | D147: 151.8187561 | E147: 233.1075134 | F147: 2382.737793 | G147: 1194.374634 | H147: 1188.363159 | I147: 76.2170105
A148: 7 | B148: 100 | C148: 4027.275391 | D148: 155.9512634 | E148: 233.0437622 | F148: 2659.751953 | G148: 1527.499634 | H148: 1132.252319 | I148: 73.1075058
A149: 7 | B149: 100.0416667 | C149: 4011.150391 | D149: 152.6700134 | E149: 233.1393738 | F149: 3187.381592 | G149: 2063.749512 | H149: 1123.63208 | I149: 67.07750702
A150: 7 | B150: 100.0833333 | C150: 4165.200684 | D150: 153.6375122 | E150: 233.1918945 | F150: 3483.286133 | G150: 2291.249512 | H150: 1192.036621 | I150: 65.49125671
A151: 7 | B151: 100.125 | C151: 4187.175781 | D151: 154.1606445 | E151: 233.2181549 | F151: 3422.254883 | G151: 2266.874512 | H151: 1155.380371 | I151: 65.67125702
A152: 7 | B152: 100.1666667 | C152: 4153.200684 | D152: 153.1162567 | E152: 233.0812531 | F152: 4383.690918 | G152: 2998.124268 | H152: 1385.56665 | I152: 56.52500153
A153: 7 | B153: 100.2083333 | C153: 4135.350098 | D153: 152.625 | E153: 233.0306549 | F153: 3801.375244 | G153: 2648.749268 | H153: 1152.625977 | I153: 62.06450653
A154: 7 | B154: 100.25 | C154: 4159.875488 | D154: 149.7037659 | E154: 233.0437622 | F154: 4385.047363 | G154: 3225.624023 | H154: 1159.42334 | I154: 53.08250427
A155: 7 | B155: 100.2916667 | C155: 4154.550781 | D155: 149.4900055 | E155: 233.0625153 | F155: 4444.431641 | G155: 3314.999023 | H155: 1129.432617 | I155: 55.09850311
A156: 7 | B156: 100.3333333 | C156: 4162.275391 | D156: 151.2000122 | E156: 233.0625153 | F156: 3893.987793 | G156: 2794.999268 | H156: 1098.988525 | I156: 61.83500671
A157: 7 | B157: 100.375 | C157: 4172.250488 | D157: 154.6143951 | E157: 233.1637726 | F157: 3205.303467 | G157: 2047.499512 | H157: 1157.803955 | I157: 72.40100861
A158: 7 | B158: 100.4166667 | C158: 4052.475098 | D158: 155.795639 | E158: 233.1206207 | F158: 2589.662842 | G158: 1421.874634 | H158: 1167.788208 | I158: 80.34687805
A159: 7 | B159: 100.4583333 | C159: 4026.900391 | D159: 157.9537659 | E159: 233.197525 | F159: 2317.250244 | G159: 1137.499756 | H159: 1179.750488 | I159: 87.25437927
A160: 7 | B160: 100.5 | C160: 4044.675537 | D160: 160.3218842 | E160: 233.2125092 | F160: 2096.859619 | G160: 885.6247559 | H160: 1211.234863 | I160: 90.51126099
A161: 7 | B161: 100.5416667 | C161: 4030.275391 | D161: 162.234375 | E161: 233.2518768 | F161: 1713.040771 | G161: 422.4998779 | H161: 1290.540894 | I161: 94.85038757
A162: 7 | B162: 100.5833333 | C162: 4024.350098 | D162: 164.026886 | E162: 233.2518768 | F162: 1444.890747 | G162: 211.249939 | H162: 1233.640808 | I162: 95.66375732
A163: 7 | B163: 100.625 | C163: OFFLINE | I163: 96.4377594
A164: 7 | B164: 100.6666667 | C164: OFFLINE | I164: 97.41426086
A165: 7 | B165: 100.7083333 | C165: OFFLINE | I165: 96.02149963
A166: 7 | B166: 100.75 | C166: OFFLINE | I166: 92.06938171
A167: 7 | B167: 100.7916667 | C167: OFFLINE | I167: 89.75750732
A168: 7 | B168: 100.8333333 | C168: OFFLINE | I168: 87.50750732
A169: 7 | B169: 100.875 | C169: OFFLINE | I169: 80.44250488
A170: 7 | B170: 100.9166667 | C170: OFFLINE | I170: 75.06500244
A171: 7 | B171: 100.9583333 | C171: 3892.350098 | D171: 155.5650024 | E171: 233.0569 | F171: 2407.586182 | G171: 1275.624634 | H171: 1131.961548 | I171: 75.98750305
A172: 8 | B172: 00:00:00 | C172: 3926.100098 | D172: 152.2350159 | E172: 233.1225281 | F172: 2964.133057 | G172: 1852.499512 | H172: 1111.633545 | I172: 67.50837708
A173: 8 | B173: 01:00:00 | C173: 4047.825684 | D173: 153.8756409 | E173: 233.1187592 | F173: 3103.439453 | G173: 1958.124512 | H173: 1145.314941 | I173: 69.17787933
A174: 8 | B174: 02:00:00 | C174: 4039.800537 | D174: 152.3587494 | E174: 233.0793915 | F174: 3596.000244 | G174: 2372.499268 | H174: 1223.500977 | I174: 63.53150177
A175: 8 | B175: 03:00:00 | C175: 4086.825684 | D175: 153.245636 | E175: 233.1637726 | F175: 3420.51123 | G175: 2226.249512 | H175: 1194.261719 | I175: 64.26613617
A176: 8 | B176: 04:00:00 | C176: 4034.925537 | D176: 153.8568878 | E176: 233.0662842 | F176: 3221.578369 | G176: 2023.124512 | H176: 1198.453857 | I176: 67.17875671
A177: 8 | B177: 05:00:00 | C177: 4042.575684 | D177: 153.808136 | E177: 233.1600342 | F177: 3228.262695 | G177: 2047.499512 | H177: 1180.763184 | I177: 66.88962555
A178: 8 | B178: 06:00:00 | C178: 4044.675537 | D178: 153.9337463 | E178: 233.1543884 | F178: 3085.662842 | G178: 1933.749512 | H178: 1151.91333 | I178: 69.79888153
A179: 8 | B179: 07:00:00 | C179: 4035.225098 | D179: 153.7181244 | E179: 233.0643768 | F179: 3086.873779 | G179: 1893.124512 | H179: 1193.749268 | I179: 68.36000061
A180: 8 | B180: 08:00:00 | C180: 4016.700684 | D180: 153.2043915 | E180: 233.0812531 | F180: 3211.406494 | G180: 2031.249512 | H180: 1180.156982 | I180: 69.6605072
A181: 8 | B181: 09:00:00 | C181: 3950.625244 | D181: 154.7831421 | E181: 233.0475311 | F181: 2744.420654 | G181: 1551.874634 | H181: 1192.546021 | I181: 74.48788452
A182: 8 | B182: 10:00:00 | C182: 3983.250244 | D182: 154.9875031 | E182: 233.1525269 | F182: 2609.619141 | G182: 1446.249634 | H182: 1163.369507 | I182: 75.50375366
A183: 8 | B183: 11:00:00 | C183: 3927.225098 | D183: 157.0068817 | E183: 233.2125092 | F183: 2369.659668 | G183: 1186.249634 | H183: 1183.410034 | I183: 82.14575958
A184: 8 | B184: 12:00:00 | C184: 3951.375244 | D184: 159.046875 | E184: 233.2987518 | F184: 2151.351807 | G184: 901.8747559 | H184: 1249.477051 | I184: 86.62551117
A185: 8 | B185: 13:00:00 | C185: 3994.125244 | D185: 158.4318848 | E185: 233.1393738 | F185: 2209.961182 | G185: 999.3747559 | H185: 1210.586426 | I185: 85.08875275
A186: 8 | B186: 14:00:00 | C186: 3989.400391 | D186: 159.6975098 | E186: 233.3437653 | F186: 2037.668823 | G186: 763.7498169 | H186: 1273.919006 | I186: 91.50125122
A187: 8 | B187: 15:00:00 | C187: 3991.725098 | D187: 159.2493744 | E187: 233.1618958 | F187: 2021.684692 | G187: 763.7498169 | H187: 1257.934875 | I187: 85.8188858
A188: 8 | B188: 16:00:00 | C188: 4026.075684 | D188: 159.6581421 | E188: 233.1825104 | F188: 2172.906494 | G188: 926.2497559 | H188: 1246.656738 | I188: 85.49150085
A189: 8 | B189: 17:00:00 | C189: 3998.850098 | D189: 159.46875 | E189: 233.2162781 | F189: 2151.739014 | G189: 909.9997559 | H189: 1241.739258 | I189: 84.98525238
A190: 8 | B190: 18:00:00 | C190: 4027.650391 | D190: 159.6581421 | E190: 233.2387695 | F190: 2075.014404 | G190: 820.6247559 | H190: 1254.389648 | I190: 84.11000824
A191: 8 | B191: 19:00:00 | C191: 4011.825684 | D191: 159.1537628 | E191: 233.1881561 | F191: 2244.496826 | G191: 966.8747559 | H191: 1277.62207 | I191: 82.71837616
A192: 8 | B192: 20:00:00 | C192: 4011.750244 | D192: 157.8300171 | E192: 233.1562653 | F192: 2392.231201 | G192: 1194.374634 | H192: 1197.856567 | I192: 79.916008
A193: 8 | B193: 21:00:00 | C193: 4116.375488 | D193: 156.8662567 | E193: 233.0268707 | F193: 2711.676514 | G193: 1486.874634 | H193: 1224.80188 | I193: 72.66875458
A194: 8 | B194: 22:00:00 | C194: 4023.900391 | D194: 157.1306305 | E194: 232.8750153 | F194: 2588.451904 | G194: 1413.749634 | H194: 1174.702271 | I194: 70.10375214
A195: 8 | B195: 23:00:00 | C195: 4087.200684 | D195: 156.140625 | E195: 233.0381622 | F195: 2815.962891 | G195: 1624.999512 | H195: 1190.963379 | I195: 71.79462433
A196: 9 | B196: 1 | C196: 4092.075684 | D196: 154.6612701 | E196: 233.1712799 | F196: 3320.681641 | G196: 2055.624512 | H196: 1265.057129 | I196: 68.42863464
A197: 9 | B197: 1.041666667 | C197: 4088.475098 | D197: 153.5493774 | E197: 233.0512695 | F197: 3388.058105 | G197: 2153.124512 | H197: =F197-G197 -> 1234.933594 | I197: 68.0877533
A198: 9 | B198: 1.083333333 | C198: 4101.225098 | D198: 151.9237671 | E198: 233.1131592 | F198: 3770.27832 | G198: 2591.874268 | H198: 1178.404053 | I198: 62.6292572
A199: 9 | B199: 1.125 | C199: 4080.450684 | D199: 152.7037659 | E199: 233.1487579 | F199: 4047.873779 | G199: 2673.124268 | H199: 1374.749512 | I199: 59.20250702
A200: 9 | B200: 1.166666667 | C200: 4120.275391 | D200: 151.921875 | E200: 233.0437622 | F200: 4195.55957 | G200: 2892.499268 | H200: 1303.060303 | I200: 58.65462494
A201: 9 | B201: 1.208333333 | C201: 4078.350098 | D201: 152.4225159 | E201: 232.9912872 | F201: 4117.284668 | G201: 2738.124268 | H201: 1379.1604 | I201: 58.41500092
... 522 more rows

Sheet Oct
A1: October 2014 Dixie Binary Bottoming Cycle Data
A3: Date Oct | B3: Time | C3: Brine Flow [gpm] | D3: Brine Return Temp [F] | E3: Brine Supply Temp [F] | F3: Gen. Output [kW] | G3: Net [KW] | H3: Parasitic KW] | I3: T Dry Bulb [F]
A4: 1 | B4: 100
A5: 1 | B5: 100.0416667
A6: 1 | B6: 100.0833333
A7: 1 | B7: 100.125
A8: 1 | B8: 100.1666667
A9: 1 | B9: 100.2083333
A10: 1 | B10: 100.25
A11: 1 | B11: 100.2916667
A12: 1 | B12: 100.3333333
A13: 1 | B13: 100.375
A14: 1 | B14: 100.4166667
A15: 1 | B15: 100.4583333
A16: 1 | B16: 100.5
A17: 1 | B17: 100.5416667
A18: 1 | B18: 100.5833333
A19: 1 | B19: 100.625
A20: 1 | B20: 100.6666667
A21: 1 | B21: 100.7083333
A22: 1 | B22: 100.75
A23: 1 | B23: 100.7916667
A24: 1 | B24: 100.8333333
A25: 1 | B25: 100.875
A26: 1 | B26: 100.9166667
A27: 1 | B27: 100.9583333
A28: 2 | B28: 100
A29: 2 | B29: 100.0416667
A30: 2 | B30: 100.0833333
A31: 2 | B31: 100.125
A32: 2 | B32: 100.1666667
A33: 2 | B33: 100.2083333
A34: 2 | B34: 100.25
A35: 2 | B35: 100.2916667
A36: 2 | B36: 100.3333333
A37: 2 | B37: 100.375
A38: 2 | B38: 100.4166667
A39: 2 | B39: 100.4583333
A40: 2 | B40: 100.5
A41: 2 | B41: 100.5416667
A42: 2 | B42: 100.5833333
A43: 2 | B43: 100.625
A44: 2 | B44: 100.6666667
A45: 2 | B45: 100.7083333
A46: 2 | B46: 100.75
A47: 2 | B47: 100.7916667
A48: 2 | B48: 100.8333333
A49: 2 | B49: 100.875
A50: 2 | B50: 100.9166667
A51: 2 | B51: 100.9583333
A52: 3 | B52: 100
A53: 3 | B53: 100.0416667
A54: 3 | B54: 100.0833333
A55: 3 | B55: 100.125
A56: 3 | B56: 100.1666667
A57: 3 | B57: 100.2083333
A58: 3 | B58: 100.25
A59: 3 | B59: 100.2916667
A60: 3 | B60: 100.3333333
A61: 3 | B61: 100.375
A62: 3 | B62: 100.4166667
A63: 3 | B63: 100.4583333
A64: 3 | B64: 100.5
A65: 3 | B65: 100.5416667
A66: 3 | B66: 100.5833333
A67: 3 | B67: 100.625
A68: 3 | B68: 100.6666667
A69: 3 | B69: 100.7083333
A70: 3 | B70: 100.75
A71: 3 | B71: 100.7916667
A72: 3 | B72: 100.8333333
A73: 3 | B73: 100.875
A74: 3 | B74: 100.9166667
A75: 3 | B75: 100.9583333
A76: 4 | B76: 100
A77: 4 | B77: 100.0416667
A78: 4 | B78: 100.0833333
A79: 4 | B79: 100.125
A80: 4 | B80: 100.1666667
A81: 4 | B81: 100.2083333
A82: 4 | B82: 100.25
A83: 4 | B83: 100.2916667
A84: 4 | B84: 100.3333333
A85: 4 | B85: 100.375
A86: 4 | B86: 100.4166667
A87: 4 | B87: 100.4583333
A88: 4 | B88: 100.5
A89: 4 | B89: 100.5416667
A90: 4 | B90: 100.5833333
A91: 4 | B91: 100.625
A92: 4 | B92: 100.6666667
A93: 4 | B93: 100.7083333
A94: 4 | B94: 100.75
A95: 4 | B95: 100.7916667
A96: 4 | B96: 100.8333333
A97: 4 | B97: 100.875
A98: 4 | B98: 100.9166667
A99: 4 | B99: 100.9583333
A100: 5 | B100: 100
A101: 5 | B101: 100.0416667
A102: 5 | B102: 100.0833333
A103: 5 | B103: 100.125
A104: 5 | B104: 100.1666667
A105: 5 | B105: 100.2083333
A106: 5 | B106: 100.25
A107: 5 | B107: 100.2916667
A108: 5 | B108: 100.3333333
A109: 5 | B109: 100.375
A110: 5 | B110: 100.4166667
A111: 5 | B111: 100.4583333
A112: 5 | B112: 100.5
A113: 5 | B113: 100.5416667
A114: 5 | B114: 100.5833333
A115: 5 | B115: 100.625
A116: 5 | B116: 100.6666667
A117: 5 | B117: 100.7083333
A118: 5 | B118: 100.75
A119: 5 | B119: 100.7916667
A120: 5 | B120: 100.8333333
A121: 5 | B121: 100.875
A122: 5 | B122: 100.9166667
A123: 5 | B123: 100.9583333
A124: 6 | B124: 100
A125: 6 | B125: 100.0416667
A126: 6 | B126: 100.0833333
A127: 6 | B127: 100.125
A128: 6 | B128: 100.1666667
A129: 6 | B129: 100.2083333
A130: 6 | B130: 100.25
A131: 6 | B131: 100.2916667
A132: 6 | B132: 100.3333333
A133: 6 | B133: 100.375
A134: 6 | B134: 100.4166667
A135: 6 | B135: 100.4583333
A136: 6 | B136: 100.5
A137: 6 | B137: 100.5416667
A138: 6 | B138: 100.5833333
A139: 6 | B139: 100.625
A140: 6 | B140: 100.6666667
A141: 6 | B141: 100.7083333
A142: 6 | B142: 100.75
A143: 6 | B143: 100.7916667
A144: 6 | B144: 100.8333333
A145: 6 | B145: 100.875
A146: 6 | B146: 100.9166667
A147: 6 | B147: 100.9583333
A148: 7 | B148: 100
A149: 7 | B149: 100.0416667
A150: 7 | B150: 100.0833333
A151: 7 | B151: 100.125
A152: 7 | B152: 100.1666667
A153: 7 | B153: 100.2083333
A154: 7 | B154: 100.25
A155: 7 | B155: 100.2916667
A156: 7 | B156: 100.3333333
A157: 7 | B157: 100.375
A158: 7 | B158: 100.4166667
A159: 7 | B159: 100.4583333
A160: 7 | B160: 100.5
A161: 7 | B161: 100.5416667
A162: 7 | B162: 100.5833333
A163: 7 | B163: 100.625
A164: 7 | B164: 100.6666667
A165: 7 | B165: 100.7083333
A166: 7 | B166: 100.75
A167: 7 | B167: 100.7916667
A168: 7 | B168: 100.8333333
A169: 7 | B169: 100.875
A170: 7 | B170: 100.9166667
A171: 7 | B171: 100.9583333
A172: 8 | B172: 100
A173: 8 | B173: 100.0416667
A174: 8 | B174: 100.0833333
A175: 8 | B175: 100.125
A176: 8 | B176: 100.1666667
A177: 8 | B177: 100.2083333
A178: 8 | B178: 100.25
A179: 8 | B179: 100.2916667
A180: 8 | B180: 100.3333333
A181: 8 | B181: 100.375
A182: 8 | B182: 100.4166667
A183: 8 | B183: 100.4583333
A184: 8 | B184: 100.5
A185: 8 | B185: 100.5416667
A186: 8 | B186: 100.5833333
A187: 8 | B187: 100.625
A188: 8 | B188: 100.6666667
A189: 8 | B189: 100.7083333
A190: 8 | B190: 100.75
A191: 8 | B191: 100.7916667
A192: 8 | B192: 100.8333333
A193: 8 | B193: 100.875
A194: 8 | B194: 100.9166667
A195: 8 | B195: 100.9583333
A196: 9 | B196: 100
A197: 9 | B197: 100.0416667
A198: 9 | B198: 100.0833333
A199: 9 | B199: 100.125
A200: 9 | B200: 100.1666667
A201: 9 | B201: 100.2083333
... 547 more rows

Sheet Nov
A1: November 2014 Dixie Binary Bottoming Cycle Data
A3: Date Nov | B3: Time | C3: Brine Flow [gpm] | D3: Brine Return Temp [F] | E3: Brine Supply Temp [F] | F3: Gen. Output [kW] | G3: Net [KW] | H3: Parasitic KW] | I3: T Dry Bulb [F]
A4: 1 | B4: 100
A5: 1 | B5: 100.0416667
A6: 1 | B6: 100.0833333
A7: 1 | B7: 100.125
A8: 1 | B8: 100.1666667
A9: 1 | B9: 100.2083333
A10: 1 | B10: 100.25
A11: 1 | B11: 100.2916667
A12: 1 | B12: 100.3333333
A13: 1 | B13: 100.375
A14: 1 | B14: 100.4166667
A15: 1 | B15: 100.4583333
A16: 1 | B16: 100.5
A17: 1 | B17: 100.5416667
A18: 1 | B18: 100.5833333
A19: 1 | B19: 100.625
A20: 1 | B20: 100.6666667
A21: 1 | B21: 100.7083333
A22: 1 | B22: 100.75
A23: 1 | B23: 100.7916667
A24: 1 | B24: 100.8333333
A25: 1 | B25: 100.875
A26: 1 | B26: 100.9166667
A27: 1 | B27: 100.9583333
A28: 2 | B28: 100
A29: 2 | B29: 100.0416667
A30: 2 | B30: 100.0833333
A31: 2 | B31: 100.125
A32: 2 | B32: 100.1666667
A33: 2 | B33: 100.2083333
A34: 2 | B34: 100.25
A35: 2 | B35: 100.2916667
A36: 2 | B36: 100.3333333
A37: 2 | B37: 100.375
A38: 2 | B38: 100.4166667
A39: 2 | B39: 100.4583333
A40: 2 | B40: 100.5
A41: 2 | B41: 100.5416667
A42: 2 | B42: 100.5833333
A43: 2 | B43: 100.625
A44: 2 | B44: 100.6666667
A45: 2 | B45: 100.7083333
A46: 2 | B46: 100.75
A47: 2 | B47: 100.7916667
A48: 2 | B48: 100.8333333
A49: 2 | B49: 100.875
A50: 2 | B50: 100.9166667
A51: 2 | B51: 100.9583333
A52: 3 | B52: 100
A53: 3 | B53: 100.0416667
A54: 3 | B54: 100.0833333
A55: 3 | B55: 100.125
A56: 3 | B56: 100.1666667
A57: 3 | B57: 100.2083333
A58: 3 | B58: 100.25
A59: 3 | B59: 100.2916667
A60: 3 | B60: 100.3333333
A61: 3 | B61: 100.375
A62: 3 | B62: 100.4166667
A63: 3 | B63: 100.4583333
A64: 3 | B64: 100.5
A65: 3 | B65: 100.5416667
A66: 3 | B66: 100.5833333
A67: 3 | B67: 100.625
A68: 3 | B68: 100.6666667
A69: 3 | B69: 100.7083333
A70: 3 | B70: 100.75
A71: 3 | B71: 100.7916667
A72: 3 | B72: 100.8333333
A73: 3 | B73: 100.875
A74: 3 | B74: 100.9166667
A75: 3 | B75: 100.9583333
A76: 4 | B76: 100
A77: 4 | B77: 100.0416667
A78: 4 | B78: 100.0833333
A79: 4 | B79: 100.125
A80: 4 | B80: 100.1666667
A81: 4 | B81: 100.2083333
A82: 4 | B82: 100.25
A83: 4 | B83: 100.2916667
A84: 4 | B84: 100.3333333
A85: 4 | B85: 100.375
A86: 4 | B86: 100.4166667
A87: 4 | B87: 100.4583333
A88: 4 | B88: 100.5
A89: 4 | B89: 100.5416667
A90: 4 | B90: 100.5833333
A91: 4 | B91: 100.625
A92: 4 | B92: 100.6666667
A93: 4 | B93: 100.7083333
A94: 4 | B94: 100.75
A95: 4 | B95: 100.7916667
A96: 4 | B96: 100.8333333
A97: 4 | B97: 100.875
A98: 4 | B98: 100.9166667
A99: 4 | B99: 100.9583333
A100: 5 | B100: 100
A101: 5 | B101: 100.0416667
A102: 5 | B102: 100.0833333
A103: 5 | B103: 100.125
A104: 5 | B104: 100.1666667
A105: 5 | B105: 100.2083333
A106: 5 | B106: 100.25
A107: 5 | B107: 100.2916667
A108: 5 | B108: 100.3333333
A109: 5 | B109: 100.375
A110: 5 | B110: 100.4166667
A111: 5 | B111: 100.4583333
A112: 5 | B112: 100.5
A113: 5 | B113: 100.5416667
A114: 5 | B114: 100.5833333
A115: 5 | B115: 100.625
A116: 5 | B116: 100.6666667
A117: 5 | B117: 100.7083333
A118: 5 | B118: 100.75
A119: 5 | B119: 100.7916667
A120: 5 | B120: 100.8333333
A121: 5 | B121: 100.875
A122: 5 | B122: 100.9166667
A123: 5 | B123: 100.9583333
A124: 6 | B124: 100
A125: 6 | B125: 100.0416667
A126: 6 | B126: 100.0833333
A127: 6 | B127: 100.125
A128: 6 | B128: 100.1666667
A129: 6 | B129: 100.2083333
A130: 6 | B130: 100.25
A131: 6 | B131: 100.2916667
A132: 6 | B132: 100.3333333
A133: 6 | B133: 100.375
A134: 6 | B134: 100.4166667
A135: 6 | B135: 100.4583333
A136: 6 | B136: 100.5
A137: 6 | B137: 100.5416667
A138: 6 | B138: 100.5833333
A139: 6 | B139: 100.625
A140: 6 | B140: 100.6666667
A141: 6 | B141: 100.7083333
A142: 6 | B142: 100.75
A143: 6 | B143: 100.7916667
A144: 6 | B144: 100.8333333
A145: 6 | B145: 100.875
A146: 6 | B146: 100.9166667
A147: 6 | B147: 100.9583333
A148: 7 | B148: 100
A149: 7 | B149: 100.0416667
A150: 7 | B150: 100.0833333
A151: 7 | B151: 100.125
A152: 7 | B152: 100.1666667
A153: 7 | B153: 100.2083333
A154: 7 | B154: 100.25
A155: 7 | B155: 100.2916667
A156: 7 | B156: 100.3333333
A157: 7 | B157: 100.375
A158: 7 | B158: 100.4166667
A159: 7 | B159: 100.4583333
A160: 7 | B160: 100.5
A161: 7 | B161: 100.5416667
A162: 7 | B162: 100.5833333
A163: 7 | B163: 100.625
A164: 7 | B164: 100.6666667
A165: 7 | B165: 100.7083333
A166: 7 | B166: 100.75
A167: 7 | B167: 100.7916667
A168: 7 | B168: 100.8333333
A169: 7 | B169: 100.875
A170: 7 | B170: 100.9166667
A171: 7 | B171: 100.9583333
A172: 8 | B172: 100
A173: 8 | B173: 100.0416667
A174: 8 | B174: 100.0833333
A175: 8 | B175: 100.125
A176: 8 | B176: 100.1666667
A177: 8 | B177: 100.2083333
A178: 8 | B178: 100.25
A179: 8 | B179: 100.2916667
A180: 8 | B180: 100.3333333
A181: 8 | B181: 100.375
A182: 8 | B182: 100.4166667
A183: 8 | B183: 100.4583333
A184: 8 | B184: 100.5
A185: 8 | B185: 100.5416667
A186: 8 | B186: 100.5833333
A187: 8 | B187: 100.625
A188: 8 | B188: 100.6666667
A189: 8 | B189: 100.7083333
A190: 8 | B190: 100.75
A191: 8 | B191: 100.7916667
A192: 8 | B192: 100.8333333
A193: 8 | B193: 100.875
A194: 8 | B194: 100.9166667
A195: 8 | B195: 100.9583333
A196: 9 | B196: 100
A197: 9 | B197: 100.0416667
A198: 9 | B198: 100.0833333
A199: 9 | B199: 100.125
A200: 9 | B200: 100.1666667
A201: 9 | B201: 100.2083333
... 557 more rows

Sheet Dec
A1: December 2014 Dixie Binary Bottoming Cycle Data
A3: Date Dec | B3: Time | C3: Brine Flow [gpm] | D3: Brine Return Temp [F] | E3: Brine Supply Temp [F] | F3: Gen. Output [kW] | G3: Net [KW] | H3: Parasitic KW] | I3: T Dry Bulb [F]
A4: 1 | B4: 100
A5: 1 | B5: 100.0416667
A6: 1 | B6: 100.0833333
A7: 1 | B7: 100.125
A8: 1 | B8: 100.1666667
A9: 1 | B9: 100.2083333
A10: 1 | B10: 100.25
A11: 1 | B11: 100.2916667
A12: 1 | B12: 100.3333333
A13: 1 | B13: 100.375
A14: 1 | B14: 100.4166667
A15: 1 | B15: 100.4583333
A16: 1 | B16: 100.5
A17: 1 | B17: 100.5416667
A18: 1 | B18: 100.5833333
A19: 1 | B19: 100.625
A20: 1 | B20: 100.6666667
A21: 1 | B21: 100.7083333
A22: 1 | B22: 100.75
A23: 1 | B23: 100.7916667
A24: 1 | B24: 100.8333333
A25: 1 | B25: 100.875
A26: 1 | B26: 100.9166667
A27: 1 | B27: 100.9583333
A28: 2 | B28: 100
A29: 2 | B29: 100.0416667
A30: 2 | B30: 100.0833333
A31: 2 | B31: 100.125
A32: 2 | B32: 100.1666667
A33: 2 | B33: 100.2083333
A34: 2 | B34: 100.25
A35: 2 | B35: 100.2916667
A36: 2 | B36: 100.3333333
A37: 2 | B37: 100.375
A38: 2 | B38: 100.4166667
A39: 2 | B39: 100.4583333
A40: 2 | B40: 100.5
A41: 2 | B41: 100.5416667
A42: 2 | B42: 100.5833333
A43: 2 | B43: 100.625
A44: 2 | B44: 100.6666667
A45: 2 | B45: 100.7083333
A46: 2 | B46: 100.75
A47: 2 | B47: 100.7916667
A48: 2 | B48: 100.8333333
A49: 2 | B49: 100.875
A50: 2 | B50: 100.9166667
A51: 2 | B51: 100.9583333
A52: 3 | B52: 100
A53: 3 | B53: 100.0416667
A54: 3 | B54: 100.0833333
A55: 3 | B55: 100.125
A56: 3 | B56: 100.1666667
A57: 3 | B57: 100.2083333
A58: 3 | B58: 100.25
A59: 3 | B59: 100.2916667
A60: 3 | B60: 100.3333333
A61: 3 | B61: 100.375
A62: 3 | B62: 100.4166667
A63: 3 | B63: 100.4583333
A64: 3 | B64: 100.5
A65: 3 | B65: 100.5416667
A66: 3 | B66: 100.5833333
A67: 3 | B67: 100.625
A68: 3 | B68: 100.6666667
A69: 3 | B69: 100.7083333
A70: 3 | B70: 100.75
A71: 3 | B71: 100.7916667
A72: 3 | B72: 100.8333333
A73: 3 | B73: 100.875
A74: 3 | B74: 100.9166667
A75: 3 | B75: 100.9583333
A76: 4 | B76: 100
A77: 4 | B77: 100.0416667
A78: 4 | B78: 100.0833333
A79: 4 | B79: 100.125
A80: 4 | B80: 100.1666667
A81: 4 | B81: 100.2083333
A82: 4 | B82: 100.25
A83: 4 | B83: 100.2916667
A84: 4 | B84: 100.3333333
A85: 4 | B85: 100.375
A86: 4 | B86: 100.4166667
A87: 4 | B87: 100.4583333
A88: 4 | B88: 100.5
A89: 4 | B89: 100.5416667
A90: 4 | B90: 100.5833333
A91: 4 | B91: 100.625
A92: 4 | B92: 100.6666667
A93: 4 | B93: 100.7083333
A94: 4 | B94: 100.75
A95: 4 | B95: 100.7916667
A96: 4 | B96: 100.8333333
A97: 4 | B97: 100.875
A98: 4 | B98: 100.9166667
A99: 4 | B99: 100.9583333
A100: 5 | B100: 100
A101: 5 | B101: 100.0416667
A102: 5 | B102: 100.0833333
A103: 5 | B103: 100.125
A104: 5 | B104: 100.1666667
A105: 5 | B105: 100.2083333
A106: 5 | B106: 100.25
A107: 5 | B107: 100.2916667
A108: 5 | B108: 100.3333333
A109: 5 | B109: 100.375
A110: 5 | B110: 100.4166667
A111: 5 | B111: 100.4583333
A112: 5 | B112: 100.5
A113: 5 | B113: 100.5416667
A114: 5 | B114: 100.5833333
A115: 5 | B115: 100.625
A116: 5 | B116: 100.6666667
A117: 5 | B117: 100.7083333
A118: 5 | B118: 100.75
A119: 5 | B119: 100.7916667
A120: 5 | B120: 100.8333333
A121: 5 | B121: 100.875
A122: 5 | B122: 100.9166667
A123: 5 | B123: 100.9583333
A124: 6 | B124: 100
A125: 6 | B125: 100.0416667
A126: 6 | B126: 100.0833333
A127: 6 | B127: 100.125
A128: 6 | B128: 100.1666667
A129: 6 | B129: 100.2083333
A130: 6 | B130: 100.25
A131: 6 | B131: 100.2916667
A132: 6 | B132: 100.3333333
A133: 6 | B133: 100.375
A134: 6 | B134: 100.4166667
A135: 6 | B135: 100.4583333
A136: 6 | B136: 100.5
A137: 6 | B137: 100.5416667
A138: 6 | B138: 100.5833333
A139: 6 | B139: 100.625
A140: 6 | B140: 100.6666667
A141: 6 | B141: 100.7083333
A142: 6 | B142: 100.75
A143: 6 | B143: 100.7916667
A144: 6 | B144: 100.8333333
A145: 6 | B145: 100.875
A146: 6 | B146: 100.9166667
A147: 6 | B147: 100.9583333
A148: 7 | B148: 100
A149: 7 | B149: 100.0416667
A150: 7 | B150: 100.0833333
A151: 7 | B151: 100.125
A152: 7 | B152: 100.1666667
A153: 7 | B153: 100.2083333
A154: 7 | B154: 100.25
A155: 7 | B155: 100.2916667
A156: 7 | B156: 100.3333333
A157: 7 | B157: 100.375
A158: 7 | B158: 100.4166667
A159: 7 | B159: 100.4583333
A160: 7 | B160: 100.5
A161: 7 | B161: 100.5416667
A162: 7 | B162: 100.5833333
A163: 7 | B163: 100.625
A164: 7 | B164: 100.6666667
A165: 7 | B165: 100.7083333
A166: 7 | B166: 100.75
A167: 7 | B167: 100.7916667
A168: 7 | B168: 100.8333333
A169: 7 | B169: 100.875
A170: 7 | B170: 100.9166667
A171: 7 | B171: 100.9583333
A172: 8 | B172: 100
A173: 8 | B173: 100.0416667
A174: 8 | B174: 100.0833333
A175: 8 | B175: 100.125
A176: 8 | B176: 100.1666667
A177: 8 | B177: 100.2083333
A178: 8 | B178: 100.25
A179: 8 | B179: 100.2916667
A180: 8 | B180: 100.3333333
A181: 8 | B181: 100.375
A182: 8 | B182: 100.4166667
A183: 8 | B183: 100.4583333
A184: 8 | B184: 100.5
A185: 8 | B185: 100.5416667
A186: 8 | B186: 100.5833333
A187: 8 | B187: 100.625
A188: 8 | B188: 100.6666667
A189: 8 | B189: 100.7083333
A190: 8 | B190: 100.75
A191: 8 | B191: 100.7916667
A192: 8 | B192: 100.8333333
A193: 8 | B193: 100.875
A194: 8 | B194: 100.9166667
A195: 8 | B195: 100.9583333
A196: 9 | B196: 100
A197: 9 | B197: 100.0416667
A198: 9 | B198: 100.0833333
A199: 9 | B199: 100.125
A200: 9 | B200: 100.1666667
A201: 9 | B201: 100.2083333
... 569 more rows
